{"text_format":"1","workbook":"xlsx","n_sheets":6,"sheets":["Hilfe","4g4 Q","4g3 Q","3g4 Q","3g3 Q","Vereins-Nr."],"not_rendered":{"charts":0,"images":1,"macros":1,"external_links":11,"defined_names":233,"comments":0,"pivot_tables":0},"unopened":[],"bounds":{"document_bytes":16777216,"sheet_cells":100000,"rows_first":2000,"rows_last":500,"rows_between":2000,"halvings":0,"cell_chars":16384,"cell_head_chars":4096},"cells_cut":0,"cells_raw":0,"read":"whole","date_system":"1900"}

{"sheet":"Hilfe","index":0,"n_rows":32,"n_cols":241,"rows_kept":32,"cut":false,"hidden":false,"merged":[[0,0,32,2],[0,3,0,202],[0,204,32,206],[1,3,2,202],[3,3,4,17],[3,18,4,20],[3,21,4,37],[3,38,4,40],[3,41,4,67],[3,68,4,70],[3,164,4,165],[3,166,4,179],[3,180,4,180],[3,181,4,190],[3,191,4,192],[3,193,4,202],[3,71,4,85],[3,86,4,113],[3,114,3,123],[3,124,4,140],[3,141,3,146],[3,147,4,163],[4,114,4,118],[4,119,4,122],[4,142,4,145],[5,3,5,122],[5,123,5,202],[6,3,6,51],[6,52,6,58],[6,59,12,62],[6,63,6,111],[6,112,6,118],[6,119,16,122],[6,124,6,201],[7,3,7,11],[7,112,7,118],[7,124,8,161],[7,162,8,163],[7,164,8,201],[8,3,8,11],[8,12,8,15],[8,16,8,51],[8,52,8,58],[8,63,8,71],[8,72,8,75],[7,12,7,15],[7,16,7,51],[7,52,7,58],[7,63,7,71],[7,72,7,75],[7,76,7,111],[8,76,8,111],[8,112,8,118],[9,3,9,11],[9,12,9,15],[9,16,9,51],[9,52,9,58],[9,63,9,71],[9,72,9,75],[9,76,9,111],[9,112,9,118],[9,195,9,201],[10,3,10,11],[10,12,10,15],[10,16,10,51],[10,52,10,58],[10,63,10,71],[10,72,10,75],[10,76,10,111],[10,112,10,118],[10,124,10,136],[9,124,9,129],[9,130,9,136],[9,137,9,161],[9,162,10,163],[9,164,9,188],[9,189,9,194],[10,137,10,161],[10,164,10,188],[10,189,10,201],[11,123,11,202],[12,3,12,11],[12,12,12,15],[12,16,12,58],[12,63,12,71],[12,72,12,75],[12,76,12,118],[12,123,12,202],[11,3,11,11],[11,12,11,15],[11,16,11,58],[11,63,11,71],[11,72,11,75],[11,76,11,118],[15,166,15,201],[13,3,13,118],[13,123,15,123],[13,124,14,159],[13,160,15,165],[13,166,14,201],[16,3,16,46],[16,47,16,118],[16,123,16,202],[13,202,15,202],[14,3,14,15],[14,16,14,62],[14,63,14,80],[14,81,14,118],[15,3,15,15],[15,16,15,62],[15,63,15,80],[15,81,15,118],[15,124,15,159],[17,193,17,202],[18,3,18,5],[18,6,18,13],[18,14,18,16],[18,17,18,24],[18,25,18,27],[18,28,18,35],[17,40,17,46],[17,47,17,89],[17,90,17,132],[17,133,17,142],[17,143,17,152],[17,153,17,162],[18,36,18,38],[18,39,18,46],[18,47,18,89],[18,90,18,132],[17,163,17,172],[17,173,17,182],[17,183,17,192],[18,173,18,177],[18,178,18,182],[18,183,18,187],[18,188,18,192],[17,3,17,6],[17,7,17,13],[17,14,17,17],[17,18,17,24],[17,25,17,28],[17,29,17,35],[17,36,17,39],[18,193,18,197],[18,198,18,202],[18,143,18,147],[18,148,18,152],[18,153,18,157],[18,158,18,162],[18,163,18,167],[18,168,18,172],[19,36,19,38],[19,39,19,46],[19,47,19,89],[19,90,19,132],[19,133,19,137],[19,138,19,142],[19,188,19,192],[19,193,19,197],[19,198,19,202],[18,133,18,137],[18,138,18,142],[19,3,19,5],[19,6,19,13],[19,14,19,16],[19,17,19,24],[19,25,19,27],[19,28,19,35],[19,173,19,177],[19,178,19,182],[19,183,19,187],[19,143,19,147],[19,148,19,152],[19,153,19,157],[19,158,19,162],[19,163,19,167],[19,168,19,172],[20,36,20,38],[20,39,20,46],[20,47,20,89],[20,90,20,132],[20,133,20,137],[20,138,20,142],[20,3,20,5],[20,6,20,13],[20,14,20,16],[20,17,20,24],[20,25,20,27],[20,28,20,35],[20,173,20,177],[20,178,20,182],[20,183,20,187],[20,188,20,192],[20,193,20,197],[20,198,20,202],[20,143,20,147],[20,148,20,152],[20,153,20,157],[20,158,20,162],[20,163,20,167],[20,168,20,172],[21,36,21,38],[21,39,21,46],[21,47,21,89],[21,90,21,132],[21,133,21,137],[21,138,21,142],[21,3,21,5],[21,6,21,13],[21,14,21,16],[21,17,21,24],[21,25,21,27],[21,28,21,35],[21,173,21,177],[21,178,21,182],[21,183,21,187],[21,188,21,192],[21,193,21,197],[21,198,21,202],[21,143,21,147],[21,148,21,152],[21,153,21,157],[21,158,21,162],[21,163,21,167],[21,168,21,172],[22,36,22,38],[22,39,22,46],[22,47,22,89],[22,90,22,132],[22,133,22,137],[22,138,22,142],[22,3,22,5],[22,6,22,13],[22,14,22,16],[22,17,22,24],[22,25,22,27],[22,28,22,35],[22,173,22,177],[22,178,22,182],[22,183,22,187],[22,188,22,192],[22,193,22,197],[22,198,22,202],[22,143,22,147],[22,148,22,152],[22,153,22,157],[22,158,22,162],[22,163,22,167],[22,168,22,172],[23,36,23,38],[23,39,23,46],[23,47,23,89],[23,90,23,132],[23,133,23,137],[23,138,23,142],[23,3,23,5],[23,6,23,13],[23,14,23,16],[23,17,23,24],[23,25,23,27],[23,28,23,35],[23,173,23,177],[23,178,23,182],[23,183,23,187],[23,188,23,192],[23,193,23,197],[23,198,23,202],[23,143,23,147],[23,148,23,152],[23,153,23,157],[23,158,23,162],[23,163,23,167],[23,168,23,172],[24,36,24,38],[24,39,24,46],[24,47,24,89],[24,90,24,132],[24,133,24,137],[24,138,24,142],[24,3,24,5],[24,6,24,13],[24,14,24,16],[24,17,24,24],[24,25,24,27],[24,28,24,35],[24,173,24,177],[24,178,24,182],[24,183,24,187],[24,188,24,192],[24,193,24,197],[24,198,24,202],[24,143,24,147],[24,148,24,152],[24,153,24,157],[24,158,24,162],[24,163,24,167],[24,168,24,172],[25,36,25,38],[25,39,25,46],[25,47,25,89],[25,90,25,132],[25,133,25,137],[25,138,25,142],[25,3,25,5],[25,6,25,13],[25,14,25,16],[25,17,25,24],[25,25,25,27],[25,28,25,35],[25,173,25,177],[25,178,25,182],[25,183,25,187],[25,188,25,192],[25,193,25,197],[25,198,25,202],[25,143,25,147],[25,148,25,152],[25,153,25,157],[25,158,25,162],[25,163,25,167],[25,168,25,172],[26,188,26,192],[26,193,26,197],[26,198,26,202],[26,143,26,147],[26,148,26,152],[26,153,26,157],[26,158,26,162],[26,163,26,167],[26,168,26,172],[27,3,27,5],[27,6,27,13],[27,14,27,16],[27,17,27,24],[27,25,27,27],[27,28,27,35],[26,173,26,177],[26,178,26,182],[26,183,26,187],[26,36,26,38],[26,39,26,46],[26,47,26,89],[26,90,26,132],[26,133,26,137],[26,138,26,142],[26,3,26,5],[26,6,26,13],[26,14,26,16],[26,17,26,24],[26,25,26,27],[26,28,26,35],[27,198,27,202],[27,143,27,147],[27,148,27,152],[27,153,27,157],[27,158,27,162],[27,163,27,167],[27,168,27,172],[27,36,27,38],[27,39,27,46],[27,47,27,89],[27,90,27,132],[27,133,27,137],[27,138,27,142],[28,3,29,13],[28,14,29,37],[28,38,31,40],[28,41,29,55],[28,56,29,66],[28,67,29,72],[30,3,31,13],[30,14,31,37],[30,41,31,55],[30,56,31,66],[29,77,29,80],[29,81,29,110],[29,111,29,151],[29,152,31,153],[29,154,29,161],[28,73,31,76],[28,77,28,110],[28,111,28,151],[28,152,28,161],[31,77,31,80],[31,81,31,110],[30,159,31,160],[30,161,31,165],[28,175,29,182],[28,183,29,187],[23,210,23,259],[24,210,24,259],[25,210,25,259],[26,210,26,259],[28,188,29,192],[28,193,29,197],[28,198,29,202],[28,162,28,167],[28,169,28,174],[29,162,29,167],[29,169,29,174],[30,166,31,166],[30,167,31,174],[30,194,31,194],[30,195,31,202],[27,173,27,177],[27,178,27,182],[27,183,27,187],[27,188,27,192],[27,193,27,197],[27,210,27,259],[29,210,30,239],[29,240,30,267],[12,221,12,258],[13,210,13,258],[14,210,14,258],[15,210,15,258],[17,210,17,258],[32,3,32,202],[12,210,12,220],[18,210,18,258],[19,210,19,258],[20,210,20,258],[22,210,22,259],[30,175,31,175],[30,176,31,180],[30,181,31,181],[30,182,31,186],[30,187,31,188],[30,189,31,193],[30,67,31,72],[30,77,30,110],[30,111,31,151],[30,154,31,158]]}
[]
[null,null,null,"Spielberichts-Formular",null,null,null,null,null,null,null,null,null,null,null,null,null,null,null,null,null,null,null,null,null,null,null,null,null,null,null,null,null,null,null,null,null,null,null,null,null,null,null,null,null,null,null,null,null,null,null,null,null,null,null,null,null,null,null,null,null,null,null,null,null,null,null,null,null,null,null,null,null,null,null,null,null,null,null,null,null,null,null,null,null,null,null,null,null,null,null,null,null,null,null,null,null,null,null,null,null,null,null,null,null,null,null,null,null,null,null,null,null,null,null,null,null,null,null,null,null,null,null,null,null,null,null,null,null,null,null,null,null,null,null,null,null,null,null,null,null,null,null,null,null,null,null,null,null,null,null,null,null,null,null,null,null,null,null,null,null,null,null,null,null,null,null,null,null,null,null,null,null,null,null,null,null,null,null,null,null,null,null,null,null,null,null,null,null,null,null,null,null,null,null,null,null,null,null,null,null,null,null,{"$f":"IF(GL29=GQ29,\"\",IF(GL29>GQ29,DU8,FI8))","v":""}]
[null,null,null,null,null,null,null,null,null,null,null,null,null,null,null,null,null,null,null,null,null,null,null,null,null,null,null,null,null,null,null,null,null,null,null,null,null,null,null,null,null,null,null,null,null,null,null,null,null,null,null,null,null,null,null,null,null,null,null,null,null,null,null,null,null,null,null,null,null,null,null,null,null,null,null,null,null,null,null,null,null,null,null,null,null,null,null,null,null,null,null,null,null,null,null,null,null,null,null,null,null,null,null,null,null,null,null,null,null,null,null,null,null,null,null,null,null,null,null,null,null,null,null,null,null,null,null,null,null,null,null,null,null,null,null,null,null,null,null,null,null,null,null,null,null,null,null,null,null,null,null,null,null,null,null,null,null,null,null,null,null,null,null,null,null,null,null,null,null,null,null,null,null,null,null,null,null,null,null,null,null,null,null,null,null,null,null,null,null,null,null,null,null,null,null,null,null,null,null,null,null,null,null,{"$f":"IF(GL29=\"\",\"\",IF(GL29=GQ29,GV8))","v":""}]
[null,null,null,"HERREN",null,null,null,null,null,null,null,null,null,null,null,null,null,null,"-",null,null,"Verbands",null,null,null,null,null,null,null,null,null,null,null,null,null,null,null,null,"-",null,null,"Mannschaftsspiel",null,null,null,null,null,null,null,null,null,null,null,null,null,null,null,null,null,null,null,null,null,null,null,null,null,null,null,null,null,"Spielklasse :",null,null,null,null,null,null,null,null,null,null,null,null,null,null,"4. Kreisliga Mitte",null,null,null,null,null,null,null,null,null,null,null,null,null,null,null,null,null,null,null,null,null,null,null,null,null,null,null,null,null,null,null,null,null,null,null,null,null,"Vorrunde",null,null,null,null,null,null,null,null,null,null,null,null,null,null,null,null,null,null,null,null,null,null,"Rückrunde",null,null,null,null,null,null,null,null,null,null,null,null,null,null,null,null,null,null,"SAISON",null,null,null,null,null,null,null,null,null,null,null,null,null,null,2016,null,null,null,null,null,null,null,null,null,"/",null,{"$f":"FZ4+1","v":2017}]
[]
[null,null,null,null,null,null,null,null,null,null,null,null,null,null,null,null,null,null,null,null,null,null,null,null,null,null,null,null,null,null,null,null,null,null,null,null,null,null,null,null,null,null,null,null,null,null,null,null,null,null,null,null,null,null,null,null,null,null,null,null,null,null,null,null,null,null,null,null,null,null,null,null,null,null,null,null,null,null,null,null,null,null,null,null,null,null,null,null,null,null,null,null,null,null,null,null,null,null,null,null,null,null,null,null,null,null,null,null,null,null,null,null,null,null,null,null,null,null,null,null,null,null,null,null,null,null,null,null,null,null,null,null,null,null,null,null,null,null,null,null,null,null,null,null,null,null,null,null,null,null,null,null,null,null,null,null,null,null,null,null,null,null,null,null,null,null,null,null,null,null,null,null,null,null,null,null,null,null,null,null,null,null,null,null,null,null,null,null,null,null,null,null,null,null,null,null,null,null,null,null,null,null,null,{"$f":"IF(GL29<>GQ29,GV2,GV3)","v":""}]
[null,null,null,"Mannschaftsaufstellung   -   Heimverein",null,null,null,null,null,null,null,null,null,null,null,null,null,null,null,null,null,null,null,null,null,null,null,null,null,null,null,null,null,null,null,null,null,null,null,null,null,null,null,null,null,null,null,null,null,null,null,null,"Pos.",null,null,null,null,null,null,null,null,null,null,"Mannschaftsaufstellung   -   Gastverein",null,null,null,null,null,null,null,null,null,null,null,null,null,null,null,null,null,null,null,null,null,null,null,null,null,null,null,null,null,null,null,null,null,null,null,null,null,null,null,null,null,null,null,null,null,null,null,null,"Pos.",null,null,null,null,null,null,null,null,null,null,null,"Spielpaarung",null,null,null,null,null,null,null,null,null,null,null,null,null,null,null,null,null,null,null,null,null,null,null,null,null,null,null,null,null,null,null,null,null,null,null,null,null,null,null,null,null,null,null,null,null,null,null,null,null,null,null,null,null,null,null,null,null,null,null,null,null,null,null,null,null,null,null,null,null,null,null,null,null,null,null,null,null,null,"Sieger"]
[null,null,null,"Einzel",null,null,null,null,null,null,null,null,"A1",null,null,null,null,null,null,null,null,null,null,null,null,null,null,null,null,null,null,null,null,null,null,null,null,null,null,null,null,null,null,null,null,null,null,null,null,null,null,null,null,null,null,null,null,null,null,null,null,null,null,"Einzel",null,null,null,null,null,null,null,null,"B1",null,null,null,null,null,null,null,null,null,null,null,null,null,null,null,null,null,null,null,null,null,null,null,null,null,null,null,null,null,null,null,null,null,null,null,null,null,null,null,null,null,null,null,null,null,null,null,null,null,null,null,null,null,null,null,null,null,null,null,null,null,null,null,null,null,null,null,null,null,null,null,null,null,null,null,null,null,null,null,null,null,null,null,null,null,null,null,null,null,":",null,null,null,null,null,null,null,null,null,null,null,null,null,null,null,null,null,null,null,null,null,null,null,null,null,null,null,null,null,null,null,null,null,null,null,null,null,null,null,null,"Unentschieden"]
[null,null,null,"Einzel",null,null,null,null,null,null,null,null,"A2",null,null,null,null,null,null,null,null,null,null,null,null,null,null,null,null,null,null,null,null,null,null,null,null,null,null,null,null,null,null,null,null,null,null,null,null,null,null,null,null,null,null,null,null,null,null,null,null,null,null,"Einzel",null,null,null,null,null,null,null,null,"B2"]
[null,null,null,"Einzel",null,null,null,null,null,null,null,null,"A3",null,null,null,null,null,null,null,null,null,null,null,null,null,null,null,null,null,null,null,null,null,null,null,null,null,null,null,null,null,null,null,null,null,null,null,null,null,null,null,null,null,null,null,null,null,null,null,null,null,null,"Einzel",null,null,null,null,null,null,null,null,"B3",null,null,null,null,null,null,null,null,null,null,null,null,null,null,null,null,null,null,null,null,null,null,null,null,null,null,null,null,null,null,null,null,null,null,null,null,null,null,null,null,null,null,null,null,null,null,null,null,null,null,null,508,null,null,null,null,null,null,null,null,null,null,null,null,"Heimverein",null,null,null,null,null,null,null,null,null,null,null,null,null,null,null,null,null,null,null,null,null,null,null,null,null,null,"Gastverein",null,null,null,null,null,null,null,null,null,null,null,null,null,null,null,null,null,null,null,null,null,null,null,null,508]
[null,null,null,"Einzel",null,null,null,null,null,null,null,null,"A4",null,null,null,null,null,null,null,null,null,null,null,null,null,null,null,null,null,null,null,null,null,null,null,null,null,null,null,null,null,null,null,null,null,null,null,null,null,null,null,null,null,null,null,null,null,null,null,null,null,null,"Einzel",null,null,null,null,null,null,null,null,"B4",null,null,null,null,null,null,null,null,null,null,null,null,null,null,null,null,null,null,null,null,null,null,null,null,null,null,null,null,null,null,null,null,null,null,null,null,null,null,null,null,null,null,null,null,null,null,null,null,null,null,null,"Vereins-Nr.",null,null,null,null,null,null,null,null,null,null,null,null,"( Mannschaft A )",null,null,null,null,null,null,null,null,null,null,null,null,null,null,null,null,null,null,null,null,null,null,null,null,null,null,"( Mannschaft B )",null,null,null,null,null,null,null,null,null,null,null,null,null,null,null,null,null,null,null,null,null,null,null,null,"Vereins-Nr.",null,null,null,null,null,null,null,null,null,null,null,null,null,{"$f":"DU8","v":0}]
[null,null,null,"Doppel",null,null,null,null,null,null,null,null,"A1",null,null,null,null,null,null,null,null,null,null,null,null,null,null,null,null,null,null,null,null,null,null,null,null,null,null,null,null,null,null,null,null,null,null,null,null,null,null,null,null,null,null,null,null,null,null,null,null,null,null,"Doppel",null,null,null,null,null,null,null,null,"B1",null,null,null,null,null,null,null,null,null,null,null,null,null,null,null,null,null,null,null,null,null,null,null,null,null,null,null,null,null,null,null,null,null,null,null,null,null,null,null,null,null,null,null,null,null,null,null,null,null,null,null,null,null,null,null,null,null,null,null,null,null,null,null,null,null,null,null,null,null,null,null,null,null,null,null,null,null,null,null,null,null,null,null,null,null,null,null,null,null,null,null,null,null,null,null,null,null,null,null,null,null,null,null,null,null,null,null,null,null,null,null,null,null,null,null,null,null,null,null,null,null,null,null,null,null,null,null,null,null,null,{"$f":"SUM(ED19:EH28)","v":0}]
[null,null,null,"Doppel",null,null,null,null,null,null,null,null,"A2",null,null,null,null,null,null,null,null,null,null,null,null,null,null,null,null,null,null,null,null,null,null,null,null,null,null,null,null,null,null,null,null,null,null,null,null,null,null,null,null,null,null,null,null,null,null,null,null,null,null,"Doppel",null,null,null,null,null,null,null,null,"B2",null,null,null,null,null,null,null,null,null,null,null,null,null,null,null,null,null,null,null,null,null,null,null,null,null,null,null,null,null,null,null,null,null,null,null,null,null,null,null,null,null,null,null,null,null,null,null,null,null,null,"Unterschriften Mannschaftsführer",null,null,null,null,null,null,null,null,null,null,null,null,null,null,null,null,null,null,null,null,null,null,null,null,null,null,null,null,null,null,null,null,null,null,null,null,null,null,null,null,null,null,null,null,null,null,null,null,null,null,null,null,null,null,null,null,null,null,null,null,null,null,null,null,null,null,null,null,null,null,null,null,null,null,null,null,null,null,null,{"$f":"SUM(EN19:ER28)","v":0},null,null,null,null,null,null,"In den",null,null,null,null,null,null,null,null,null,null,"gelb markierten Zellen"]
[null,null,null,null,null,null,null,null,null,null,null,null,null,null,null,null,null,null,null,null,null,null,null,null,null,null,null,null,null,null,null,null,null,null,null,null,null,null,null,null,null,null,null,null,null,null,null,null,null,null,null,null,null,null,null,null,null,null,null,null,null,null,null,null,null,null,null,null,null,null,null,null,null,null,null,null,null,null,null,null,null,null,null,null,null,null,null,null,null,null,null,null,null,null,null,null,null,null,null,null,null,null,null,null,null,null,null,null,null,null,null,null,null,null,null,null,null,null,null,null,null,null,null,null,null,null,null,null,null,null,null,null,null,null,null,null,null,null,null,null,null,null,null,null,null,null,null,null,null,null,null,null,null,null,null,null,null,null,null,null,null,null,null,null,null,null,null,null,null,null,null,null,null,null,null,null,null,null,null,null,null,null,null,null,null,null,null,null,null,null,null,null,null,null,null,null,null,null,null,null,null,null,null,{"$f":"SUM(EX19:FB28)","v":0},null,null,null,null,null,null,"müssen Eintragungen"]
[null,null,null,"Staffelleiter :",null,null,null,null,null,null,null,null,null,null,null,null,"Matthias Höger - Erlenweg 8 - 86697 Unterhausen",null,null,null,null,null,null,null,null,null,null,null,null,null,null,null,null,null,null,null,null,null,null,null,null,null,null,null,null,null,null,null,null,null,null,null,null,null,null,null,null,null,null,null,null,null,null,"0176-46577799",null,null,null,null,null,null,null,null,null,null,null,null,null,null,null,null,null,"matthias.hoeger@ttkreis-bayreuth.de",null,null,null,null,null,null,null,null,null,null,null,null,null,null,null,null,null,null,null,null,null,null,null,null,null,null,null,null,null,null,null,null,null,null,null,null,null,null,null,null,null,null,null,null,null,null,null,null,null,null,null,null,null,null,null,null,null,null,null,null,null,null,null,null,null,null,null,null,null,null,null,null,null,null,null,null,null,null,null,null,null,null,null,null,null,null,null,null,null,null,null,null,null,null,null,null,null,null,null,null,null,null,null,null,null,null,null,null,null,null,null,null,null,null,null,null,null,null,null,null,null,{"$f":"SUM(FH19:FL28)","v":0},null,null,null,null,null,null,"vorgenommen werden"]
[null,null,null,"Mannschaftsf. :",null,null,null,null,null,null,null,null,null,null,null,null,null,null,null,null,null,null,null,null,null,null,null,null,null,null,null,null,null,null,null,null,null,null,null,null,null,null,null,null,null,null,null,null,null,null,null,null,null,null,null,null,null,null,null,null,null,null,null,null,null,null,null,null,null,null,null,null,null,null,null,null,null,null,null,null,null,null,null,null,null,null,null,null,null,null,null,null,null,null,null,null,null,null,null,null,null,null,null,null,null,null,null,null,null,null,null,null,null,null,null,null,null,null,null,null,null,null,null,null,"Heimverein",null,null,null,null,null,null,null,null,null,null,null,null,null,null,null,null,null,null,null,null,null,null,null,null,null,null,null,null,null,null,null,null,null,null,null,null,null,null,null,null,null,"Gastverein",null,null,null,null,null,null,null,null,null,null,null,null,null,null,null,null,null,null,null,null,null,null,null,null,null,null,null,null,null,null,null,null,null,null,null,null,{"$f":"SUM(FR19:FV28)","v":0},null,null,null,null,null,null,"Rest wird automatisch erledigt"]
[null,null,null,"Bitte zutreffendes Spielsystem ankreuzen",null,null,null,null,null,null,null,null,null,null,null,null,null,null,null,null,null,null,null,null,null,null,null,null,null,null,null,null,null,null,null,null,null,null,null,null,null,null,null,null,null,null,null,null,null,null,null,null,null,null,null,null,null,null,null,null,null,null,null,null,null,null,null,null,null,null,null,null,null,null,null,null,null,null,null,null,null,null,null,null,null,null,null,null,null,null,null,null,null,null,null,null,null,null,null,null,null,null,null,null,null,null,null,null,null,null,null,null,null,null,null,null,null,null,null,null,null,null,null,"creadet by Gerhard Nidetzky",null,null,null,null,null,null,null,null,null,null,null,null,null,null,null,null,null,null,null,null,null,null,null,null,null,null,null,null,null,null,null,null,null,null,null,null,null,null,null,null,null,null,null,null,null,null,null,null,null,null,null,null,null,null,null,null,null,null,null,null,null,null,null,null,null,null,null,null,null,null,null,null,null,null,null,null,null,null,null,{"$f":"SUM(GV12:GV16)","v":0}]
[null,null,null,"X",null,null,null,"4 g 4",null,null,null,null,null,null,null,null,null,null,"4 g 3",null,null,null,null,null,null,null,null,null,null,"3 g 4",null,null,null,null,null,null,null,null,null,null,"3 g 3",null,null,null,null,null,null,"Heimverein ( Mannschaft A )",null,null,null,null,null,null,null,null,null,null,null,null,null,null,null,null,null,null,null,null,null,null,null,null,null,null,null,null,null,null,null,null,null,null,null,null,null,null,null,null,null,null,"Gastverein ( Mannschaft B )",null,null,null,null,null,null,null,null,null,null,null,null,null,null,null,null,null,null,null,null,null,null,null,null,null,null,null,null,null,null,null,null,null,null,null,null,null,null,null,null,null,null,"1. Satz",null,null,null,null,null,null,null,null,null,"2. Satz",null,null,null,null,null,null,null,null,null,"3. Satz",null,null,null,null,null,null,null,null,null,"4. Satz",null,null,null,null,null,null,null,null,null,"5. Satz",null,null,null,null,null,null,null,null,null,"SÄTZE",null,null,null,null,null,null,null,null,null,"SPIELE",null,null,null,null,null,null,null,null,null,null,null,null,null,null,null,null,"Alle Stammdaten werden"]
[null,null,null,"D",null,null,"A1-B1",null,null,null,null,null,null,null,"D",null,null,"A1-B1",null,null,null,null,null,null,null,"D",null,null,"A1-B1",null,null,null,null,null,null,null,"D",null,null,"A1-B1",null,null,null,null,null,null,null,{"$f":"Q12","v":0},null,null,null,null,null,null,null,null,null,null,null,null,null,null,null,null,null,null,null,null,null,null,null,null,null,null,null,null,null,null,null,null,null,null,null,null,null,null,null,null,null,null,{"$f":"BY12","v":0},null,null,null,null,null,null,null,null,null,null,null,null,null,null,null,null,null,null,null,null,null,null,null,null,null,null,null,null,null,null,null,null,null,null,null,null,null,null,null,null,null,null,null,null,null,null,null,null,null,null,null,null,null,null,null,null,null,null,null,null,null,null,null,null,null,null,null,null,null,null,null,null,null,null,null,null,null,null,null,null,null,null,null,null,null,null,null,null,null,null,null,null,{"$f":"IF(ED19=\"\",\"\",IF(ED19>EI19,1,0)+IF(EN19>ES19,1,0)+IF(EX19>FC19,1,0)+IF(FH19>FM19,1,0)+IF(FR19>FW19,1,0))","v":""},null,null,null,null,{"$f":"IF(ED19=\"\",\"\",IF(ED19<EI19,1,0)+IF(EN19<ES19,1,0)+IF(EX19<FC19,1,0)+IF(FH19<FM19,1,0)+IF(FR19<FW19,1,0))","v":""},null,null,null,null,{"$f":"IF(GB19=\"\",\"\",IF(GB19>GG19,1,0))","v":""},null,null,null,null,{"$f":"IF(GB19=\"\",\"\",IF(GB19<GG19,1,0))","v":""},null,null,null,null,{"$f":"FI8","v":0},null,null,null,null,null,null,"aus \"4g4\" übernommen"]
[null,null,null,"D",null,null,"A2-B2",null,null,null,null,null,null,null,"E",null,null,"A3-B3",null,null,null,null,null,null,null,"E",null,null,"A3-B3",null,null,null,null,null,null,null,"E",null,null,"A1-B2",null,null,null,null,null,null,null,{"$f":"Q13","v":0},null,null,null,null,null,null,null,null,null,null,null,null,null,null,null,null,null,null,null,null,null,null,null,null,null,null,null,null,null,null,null,null,null,null,null,null,null,null,null,null,null,null,{"$f":"BY13","v":0},null,null,null,null,null,null,null,null,null,null,null,null,null,null,null,null,null,null,null,null,null,null,null,null,null,null,null,null,null,null,null,null,null,null,null,null,null,null,null,null,null,null,null,null,null,null,null,null,null,null,null,null,null,null,null,null,null,null,null,null,null,null,null,null,null,null,null,null,null,null,null,null,null,null,null,null,null,null,null,null,null,null,null,null,null,null,null,null,null,null,null,null,{"$f":"IF(ED20=\"\",\"\",IF(ED20>EI20,1,0)+IF(EN20>ES20,1,0)+IF(EX20>FC20,1,0)+IF(FH20>FM20,1,0)+IF(FR20>FW20,1,0))","v":""},null,null,null,null,{"$f":"IF(ED20=\"\",\"\",IF(ED20<EI20,1,0)+IF(EN20<ES20,1,0)+IF(EX20<FC20,1,0)+IF(FH20<FM20,1,0)+IF(FR20<FW20,1,0))","v":""},null,null,null,null,{"$f":"IF(GB20=\"\",\"\",IF(GB20>GG20,1,0))","v":""},null,null,null,null,{"$f":"IF(GB20=\"\",\"\",IF(GB20<GG20,1,0))","v":""},null,null,null,null,{"$f":"SUM(EI19:EM28)","v":0},null,null,null,null,null,null,"und erscheinen dann auch"]
[null,null,null,"E",null,null,"A1-B1",null,null,null,null,null,null,null,"E",null,null,"A1-B2",null,null,null,null,null,null,null,"E",null,null,"A2-B1",null,null,null,null,null,null,null,"E",null,null,"A2-B1",null,null,null,null,null,null,null,{"$f":"Q8","v":0},null,null,null,null,null,null,null,null,null,null,null,null,null,null,null,null,null,null,null,null,null,null,null,null,null,null,null,null,null,null,null,null,null,null,null,null,null,null,null,null,null,null,{"$f":"BY8","v":0},null,null,null,null,null,null,null,null,null,null,null,null,null,null,null,null,null,null,null,null,null,null,null,null,null,null,null,null,null,null,null,null,null,null,null,null,null,null,null,null,null,null,null,null,null,null,null,null,null,null,null,null,null,null,null,null,null,null,null,null,null,null,null,null,null,null,null,null,null,null,null,null,null,null,null,null,null,null,null,null,null,null,null,null,null,null,null,null,null,null,null,null,"",null,null,null,null,"",null,null,null,null,"",null,null,null,null,"",null,null,null,null,{"$f":"SUM(ES19:EW28)","v":0},null,null,null,null,null,null,"in den anderen 4 Dateien"]
[null,null,null,"E",null,null,"A2-B2",null,null,null,null,null,null,null,"E",null,null,"A2-B1",null,null,null,null,null,null,null,"E",null,null,"A1-B2",null,null,null,null,null,null,null,"E",null,null,"A3-B2",null,null,null,null,null,null,null,{"$f":"Q9","v":0},null,null,null,null,null,null,null,null,null,null,null,null,null,null,null,null,null,null,null,null,null,null,null,null,null,null,null,null,null,null,null,null,null,null,null,null,null,null,null,null,null,null,{"$f":"BY9","v":0},null,null,null,null,null,null,null,null,null,null,null,null,null,null,null,null,null,null,null,null,null,null,null,null,null,null,null,null,null,null,null,null,null,null,null,null,null,null,null,null,null,null,null,null,null,null,null,null,null,null,null,null,null,null,null,null,null,null,null,null,null,null,null,null,null,null,null,null,null,null,null,null,null,null,null,null,null,null,null,null,null,null,null,null,null,null,null,null,null,null,null,null,"",null,null,null,null,"",null,null,null,null,"",null,null,null,null,"",null,null,null,null,{"$f":"SUM(FC19:FG28)","v":0}]
[null,null,null,"E",null,null,"A3-B3",null,null,null,null,null,null,null,"E",null,null,"A4-B2",null,null,null,null,null,null,null,"E",null,null,"A2-B4",null,null,null,null,null,null,null,"E",null,null,"A2-B3",null,null,null,null,null,null,null,{"$f":"Q10","v":0},null,null,null,null,null,null,null,null,null,null,null,null,null,null,null,null,null,null,null,null,null,null,null,null,null,null,null,null,null,null,null,null,null,null,null,null,null,null,null,null,null,null,{"$f":"BY10","v":0},null,null,null,null,null,null,null,null,null,null,null,null,null,null,null,null,null,null,null,null,null,null,null,null,null,null,null,null,null,null,null,null,null,null,null,null,null,null,null,null,null,null,null,null,null,null,null,null,null,null,null,null,null,null,null,null,null,null,null,null,null,null,null,null,null,null,null,null,null,null,null,null,null,null,null,null,null,null,null,null,null,null,null,null,null,null,null,null,null,null,null,null,"",null,null,null,null,"",null,null,null,null,"",null,null,null,null,"",null,null,null,null,{"$f":"SUM(FM19:FQ28)","v":0},null,null,null,null,null,null,"es empfielt sich die jeweils die"]
[null,null,null,"E",null,null,"A4-B4",null,null,null,null,null,null,null,"E",null,null,"A1-B1",null,null,null,null,null,null,null,"E",null,null,"A1-B1",null,null,null,null,null,null,null,"E",null,null,"A1-B1",null,null,null,null,null,null,null,{"$f":"Q11","v":0},null,null,null,null,null,null,null,null,null,null,null,null,null,null,null,null,null,null,null,null,null,null,null,null,null,null,null,null,null,null,null,null,null,null,null,null,null,null,null,null,null,null,{"$f":"BY11","v":0},null,null,null,null,null,null,null,null,null,null,null,null,null,null,null,null,null,null,null,null,null,null,null,null,null,null,null,null,null,null,null,null,null,null,null,null,null,null,null,null,null,null,null,null,null,null,null,null,null,null,null,null,null,null,null,null,null,null,null,null,null,null,null,null,null,null,null,null,null,null,null,null,null,null,null,null,null,null,null,null,null,null,null,null,null,null,null,null,null,null,null,null,"",null,null,null,null,"",null,null,null,null,"",null,null,null,null,"",null,null,null,null,{"$f":"SUM(FW19:GA28)","v":0},null,null,null,null,null,null,"zu nutzende, notwendige Datei"]
[null,null,null,"E",null,null,"A1-B2",null,null,null,null,null,null,null,"E",null,null,"A4-B3",null,null,null,null,null,null,null,"E",null,null,"A3-B4",null,null,null,null,null,null,null,"E",null,null,"A3-B3",null,null,null,null,null,null,null,{"$f":"Q8","v":0},null,null,null,null,null,null,null,null,null,null,null,null,null,null,null,null,null,null,null,null,null,null,null,null,null,null,null,null,null,null,null,null,null,null,null,null,null,null,null,null,null,null,{"$f":"BY9","v":0},null,null,null,null,null,null,null,null,null,null,null,null,null,null,null,null,null,null,null,null,null,null,null,null,null,null,null,null,null,null,null,null,null,null,null,null,null,null,null,null,null,null,null,null,null,null,null,null,null,null,null,null,null,null,null,null,null,null,null,null,null,null,null,null,null,null,null,null,null,null,null,null,null,null,null,null,null,null,null,null,null,null,null,null,null,null,null,null,null,null,null,null,"",null,null,null,null,"",null,null,null,null,"",null,null,null,null,"",null,null,null,null,{"$f":"SUM(GV20:GV24)","v":0},null,null,null,null,null,null,"innerhalb dieses Tabellenblattes"]
[null,null,null,"E",null,null,"A2-B1",null,null,null,null,null,null,null,"E",null,null,"A2-B2",null,null,null,null,null,null,null,"E",null,null,"A2-B2",null,null,null,null,null,null,null,"E",null,null,"A2-B2",null,null,null,null,null,null,null,{"$f":"Q9","v":0},null,null,null,null,null,null,null,null,null,null,null,null,null,null,null,null,null,null,null,null,null,null,null,null,null,null,null,null,null,null,null,null,null,null,null,null,null,null,null,null,null,null,{"$f":"BY8","v":0},null,null,null,null,null,null,null,null,null,null,null,null,null,null,null,null,null,null,null,null,null,null,null,null,null,null,null,null,null,null,null,null,null,null,null,null,null,null,null,null,null,null,null,null,null,null,null,null,null,null,null,null,null,null,null,null,null,null,null,null,null,null,null,null,null,null,null,null,null,null,null,null,null,null,null,null,null,null,null,null,null,null,null,null,null,null,null,null,null,null,null,null,"",null,null,null,null,"",null,null,null,null,"",null,null,null,null,"",null,null,null,null,null,null,null,null,null,null,null,"zu \"verschieben / kopieren\""]
[null,null,null,"E",null,null,"A3-B4",null,null,null,null,null,null,null,"E",null,null,"A1-B3",null,null,null,null,null,null,null,"E",null,null,"A3-B1",null,null,null,null,null,null,null,"E",null,null,"A3-B1",null,null,null,null,null,null,null,{"$f":"Q10","v":0},null,null,null,null,null,null,null,null,null,null,null,null,null,null,null,null,null,null,null,null,null,null,null,null,null,null,null,null,null,null,null,null,null,null,null,null,null,null,null,null,null,null,{"$f":"BY11","v":0},null,null,null,null,null,null,null,null,null,null,null,null,null,null,null,null,null,null,null,null,null,null,null,null,null,null,null,null,null,null,null,null,null,null,null,null,null,null,null,null,null,null,null,null,null,null,null,null,null,null,null,null,null,null,null,null,null,null,null,null,null,null,null,null,null,null,null,null,null,null,null,null,null,null,null,null,null,null,null,null,null,null,null,null,null,null,null,null,null,null,null,null,"",null,null,null,null,"",null,null,null,null,"",null,null,null,null,"",null,null,null,null,null,null,null,null,null,null,null,"oder zu jedem neuen Spiel"]
[null,null,null,"E",null,null,"A4-B3",null,null,null,null,null,null,null,"E",null,null,"A3-B1",null,null,null,null,null,null,null,"E",null,null,"A1-B3",null,null,null,null,null,null,null,"E",null,null,"A1-B3",null,null,null,null,null,null,null,{"$f":"Q11","v":0},null,null,null,null,null,null,null,null,null,null,null,null,null,null,null,null,null,null,null,null,null,null,null,null,null,null,null,null,null,null,null,null,null,null,null,null,null,null,null,null,null,null,{"$f":"BY10","v":0},null,null,null,null,null,null,null,null,null,null,null,null,null,null,null,null,null,null,null,null,null,null,null,null,null,null,null,null,null,null,null,null,null,null,null,null,null,null,null,null,null,null,null,null,null,null,null,null,null,null,null,null,null,null,null,null,null,null,null,null,null,null,null,null,null,null,null,null,null,null,null,null,null,null,null,null,null,null,null,null,null,null,null,null,null,null,null,null,null,null,null,null,"",null,null,null,null,"",null,null,null,null,"",null,null,null,null,"",null,null,null,null,null,null,null,null,null,null,null,"die Gesamtdatei zu kopieren !"]
[null,null,null,"Spielort :",null,null,null,null,null,null,null,null,null,null,"daheim",null,null,null,null,null,null,null,null,null,null,null,null,null,null,null,null,null,null,null,null,null,null,null,null,null,null,"Spielbeginn :",null,null,null,null,null,null,null,null,null,null,null,null,null,null,null,null,null,null,null,null,null,null,null,null,null,"Uhr",null,null,null,null,null,null,null,null,null,null,null,null,null,null,null,null,null,null,null,null,null,null,null,null,null,null,null,null,null,null,null,null,null,null,null,null,null,null,null,null,null,null,null,null,null,null,null,null,null,null,null,null,null,null,null,null,null,null,null,null,null,null,null,null,null,null,null,null,null,null,null,null,null,null,null,null,null,null,null,null,null,null,null,null,null,null,null,null,null,null,null,null,null,null,"Heim",null,null,null,null,null,null,"Gast",null,null,null,null,null,null,null,null,null,null,null,null,null,{"$f":"IF(GB19=\"\",\"\",SUM(GB19:GF28))","v":""},null,null,null,null,{"$f":"IF(GG19=\"\",\"\",SUM(GG19:GK28))","v":""},null,null,null,null,{"$f":"IF(GL19=\"\",\"\",SUM(GL19:GP28))","v":""},null,null,null,null,{"$f":"IF(GQ19=\"\",\"\",SUM(GQ19:GU28))","v":""}]
[null,null,null,null,null,null,null,null,null,null,null,null,null,null,null,null,null,null,null,null,null,null,null,null,null,null,null,null,null,null,null,null,null,null,null,null,null,null,null,null,null,null,null,null,null,null,null,null,null,null,null,null,null,null,null,null,null,null,null,null,null,null,null,null,null,null,null,null,null,null,null,null,null,null,null,null,null,null,null,null,null," kein Protest",null,null,null,null,null,null,null,null,null,null,null,null,null,null,null,null,null,null,null,null,null,null,null,null,null,null,null,null,null,{"$f":"IF(EY31=FF31,\"\",IF(EY31>FF31,GV7,GV9))","v":""},null,null,null,null,null,null,null,null,null,null,null,null,null,null,null,null,null,null,null,null,null,null,null,null,null,null,null,null,null,null,null,null,null,null,null,null,null,null,null,null,null,null,"Bälle",null,null,null,null,null,null,null,{"$f":"GV17","v":0},null,null,null,null,null,":",{"$f":"GV25","v":0},null,null,null,null,null,null,null,null,null,null,null,null,null,null,null,null,null,null,null,null,null,null,null,null,null,null,null,null,null,null,null,null,null,null,null,null,null,null,null,null,"letzte Änderung :",null,null,null,null,null,null,null,null,null,null,null,null,null,null,null,null,null,null,null,null,null,null,null,null,null,null,null,null,null,"2016-06-08"]
[null,null,null,"Datum :",null,null,null,null,null,null,null,null,null,null,{"$f":"TODAY()","v":"2016-06-08"},null,null,null,null,null,null,null,null,null,null,null,null,null,null,null,null,null,null,null,null,null,null,null,null,null,null,"Spielende :",null,null,null,null,null,null,null,null,null,null,null,null,null,null,null,null,null,null,null,null,null,null,null,null,null,"Uhr",null,null,null,null,null,null,null,null,null,null,null,null,null,null,null,null,null,null,null,null,null,null,null,null,null,null,null,null,null,null,null,null,null,null,null,null,null,null,null,null,null,null,null,{"$f":"GV6","v":""},null,null,null,null,null,null,null,null,null,null,null,null,null,null,null,null,null,null,null,null,null,null,null,null,null,null,null,null,null,null,null,null,null,null,null,null,null,null,null,null,null,null,{"$f":"IF(GL29>GQ29,GL29,GQ29)","v":""},null,null,null,null,":",null,{"$f":"IF(GL29<GQ29,GL29,GQ29)","v":""},null,null,null,null,null,"Spiele",null,null,null,null,null,null,null,null,"und",null,null,null,null,null,{"$f":"IF(GL29>=GQ29,GB29,GG29)","v":""},null,null,null,null,":",null,{"$f":"IF(GL29<=GQ29,GB29,GG29)","v":""},null,null,null,null,null,"Sätze"]
[null,null,null,null,null,null,null,null,null,null,null,null,null,null,null,null,null,null,null,null,null,null,null,null,null,null,null,null,null,null,null,null,null,null,null,null,null,null,null,null,null,null,null,null,null,null,null,null,null,null,null,null,null,null,null,null,null,null,null,null,null,null,null,null,null,null,null,null,null,null,null,null,null,null,null,null,null,null,null,null,null," Protest - siehe Anlage"]

{"sheet":"4g4 Q","index":1,"n_rows":32,"n_cols":204,"rows_kept":32,"cut":false,"hidden":false,"merged":[[32,3,32,202],[30,175,31,175],[30,176,31,180],[30,181,31,181],[30,182,31,186],[30,187,31,188],[30,189,31,193],[30,67,31,72],[30,77,30,110],[30,111,31,151],[30,154,31,158],[30,159,31,160],[30,161,31,165],[28,73,31,76],[28,3,29,13],[28,14,29,37],[28,38,31,40],[28,41,29,55],[28,56,29,66],[28,67,29,72],[28,198,29,202],[29,77,29,80],[29,81,29,110],[29,111,29,151],[29,152,31,153],[29,154,29,161],[28,77,28,110],[28,111,28,151],[28,152,28,161],[28,162,28,167],[28,169,28,174],[29,162,29,167],[29,169,29,174],[30,166,31,166],[30,167,31,174],[30,194,31,194],[30,195,31,202],[31,77,31,80],[31,81,31,110],[30,3,31,13],[30,14,31,37],[30,41,31,55],[30,56,31,66],[27,173,27,177],[27,178,27,182],[27,183,27,187],[27,188,27,192],[27,193,27,197],[27,3,27,5],[27,6,27,13],[27,14,27,16],[27,17,27,24],[27,25,27,27],[27,28,27,35],[28,175,29,182],[28,183,29,187],[28,188,29,192],[28,193,29,197],[27,198,27,202],[27,143,27,147],[27,148,27,152],[27,153,27,157],[27,158,27,162],[27,163,27,167],[27,168,27,172],[27,36,27,38],[27,39,27,46],[27,47,27,89],[27,90,27,132],[27,133,27,137],[27,138,27,142],[26,173,26,177],[26,178,26,182],[26,183,26,187],[26,188,26,192],[26,193,26,197],[26,198,26,202],[26,143,26,147],[26,148,26,152],[26,153,26,157],[26,158,26,162],[26,163,26,167],[26,168,26,172],[26,36,26,38],[26,39,26,46],[26,47,26,89],[26,90,26,132],[26,133,26,137],[26,138,26,142],[26,3,26,5],[26,6,26,13],[26,14,26,16],[26,17,26,24],[26,25,26,27],[26,28,26,35],[25,173,25,177],[25,178,25,182],[25,183,25,187],[25,188,25,192],[25,193,25,197],[25,198,25,202],[25,143,25,147],[25,148,25,152],[25,153,25,157],[25,158,25,162],[25,163,25,167],[25,168,25,172],[25,36,25,38],[25,39,25,46],[25,47,25,89],[25,90,25,132],[25,133,25,137],[25,138,25,142],[25,3,25,5],[25,6,25,13],[25,14,25,16],[25,17,25,24],[25,25,25,27],[25,28,25,35],[24,173,24,177],[24,178,24,182],[24,183,24,187],[24,188,24,192],[24,193,24,197],[24,198,24,202],[24,143,24,147],[24,148,24,152],[24,153,24,157],[24,158,24,162],[24,163,24,167],[24,168,24,172],[24,36,24,38],[24,39,24,46],[24,47,24,89],[24,90,24,132],[24,133,24,137],[24,138,24,142],[24,3,24,5],[24,6,24,13],[24,14,24,16],[24,17,24,24],[24,25,24,27],[24,28,24,35],[23,173,23,177],[23,178,23,182],[23,183,23,187],[23,188,23,192],[23,193,23,197],[23,198,23,202],[23,143,23,147],[23,148,23,152],[23,153,23,157],[23,158,23,162],[23,163,23,167],[23,168,23,172],[23,36,23,38],[23,39,23,46],[23,47,23,89],[23,90,23,132],[23,133,23,137],[23,138,23,142],[23,3,23,5],[23,6,23,13],[23,14,23,16],[23,17,23,24],[23,25,23,27],[23,28,23,35],[22,173,22,177],[22,178,22,182],[22,183,22,187],[22,188,22,192],[22,193,22,197],[22,198,22,202],[22,143,22,147],[22,148,22,152],[22,153,22,157],[22,158,22,162],[22,163,22,167],[22,168,22,172],[22,36,22,38],[22,39,22,46],[22,47,22,89],[22,90,22,132],[22,133,22,137],[22,138,22,142],[22,3,22,5],[22,6,22,13],[22,14,22,16],[22,17,22,24],[22,25,22,27],[22,28,22,35],[21,173,21,177],[21,178,21,182],[21,183,21,187],[21,188,21,192],[21,193,21,197],[21,198,21,202],[21,143,21,147],[21,148,21,152],[21,153,21,157],[21,158,21,162],[21,163,21,167],[21,168,21,172],[21,36,21,38],[21,39,21,46],[21,47,21,89],[21,90,21,132],[21,133,21,137],[21,138,21,142],[21,3,21,5],[21,6,21,13],[21,14,21,16],[21,17,21,24],[21,25,21,27],[21,28,21,35],[20,173,20,177],[20,178,20,182],[20,183,20,187],[20,188,20,192],[20,193,20,197],[20,198,20,202],[20,143,20,147],[20,148,20,152],[20,153,20,157],[20,158,20,162],[20,163,20,167],[20,168,20,172],[20,36,20,38],[20,39,20,46],[20,47,20,89],[20,90,20,132],[20,133,20,137],[20,138,20,142],[20,3,20,5],[20,6,20,13],[20,14,20,16],[20,17,20,24],[20,25,20,27],[20,28,20,35],[19,3,19,5],[19,6,19,13],[19,14,19,16],[19,17,19,24],[19,25,19,27],[19,28,19,35],[19,173,19,177],[19,178,19,182],[19,183,19,187],[19,143,19,147],[19,148,19,152],[19,153,19,157],[19,158,19,162],[19,163,19,167],[19,168,19,172],[19,36,19,38],[19,39,19,46],[19,47,19,89],[19,90,19,132],[19,133,19,137],[19,138,19,142],[19,188,19,192],[19,193,19,197],[19,198,19,202],[17,3,17,6],[17,7,17,13],[17,14,17,17],[17,18,17,24],[17,25,17,28],[17,29,17,35],[17,36,17,39],[18,193,18,197],[18,198,18,202],[18,143,18,147],[18,148,18,152],[18,153,18,157],[18,158,18,162],[18,163,18,167],[18,168,18,172],[18,133,18,137],[18,138,18,142],[17,193,17,202],[18,3,18,5],[18,6,18,13],[18,14,18,16],[18,17,18,24],[18,25,18,27],[18,28,18,35],[17,40,17,46],[17,47,17,89],[17,90,17,132],[17,133,17,142],[17,143,17,152],[17,153,17,162],[18,36,18,38],[18,39,18,46],[18,47,18,89],[18,90,18,132],[17,163,17,172],[17,173,17,182],[17,183,17,192],[18,173,18,177],[18,178,18,182],[18,183,18,187],[18,188,18,192],[15,166,15,201],[13,3,13,118],[13,123,15,123],[13,124,14,159],[13,160,15,165],[13,166,14,201],[16,3,16,46],[16,47,16,118],[16,123,16,202],[13,202,15,202],[14,3,14,15],[14,16,14,62],[14,63,14,80],[14,81,14,118],[15,3,15,15],[15,16,15,62],[15,63,15,80],[15,81,15,118],[15,124,15,159],[11,123,11,202],[12,3,12,11],[12,12,12,15],[12,16,12,58],[12,63,12,71],[12,72,12,75],[12,76,12,118],[12,123,12,202],[11,3,11,11],[11,12,11,15],[11,16,11,58],[11,63,11,71],[11,72,11,75],[11,76,11,118],[9,195,9,201],[10,3,10,11],[10,12,10,15],[10,16,10,51],[10,52,10,58],[10,63,10,71],[10,72,10,75],[10,76,10,111],[10,112,10,118],[10,124,10,136],[9,124,9,129],[9,130,9,136],[9,137,9,161],[9,162,10,163],[9,164,9,188],[9,189,9,194],[10,137,10,161],[10,164,10,188],[10,189,10,201],[7,63,7,71],[7,72,7,75],[7,76,7,111],[8,76,8,111],[8,112,8,118],[9,3,9,11],[9,12,9,15],[9,16,9,51],[9,52,9,58],[9,63,9,71],[9,72,9,75],[9,76,9,111],[9,112,9,118],[4,142,4,145],[5,3,5,122],[5,123,5,202],[6,3,6,51],[6,52,6,58],[6,59,12,62],[6,63,6,111],[6,112,6,118],[6,119,16,122],[6,124,6,201],[7,3,7,11],[7,112,7,118],[7,124,8,161],[7,162,8,163],[7,164,8,201],[8,3,8,11],[8,12,8,15],[8,16,8,51],[8,52,8,58],[8,63,8,71],[8,72,8,75],[7,12,7,15],[7,16,7,51],[7,52,7,58],[0,0,32,2],[0,3,0,202],[0,204,32,206],[1,3,2,202],[3,3,4,17],[3,18,4,20],[3,21,4,37],[3,38,4,40],[3,41,4,67],[3,68,4,70],[3,164,4,165],[3,166,4,179],[3,180,4,180],[3,181,4,190],[3,191,4,192],[3,193,4,202],[3,71,4,85],[3,86,4,113],[3,114,3,123],[3,124,4,140],[3,141,3,146],[3,147,4,163],[4,114,4,118],[4,119,4,122]]}
[]
[null,null,null,"Spielberichts-Formular",null,null,null,null,null,null,null,null,null,null,null,null,null,null,null,null,null,null,null,null,null,null,null,null,null,null,null,null,null,null,null,null,null,null,null,null,null,null,null,null,null,null,null,null,null,null,null,null,null,null,null,null,null,null,null,null,null,null,null,null,null,null,null,null,null,null,null,null,null,null,null,null,null,null,null,null,null,null,null,null,null,null,null,null,null,null,null,null,null,null,null,null,null,null,null,null,null,null,null,null,null,null,null,null,null,null,null,null,null,null,null,null,null,null,null,null,null,null,null,null,null,null,null,null,null,null,null,null,null,null,null,null,null,null,null,null,null,null,null,null,null,null,null,null,null,null,null,null,null,null,null,null,null,null,null,null,null,null,null,null,null,null,null,null,null,null,null,null,null,null,null,null,null,null,null,null,null,null,null,null,null,null,null,null,null,null,null,null,null,null,null,null,null,null,null,null,null,null,null,{"$f":"IF(GL29=GQ29,\"\",IF(GL29>GQ29,DU8,FI8))","v":""}]
[null,null,null,null,null,null,null,null,null,null,null,null,null,null,null,null,null,null,null,null,null,null,null,null,null,null,null,null,null,null,null,null,null,null,null,null,null,null,null,null,null,null,null,null,null,null,null,null,null,null,null,null,null,null,null,null,null,null,null,null,null,null,null,null,null,null,null,null,null,null,null,null,null,null,null,null,null,null,null,null,null,null,null,null,null,null,null,null,null,null,null,null,null,null,null,null,null,null,null,null,null,null,null,null,null,null,null,null,null,null,null,null,null,null,null,null,null,null,null,null,null,null,null,null,null,null,null,null,null,null,null,null,null,null,null,null,null,null,null,null,null,null,null,null,null,null,null,null,null,null,null,null,null,null,null,null,null,null,null,null,null,null,null,null,null,null,null,null,null,null,null,null,null,null,null,null,null,null,null,null,null,null,null,null,null,null,null,null,null,null,null,null,null,null,null,null,null,null,null,null,null,null,null,{"$f":"IF(GL29=\"\",\"\",IF(GL29=GQ29,GV8))","v":""}]
[null,null,null,"HERREN",null,null,null,null,null,null,null,null,null,null,null,null,null,null,"-",null,null,"Verbands",null,null,null,null,null,null,null,null,null,null,null,null,null,null,null,null,"-",null,null,"Mannschaftsspiel",null,null,null,null,null,null,null,null,null,null,null,null,null,null,null,null,null,null,null,null,null,null,null,null,null,null,null,null,null,"Spielklasse :",null,null,null,null,null,null,null,null,null,null,null,null,null,null,"4. Kreisliga Mitte",null,null,null,null,null,null,null,null,null,null,null,null,null,null,null,null,null,null,null,null,null,null,null,null,null,null,null,null,null,null,null,null,null,null,null,null,null,"Vorrunde",null,null,null,null,null,null,null,null,null,null,null,null,null,null,null,null,null,null,null,null,null,null,"Rückrunde",null,null,null,null,null,null,null,null,null,null,null,null,null,null,null,null,null,null,"SAISON",null,null,null,null,null,null,null,null,null,null,null,null,null,null,2016,null,null,null,null,null,null,null,null,null,"/",null,{"$f":"FZ4+1","v":2017}]
[]
[null,null,null,null,null,null,null,null,null,null,null,null,null,null,null,null,null,null,null,null,null,null,null,null,null,null,null,null,null,null,null,null,null,null,null,null,null,null,null,null,null,null,null,null,null,null,null,null,null,null,null,null,null,null,null,null,null,null,null,null,null,null,null,null,null,null,null,null,null,null,null,null,null,null,null,null,null,null,null,null,null,null,null,null,null,null,null,null,null,null,null,null,null,null,null,null,null,null,null,null,null,null,null,null,null,null,null,null,null,null,null,null,null,null,null,null,null,null,null,null,null,null,null,null,null,null,null,null,null,null,null,null,null,null,null,null,null,null,null,null,null,null,null,null,null,null,null,null,null,null,null,null,null,null,null,null,null,null,null,null,null,null,null,null,null,null,null,null,null,null,null,null,null,null,null,null,null,null,null,null,null,null,null,null,null,null,null,null,null,null,null,null,null,null,null,null,null,null,null,null,null,null,null,{"$f":"IF(GL29<>GQ29,GV2,GV3)","v":""}]
[null,null,null,"Mannschaftsaufstellung   -   Heimverein",null,null,null,null,null,null,null,null,null,null,null,null,null,null,null,null,null,null,null,null,null,null,null,null,null,null,null,null,null,null,null,null,null,null,null,null,null,null,null,null,null,null,null,null,null,null,null,null,"Pos.",null,null,null,null,null,null,null,null,null,null,"Mannschaftsaufstellung   -   Gastverein",null,null,null,null,null,null,null,null,null,null,null,null,null,null,null,null,null,null,null,null,null,null,null,null,null,null,null,null,null,null,null,null,null,null,null,null,null,null,null,null,null,null,null,null,null,null,null,null,"Pos.",null,null,null,null,null,null,null,null,null,null,null,"Spielpaarung",null,null,null,null,null,null,null,null,null,null,null,null,null,null,null,null,null,null,null,null,null,null,null,null,null,null,null,null,null,null,null,null,null,null,null,null,null,null,null,null,null,null,null,null,null,null,null,null,null,null,null,null,null,null,null,null,null,null,null,null,null,null,null,null,null,null,null,null,null,null,null,null,null,null,null,null,null,null,"Sieger"]
[null,null,null,"Einzel",null,null,null,null,null,null,null,null,"A1",null,null,null,"AA",null,null,null,null,null,null,null,null,null,null,null,null,null,null,null,null,null,null,null,null,null,null,null,null,null,null,null,null,null,null,null,null,null,null,null,null,null,null,null,null,null,null,null,null,null,null,"Einzel",null,null,null,null,null,null,null,null,"B1",null,null,null,null,null,null,null,null,null,null,null,null,null,null,null,null,null,null,null,null,null,null,null,null,null,null,null,null,null,null,null,null,null,null,null,null,null,null,null,null,null,null,null,null,null,null,null,null,null,null,null,null,null,null,null,null,null,null,null,null,null,null,null,null,null,null,null,null,null,null,null,null,null,null,null,null,null,null,null,null,null,null,null,null,null,null,null,null,null,":",null,null,null,null,null,null,null,null,null,null,null,null,null,null,null,null,null,null,null,null,null,null,null,null,null,null,null,null,null,null,null,null,null,null,null,null,null,null,null,null,"Unentschieden"]
[null,null,null,"Einzel",null,null,null,null,null,null,null,null,"A2",null,null,null,"BB",null,null,null,null,null,null,null,null,null,null,null,null,null,null,null,null,null,null,null,null,null,null,null,null,null,null,null,null,null,null,null,null,null,null,null,null,null,null,null,null,null,null,null,null,null,null,"Einzel",null,null,null,null,null,null,null,null,"B2"]
[null,null,null,"Einzel",null,null,null,null,null,null,null,null,"A3",null,null,null,"CC",null,null,null,null,null,null,null,null,null,null,null,null,null,null,null,null,null,null,null,null,null,null,null,null,null,null,null,null,null,null,null,null,null,null,null,null,null,null,null,null,null,null,null,null,null,null,"Einzel",null,null,null,null,null,null,null,null,"B3",null,null,null,null,null,null,null,null,null,null,null,null,null,null,null,null,null,null,null,null,null,null,null,null,null,null,null,null,null,null,null,null,null,null,null,null,null,null,null,null,null,null,null,null,null,null,null,null,null,null,null,508,null,null,null,null,null,null,null,null,null,null,null,null,"Heimverein",null,null,null,null,null,null,null,null,null,null,null,null,null,null,null,null,null,null,null,null,null,null,null,null,null,null,"Gastverein",null,null,null,null,null,null,null,null,null,null,null,null,null,null,null,null,null,null,null,null,null,null,null,null,508]
[null,null,null,"Einzel",null,null,null,null,null,null,null,null,"A4",null,null,null,"DD",null,null,null,null,null,null,null,null,null,null,null,null,null,null,null,null,null,null,null,null,null,null,null,null,null,null,null,null,null,null,null,null,null,null,null,null,null,null,null,null,null,null,null,null,null,null,"Einzel",null,null,null,null,null,null,null,null,"B4",null,null,null,null,null,null,null,null,null,null,null,null,null,null,null,null,null,null,null,null,null,null,null,null,null,null,null,null,null,null,null,null,null,null,null,null,null,null,null,null,null,null,null,null,null,null,null,null,null,null,null,"Vereins-Nr.",null,null,null,null,null,null,null,null,null,null,null,null,"( Mannschaft A )",null,null,null,null,null,null,null,null,null,null,null,null,null,null,null,null,null,null,null,null,null,null,null,null,null,null,"( Mannschaft B )",null,null,null,null,null,null,null,null,null,null,null,null,null,null,null,null,null,null,null,null,null,null,null,null,"Vereins-Nr.",null,null,null,null,null,null,null,null,null,null,null,null,null,{"$f":"DU8","v":0}]
[null,null,null,"Doppel",null,null,null,null,null,null,null,null,"A1",null,null,null,"EE / FF",null,null,null,null,null,null,null,null,null,null,null,null,null,null,null,null,null,null,null,null,null,null,null,null,null,null,null,null,null,null,null,null,null,null,null,null,null,null,null,null,null,null,null,null,null,null,"Doppel",null,null,null,null,null,null,null,null,"B1",null,null,null,null,null,null,null,null,null,null,null,null,null,null,null,null,null,null,null,null,null,null,null,null,null,null,null,null,null,null,null,null,null,null,null,null,null,null,null,null,null,null,null,null,null,null,null,null,null,null,null,null,null,null,null,null,null,null,null,null,null,null,null,null,null,null,null,null,null,null,null,null,null,null,null,null,null,null,null,null,null,null,null,null,null,null,null,null,null,null,null,null,null,null,null,null,null,null,null,null,null,null,null,null,null,null,null,null,null,null,null,null,null,null,null,null,null,null,null,null,null,null,null,null,null,null,null,null,null,null,{"$f":"SUM(ED19:EH28)","v":0}]
[null,null,null,"Doppel",null,null,null,null,null,null,null,null,"A2",null,null,null,"GG / HH",null,null,null,null,null,null,null,null,null,null,null,null,null,null,null,null,null,null,null,null,null,null,null,null,null,null,null,null,null,null,null,null,null,null,null,null,null,null,null,null,null,null,null,null,null,null,"Doppel",null,null,null,null,null,null,null,null,"B2",null,null,null,null,null,null,null,null,null,null,null,null,null,null,null,null,null,null,null,null,null,null,null,null,null,null,null,null,null,null,null,null,null,null,null,null,null,null,null,null,null,null,null,null,null,null,null,null,null,null,"Unterschriften Mannschaftsführer",null,null,null,null,null,null,null,null,null,null,null,null,null,null,null,null,null,null,null,null,null,null,null,null,null,null,null,null,null,null,null,null,null,null,null,null,null,null,null,null,null,null,null,null,null,null,null,null,null,null,null,null,null,null,null,null,null,null,null,null,null,null,null,null,null,null,null,null,null,null,null,null,null,null,null,null,null,null,null,{"$f":"SUM(EN19:ER28)","v":0}]
[null,null,null,null,null,null,null,null,null,null,null,null,null,null,null,null,null,null,null,null,null,null,null,null,null,null,null,null,null,null,null,null,null,null,null,null,null,null,null,null,null,null,null,null,null,null,null,null,null,null,null,null,null,null,null,null,null,null,null,null,null,null,null,null,null,null,null,null,null,null,null,null,null,null,null,null,null,null,null,null,null,null,null,null,null,null,null,null,null,null,null,null,null,null,null,null,null,null,null,null,null,null,null,null,null,null,null,null,null,null,null,null,null,null,null,null,null,null,null,null,null,null,null,null,null,null,null,null,null,null,null,null,null,null,null,null,null,null,null,null,null,null,null,null,null,null,null,null,null,null,null,null,null,null,null,null,null,null,null,null,null,null,null,null,null,null,null,null,null,null,null,null,null,null,null,null,null,null,null,null,null,null,null,null,null,null,null,null,null,null,null,null,null,null,null,null,null,null,null,null,null,null,null,{"$f":"SUM(EX19:FB28)","v":0}]
[null,null,null,"Staffelleiter :",null,null,null,null,null,null,null,null,null,null,null,null,"Matthias Höger - Erlenweg 8 - 86697 Unterhausen",null,null,null,null,null,null,null,null,null,null,null,null,null,null,null,null,null,null,null,null,null,null,null,null,null,null,null,null,null,null,null,null,null,null,null,null,null,null,null,null,null,null,null,null,null,null,"0176-46577799",null,null,null,null,null,null,null,null,null,null,null,null,null,null,null,null,null,"matthias.hoeger@ttkreis-bayreuth.de",null,null,null,null,null,null,null,null,null,null,null,null,null,null,null,null,null,null,null,null,null,null,null,null,null,null,null,null,null,null,null,null,null,null,null,null,null,null,null,null,null,null,null,null,null,null,null,null,null,null,null,null,null,null,null,null,null,null,null,null,null,null,null,null,null,null,null,null,null,null,null,null,null,null,null,null,null,null,null,null,null,null,null,null,null,null,null,null,null,null,null,null,null,null,null,null,null,null,null,null,null,null,null,null,null,null,null,null,null,null,null,null,null,null,null,null,null,null,null,null,null,{"$f":"SUM(FH19:FL28)","v":0}]
[null,null,null,"Mannschaftsf. :",null,null,null,null,null,null,null,null,null,null,null,null,"Name - Adresse - Heimmannschaftsführer",null,null,null,null,null,null,null,null,null,null,null,null,null,null,null,null,null,null,null,null,null,null,null,null,null,null,null,null,null,null,null,null,null,null,null,null,null,null,null,null,null,null,null,null,null,null,"0000-1111111",null,null,null,null,null,null,null,null,null,null,null,null,null,null,null,null,null,"emai@mfheim.de",null,null,null,null,null,null,null,null,null,null,null,null,null,null,null,null,null,null,null,null,null,null,null,null,null,null,null,null,null,null,null,null,null,null,null,null,null,null,null,null,null,null,"Heimverein",null,null,null,null,null,null,null,null,null,null,null,null,null,null,null,null,null,null,null,null,null,null,null,null,null,null,null,null,null,null,null,null,null,null,null,null,null,null,null,null,null,"Gastverein",null,null,null,null,null,null,null,null,null,null,null,null,null,null,null,null,null,null,null,null,null,null,null,null,null,null,null,null,null,null,null,null,null,null,null,null,{"$f":"SUM(FR19:FV28)","v":0}]
[null,null,null,"Bitte zutreffendes Spielsystem ankreuzen",null,null,null,null,null,null,null,null,null,null,null,null,null,null,null,null,null,null,null,null,null,null,null,null,null,null,null,null,null,null,null,null,null,null,null,null,null,null,null,null,null,null,null,null,null,null,null,null,null,null,null,null,null,null,null,null,null,null,null,null,null,null,null,null,null,null,null,null,null,null,null,null,null,null,null,null,null,null,null,null,null,null,null,null,null,null,null,null,null,null,null,null,null,null,null,null,null,null,null,null,null,null,null,null,null,null,null,null,null,null,null,null,null,null,null,null,null,null,null,"creadet by Gerhard Nidetzky",null,null,null,null,null,null,null,null,null,null,null,null,null,null,null,null,null,null,null,null,null,null,null,null,null,null,null,null,null,null,null,null,null,null,null,null,null,null,null,null,null,null,null,null,null,null,null,null,null,null,null,null,null,null,null,null,null,null,null,null,null,null,null,null,null,null,null,null,null,null,null,null,null,null,null,null,null,null,null,{"$f":"SUM(GV12:GV16)","v":0}]
[null,null,null,"X",null,null,null,"4 g 4",null,null,null,null,null,null,null,null,null,null,"4 g 3",null,null,null,null,null,null,null,null,null,null,"3 g 4",null,null,null,null,null,null,null,null,null,null,"3 g 3",null,null,null,null,null,null,"Heimverein ( Mannschaft A )",null,null,null,null,null,null,null,null,null,null,null,null,null,null,null,null,null,null,null,null,null,null,null,null,null,null,null,null,null,null,null,null,null,null,null,null,null,null,null,null,null,null,"Gastverein ( Mannschaft B )",null,null,null,null,null,null,null,null,null,null,null,null,null,null,null,null,null,null,null,null,null,null,null,null,null,null,null,null,null,null,null,null,null,null,null,null,null,null,null,null,null,null,"1. Satz",null,null,null,null,null,null,null,null,null,"2. Satz",null,null,null,null,null,null,null,null,null,"3. Satz",null,null,null,null,null,null,null,null,null,"4. Satz",null,null,null,null,null,null,null,null,null,"5. Satz",null,null,null,null,null,null,null,null,null,"SÄTZE",null,null,null,null,null,null,null,null,null,"SPIELE"]
[null,null,null,"D",null,null,"A1-B1",null,null,null,null,null,null,null,"D",null,null,"A1-B1",null,null,null,null,null,null,null,"D",null,null,"A1-B1",null,null,null,null,null,null,null,"D",null,null,"A1-B1",null,null,null,null,null,null,null,{"$f":"Q12","v":"EE / FF"},null,null,null,null,null,null,null,null,null,null,null,null,null,null,null,null,null,null,null,null,null,null,null,null,null,null,null,null,null,null,null,null,null,null,null,null,null,null,null,null,null,null,{"$f":"BY12","v":0},null,null,null,null,null,null,null,null,null,null,null,null,null,null,null,null,null,null,null,null,null,null,null,null,null,null,null,null,null,null,null,null,null,null,null,null,null,null,null,null,null,null,null,null,null,null,null,null,null,null,null,null,null,null,null,null,null,null,null,null,null,null,null,null,null,null,null,null,null,null,null,null,null,null,null,null,null,null,null,null,null,null,null,null,null,null,null,null,null,null,null,null,{"$f":"IF(ED19=\"\",\"\",IF(ED19>EI19,1,0)+IF(EN19>ES19,1,0)+IF(EX19>FC19,1,0)+IF(FH19>FM19,1,0)+IF(FR19>FW19,1,0))","v":""},null,null,null,null,{"$f":"IF(ED19=\"\",\"\",IF(ED19<EI19,1,0)+IF(EN19<ES19,1,0)+IF(EX19<FC19,1,0)+IF(FH19<FM19,1,0)+IF(FR19<FW19,1,0))","v":""},null,null,null,null,{"$f":"IF(GB19=\"\",\"\",IF(GB19>GG19,1,0))","v":""},null,null,null,null,{"$f":"IF(GB19=\"\",\"\",IF(GB19<GG19,1,0))","v":""},null,null,null,null,{"$f":"FI8","v":0}]
[null,null,null,"D",null,null,"A2-B2",null,null,null,null,null,null,null,"E",null,null,"A3-B3",null,null,null,null,null,null,null,"E",null,null,"A3-B3",null,null,null,null,null,null,null,"E",null,null,"A1-B2",null,null,null,null,null,null,null,{"$f":"Q13","v":"GG / HH"},null,null,null,null,null,null,null,null,null,null,null,null,null,null,null,null,null,null,null,null,null,null,null,null,null,null,null,null,null,null,null,null,null,null,null,null,null,null,null,null,null,null,{"$f":"BY13","v":0},null,null,null,null,null,null,null,null,null,null,null,null,null,null,null,null,null,null,null,null,null,null,null,null,null,null,null,null,null,null,null,null,null,null,null,null,null,null,null,null,null,null,null,null,null,null,null,null,null,null,null,null,null,null,null,null,null,null,null,null,null,null,null,null,null,null,null,null,null,null,null,null,null,null,null,null,null,null,null,null,null,null,null,null,null,null,null,null,null,null,null,null,{"$f":"IF(ED20=\"\",\"\",IF(ED20>EI20,1,0)+IF(EN20>ES20,1,0)+IF(EX20>FC20,1,0)+IF(FH20>FM20,1,0)+IF(FR20>FW20,1,0))","v":""},null,null,null,null,{"$f":"IF(ED20=\"\",\"\",IF(ED20<EI20,1,0)+IF(EN20<ES20,1,0)+IF(EX20<FC20,1,0)+IF(FH20<FM20,1,0)+IF(FR20<FW20,1,0))","v":""},null,null,null,null,{"$f":"IF(GB20=\"\",\"\",IF(GB20>GG20,1,0))","v":""},null,null,null,null,{"$f":"IF(GB20=\"\",\"\",IF(GB20<GG20,1,0))","v":""},null,null,null,null,{"$f":"SUM(EI19:EM28)","v":0}]
[null,null,null,"E",null,null,"A1-B1",null,null,null,null,null,null,null,"E",null,null,"A1-B2",null,null,null,null,null,null,null,"E",null,null,"A2-B1",null,null,null,null,null,null,null,"E",null,null,"A2-B1",null,null,null,null,null,null,null,{"$f":"Q8","v":"AA"},null,null,null,null,null,null,null,null,null,null,null,null,null,null,null,null,null,null,null,null,null,null,null,null,null,null,null,null,null,null,null,null,null,null,null,null,null,null,null,null,null,null,{"$f":"BY8","v":0},null,null,null,null,null,null,null,null,null,null,null,null,null,null,null,null,null,null,null,null,null,null,null,null,null,null,null,null,null,null,null,null,null,null,null,null,null,null,null,null,null,null,null,null,null,null,null,null,null,null,null,null,null,null,null,null,null,null,null,null,null,null,null,null,null,null,null,null,null,null,null,null,null,null,null,null,null,null,null,null,null,null,null,null,null,null,null,null,null,null,null,null,"",null,null,null,null,"",null,null,null,null,"",null,null,null,null,"",null,null,null,null,{"$f":"SUM(ES19:EW28)","v":0}]
[null,null,null,"E",null,null,"A2-B2",null,null,null,null,null,null,null,"E",null,null,"A2-B1",null,null,null,null,null,null,null,"E",null,null,"A1-B2",null,null,null,null,null,null,null,"E",null,null,"A3-B2",null,null,null,null,null,null,null,{"$f":"Q9","v":"BB"},null,null,null,null,null,null,null,null,null,null,null,null,null,null,null,null,null,null,null,null,null,null,null,null,null,null,null,null,null,null,null,null,null,null,null,null,null,null,null,null,null,null,{"$f":"BY9","v":0},null,null,null,null,null,null,null,null,null,null,null,null,null,null,null,null,null,null,null,null,null,null,null,null,null,null,null,null,null,null,null,null,null,null,null,null,null,null,null,null,null,null,null,null,null,null,null,null,null,null,null,null,null,null,null,null,null,null,null,null,null,null,null,null,null,null,null,null,null,null,null,null,null,null,null,null,null,null,null,null,null,null,null,null,null,null,null,null,null,null,null,null,"",null,null,null,null,"",null,null,null,null,"",null,null,null,null,"",null,null,null,null,{"$f":"SUM(FC19:FG28)","v":0}]
[null,null,null,"E",null,null,"A3-B3",null,null,null,null,null,null,null,"E",null,null,"A4-B2",null,null,null,null,null,null,null,"E",null,null,"A2-B4",null,null,null,null,null,null,null,"E",null,null,"A2-B3",null,null,null,null,null,null,null,{"$f":"Q10","v":"CC"},null,null,null,null,null,null,null,null,null,null,null,null,null,null,null,null,null,null,null,null,null,null,null,null,null,null,null,null,null,null,null,null,null,null,null,null,null,null,null,null,null,null,{"$f":"BY10","v":0},null,null,null,null,null,null,null,null,null,null,null,null,null,null,null,null,null,null,null,null,null,null,null,null,null,null,null,null,null,null,null,null,null,null,null,null,null,null,null,null,null,null,null,null,null,null,null,null,null,null,null,null,null,null,null,null,null,null,null,null,null,null,null,null,null,null,null,null,null,null,null,null,null,null,null,null,null,null,null,null,null,null,null,null,null,null,null,null,null,null,null,null,"",null,null,null,null,"",null,null,null,null,"",null,null,null,null,"",null,null,null,null,{"$f":"SUM(FM19:FQ28)","v":0}]
[null,null,null,"E",null,null,"A4-B4",null,null,null,null,null,null,null,"E",null,null,"A1-B1",null,null,null,null,null,null,null,"E",null,null,"A1-B1",null,null,null,null,null,null,null,"E",null,null,"A1-B1",null,null,null,null,null,null,null,{"$f":"Q11","v":"DD"},null,null,null,null,null,null,null,null,null,null,null,null,null,null,null,null,null,null,null,null,null,null,null,null,null,null,null,null,null,null,null,null,null,null,null,null,null,null,null,null,null,null,{"$f":"BY11","v":0},null,null,null,null,null,null,null,null,null,null,null,null,null,null,null,null,null,null,null,null,null,null,null,null,null,null,null,null,null,null,null,null,null,null,null,null,null,null,null,null,null,null,null,null,null,null,null,null,null,null,null,null,null,null,null,null,null,null,null,null,null,null,null,null,null,null,null,null,null,null,null,null,null,null,null,null,null,null,null,null,null,null,null,null,null,null,null,null,null,null,null,null,"",null,null,null,null,"",null,null,null,null,"",null,null,null,null,"",null,null,null,null,{"$f":"SUM(FW19:GA28)","v":0}]
[null,null,null,"E",null,null,"A1-B2",null,null,null,null,null,null,null,"E",null,null,"A4-B3",null,null,null,null,null,null,null,"E",null,null,"A3-B4",null,null,null,null,null,null,null,"E",null,null,"A3-B3",null,null,null,null,null,null,null,{"$f":"Q8","v":"AA"},null,null,null,null,null,null,null,null,null,null,null,null,null,null,null,null,null,null,null,null,null,null,null,null,null,null,null,null,null,null,null,null,null,null,null,null,null,null,null,null,null,null,{"$f":"BY9","v":0},null,null,null,null,null,null,null,null,null,null,null,null,null,null,null,null,null,null,null,null,null,null,null,null,null,null,null,null,null,null,null,null,null,null,null,null,null,null,null,null,null,null,null,null,null,null,null,null,null,null,null,null,null,null,null,null,null,null,null,null,null,null,null,null,null,null,null,null,null,null,null,null,null,null,null,null,null,null,null,null,null,null,null,null,null,null,null,null,null,null,null,null,"",null,null,null,null,"",null,null,null,null,"",null,null,null,null,"",null,null,null,null,{"$f":"SUM(GV20:GV24)","v":0}]
[null,null,null,"E",null,null,"A2-B1",null,null,null,null,null,null,null,"E",null,null,"A2-B2",null,null,null,null,null,null,null,"E",null,null,"A2-B2",null,null,null,null,null,null,null,"E",null,null,"A2-B2",null,null,null,null,null,null,null,{"$f":"Q9","v":"BB"},null,null,null,null,null,null,null,null,null,null,null,null,null,null,null,null,null,null,null,null,null,null,null,null,null,null,null,null,null,null,null,null,null,null,null,null,null,null,null,null,null,null,{"$f":"BY8","v":0},null,null,null,null,null,null,null,null,null,null,null,null,null,null,null,null,null,null,null,null,null,null,null,null,null,null,null,null,null,null,null,null,null,null,null,null,null,null,null,null,null,null,null,null,null,null,null,null,null,null,null,null,null,null,null,null,null,null,null,null,null,null,null,null,null,null,null,null,null,null,null,null,null,null,null,null,null,null,null,null,null,null,null,null,null,null,null,null,null,null,null,null,"",null,null,null,null,"",null,null,null,null,"",null,null,null,null,""]
[null,null,null,"E",null,null,"A3-B4",null,null,null,null,null,null,null,"E",null,null,"A1-B3",null,null,null,null,null,null,null,"E",null,null,"A3-B1",null,null,null,null,null,null,null,"E",null,null,"A3-B1",null,null,null,null,null,null,null,{"$f":"Q10","v":"CC"},null,null,null,null,null,null,null,null,null,null,null,null,null,null,null,null,null,null,null,null,null,null,null,null,null,null,null,null,null,null,null,null,null,null,null,null,null,null,null,null,null,null,{"$f":"BY11","v":0},null,null,null,null,null,null,null,null,null,null,null,null,null,null,null,null,null,null,null,null,null,null,null,null,null,null,null,null,null,null,null,null,null,null,null,null,null,null,null,null,null,null,null,null,null,null,null,null,null,null,null,null,null,null,null,null,null,null,null,null,null,null,null,null,null,null,null,null,null,null,null,null,null,null,null,null,null,null,null,null,null,null,null,null,null,null,null,null,null,null,null,null,"",null,null,null,null,"",null,null,null,null,"",null,null,null,null,""]
[null,null,null,"E",null,null,"A4-B3",null,null,null,null,null,null,null,"E",null,null,"A3-B1",null,null,null,null,null,null,null,"E",null,null,"A1-B3",null,null,null,null,null,null,null,"E",null,null,"A1-B3",null,null,null,null,null,null,null,{"$f":"Q11","v":"DD"},null,null,null,null,null,null,null,null,null,null,null,null,null,null,null,null,null,null,null,null,null,null,null,null,null,null,null,null,null,null,null,null,null,null,null,null,null,null,null,null,null,null,{"$f":"BY10","v":0},null,null,null,null,null,null,null,null,null,null,null,null,null,null,null,null,null,null,null,null,null,null,null,null,null,null,null,null,null,null,null,null,null,null,null,null,null,null,null,null,null,null,null,null,null,null,null,null,null,null,null,null,null,null,null,null,null,null,null,null,null,null,null,null,null,null,null,null,null,null,null,null,null,null,null,null,null,null,null,null,null,null,null,null,null,null,null,null,null,null,null,null,"",null,null,null,null,"",null,null,null,null,"",null,null,null,null,""]
[null,null,null,"Spielort :",null,null,null,null,null,null,null,null,null,null,"daheim",null,null,null,null,null,null,null,null,null,null,null,null,null,null,null,null,null,null,null,null,null,null,null,null,null,null,"Spielbeginn :",null,null,null,null,null,null,null,null,null,null,null,null,null,null,null,null,null,null,null,null,null,null,null,null,null,"Uhr",null,null,null,null,null,null,null,null,null,null,null,null,null,null,null,null,null,null,null,null,null,null,null,null,null,null,null,null,null,null,null,null,null,null,null,null,null,null,null,null,null,null,null,null,null,null,null,null,null,null,null,null,null,null,null,null,null,null,null,null,null,null,null,null,null,null,null,null,null,null,null,null,null,null,null,null,null,null,null,null,null,null,null,null,null,null,null,null,null,null,null,null,null,null,"Heim",null,null,null,null,null,null,"Gast",null,null,null,null,null,null,null,null,null,null,null,null,null,{"$f":"IF(GB19=\"\",\"\",SUM(GB19:GF28))","v":""},null,null,null,null,{"$f":"IF(GG19=\"\",\"\",SUM(GG19:GK28))","v":""},null,null,null,null,{"$f":"IF(GL19=\"\",\"\",SUM(GL19:GP28))","v":""},null,null,null,null,{"$f":"IF(GQ19=\"\",\"\",SUM(GQ19:GU28))","v":""}]
[null,null,null,null,null,null,null,null,null,null,null,null,null,null,null,null,null,null,null,null,null,null,null,null,null,null,null,null,null,null,null,null,null,null,null,null,null,null,null,null,null,null,null,null,null,null,null,null,null,null,null,null,null,null,null,null,null,null,null,null,null,null,null,null,null,null,null,null,null,null,null,null,null,null,null,null,null,null,null,null,null," kein Protest",null,null,null,null,null,null,null,null,null,null,null,null,null,null,null,null,null,null,null,null,null,null,null,null,null,null,null,null,null,{"$f":"IF(EY31=FF31,\"\",IF(EY31>FF31,GV7,GV9))","v":""},null,null,null,null,null,null,null,null,null,null,null,null,null,null,null,null,null,null,null,null,null,null,null,null,null,null,null,null,null,null,null,null,null,null,null,null,null,null,null,null,null,null,"Bälle",null,null,null,null,null,null,null,{"$f":"GV17","v":0},null,null,null,null,null,":",{"$f":"GV25","v":0}]
[null,null,null,"Datum :",null,null,null,null,null,null,null,null,null,null,{"$f":"TODAY()","v":"2016-06-08"},null,null,null,null,null,null,null,null,null,null,null,null,null,null,null,null,null,null,null,null,null,null,null,null,null,null,"Spielende :",null,null,null,null,null,null,null,null,null,null,null,null,null,null,null,null,null,null,null,null,null,null,null,null,null,"Uhr",null,null,null,null,null,null,null,null,null,null,null,null,null,null,null,null,null,null,null,null,null,null,null,null,null,null,null,null,null,null,null,null,null,null,null,null,null,null,null,null,null,null,null,{"$f":"GV6","v":""},null,null,null,null,null,null,null,null,null,null,null,null,null,null,null,null,null,null,null,null,null,null,null,null,null,null,null,null,null,null,null,null,null,null,null,null,null,null,null,null,null,null,{"$f":"IF(GL29>GQ29,GL29,GQ29)","v":""},null,null,null,null,":",null,{"$f":"IF(GL29<GQ29,GL29,GQ29)","v":""},null,null,null,null,null,"Spiele",null,null,null,null,null,null,null,null,"und",null,null,null,null,null,{"$f":"IF(GL29>=GQ29,GB29,GG29)","v":""},null,null,null,null,":",null,{"$f":"IF(GL29<=GQ29,GB29,GG29)","v":""},null,null,null,null,null,"Sätze"]
[null,null,null,null,null,null,null,null,null,null,null,null,null,null,null,null,null,null,null,null,null,null,null,null,null,null,null,null,null,null,null,null,null,null,null,null,null,null,null,null,null,null,null,null,null,null,null,null,null,null,null,null,null,null,null,null,null,null,null,null,null,null,null,null,null,null,null,null,null,null,null,null,null,null,null,null,null,null,null,null,null," Protest - siehe Anlage"]

{"sheet":"4g3 Q","index":2,"n_rows":32,"n_cols":204,"rows_kept":32,"cut":false,"hidden":false,"merged":[[32,3,32,202],[30,175,31,175],[30,176,31,180],[30,181,31,181],[30,182,31,186],[30,187,31,188],[30,189,31,193],[30,67,31,72],[30,77,30,110],[30,111,31,151],[30,154,31,158],[30,159,31,160],[30,161,31,165],[28,73,31,76],[28,3,29,13],[28,14,29,37],[28,38,31,40],[28,41,29,55],[28,56,29,66],[28,67,29,72],[28,198,29,202],[29,77,29,80],[29,81,29,110],[29,111,29,151],[29,152,31,153],[29,154,29,161],[28,77,28,110],[28,111,28,151],[28,152,28,161],[28,162,28,167],[28,169,28,174],[29,162,29,167],[29,169,29,174],[30,166,31,166],[30,167,31,174],[30,194,31,194],[30,195,31,202],[31,77,31,80],[31,81,31,110],[30,3,31,13],[30,14,31,37],[30,41,31,55],[30,56,31,66],[27,173,27,177],[27,178,27,182],[27,183,27,187],[27,188,27,192],[27,193,27,197],[27,3,27,5],[27,6,27,13],[27,14,27,16],[27,17,27,24],[27,25,27,27],[27,28,27,35],[28,175,29,182],[28,183,29,187],[28,188,29,192],[28,193,29,197],[27,198,27,202],[27,143,27,147],[27,148,27,152],[27,153,27,157],[27,158,27,162],[27,163,27,167],[27,168,27,172],[27,36,27,38],[27,39,27,46],[27,47,27,89],[27,90,27,132],[27,133,27,137],[27,138,27,142],[26,173,26,177],[26,178,26,182],[26,183,26,187],[26,188,26,192],[26,193,26,197],[26,198,26,202],[26,143,26,147],[26,148,26,152],[26,153,26,157],[26,158,26,162],[26,163,26,167],[26,168,26,172],[26,36,26,38],[26,39,26,46],[26,47,26,89],[26,90,26,132],[26,133,26,137],[26,138,26,142],[26,3,26,5],[26,6,26,13],[26,14,26,16],[26,17,26,24],[26,25,26,27],[26,28,26,35],[25,173,25,177],[25,178,25,182],[25,183,25,187],[25,188,25,192],[25,193,25,197],[25,198,25,202],[25,143,25,147],[25,148,25,152],[25,153,25,157],[25,158,25,162],[25,163,25,167],[25,168,25,172],[25,36,25,38],[25,39,25,46],[25,47,25,89],[25,90,25,132],[25,133,25,137],[25,138,25,142],[25,3,25,5],[25,6,25,13],[25,14,25,16],[25,17,25,24],[25,25,25,27],[25,28,25,35],[24,173,24,177],[24,178,24,182],[24,183,24,187],[24,188,24,192],[24,193,24,197],[24,198,24,202],[24,143,24,147],[24,148,24,152],[24,153,24,157],[24,158,24,162],[24,163,24,167],[24,168,24,172],[24,36,24,38],[24,39,24,46],[24,47,24,89],[24,90,24,132],[24,133,24,137],[24,138,24,142],[24,3,24,5],[24,6,24,13],[24,14,24,16],[24,17,24,24],[24,25,24,27],[24,28,24,35],[23,173,23,177],[23,178,23,182],[23,183,23,187],[23,188,23,192],[23,193,23,197],[23,198,23,202],[23,143,23,147],[23,148,23,152],[23,153,23,157],[23,158,23,162],[23,163,23,167],[23,168,23,172],[23,36,23,38],[23,39,23,46],[23,47,23,89],[23,90,23,132],[23,133,23,137],[23,138,23,142],[23,3,23,5],[23,6,23,13],[23,14,23,16],[23,17,23,24],[23,25,23,27],[23,28,23,35],[22,173,22,177],[22,178,22,182],[22,183,22,187],[22,188,22,192],[22,193,22,197],[22,198,22,202],[22,143,22,147],[22,148,22,152],[22,153,22,157],[22,158,22,162],[22,163,22,167],[22,168,22,172],[22,36,22,38],[22,39,22,46],[22,47,22,89],[22,90,22,132],[22,133,22,137],[22,138,22,142],[22,3,22,5],[22,6,22,13],[22,14,22,16],[22,17,22,24],[22,25,22,27],[22,28,22,35],[21,173,21,177],[21,178,21,182],[21,183,21,187],[21,188,21,192],[21,193,21,197],[21,198,21,202],[21,143,21,147],[21,148,21,152],[21,153,21,157],[21,158,21,162],[21,163,21,167],[21,168,21,172],[21,36,21,38],[21,39,21,46],[21,47,21,89],[21,90,21,132],[21,133,21,137],[21,138,21,142],[21,3,21,5],[21,6,21,13],[21,14,21,16],[21,17,21,24],[21,25,21,27],[21,28,21,35],[20,173,20,177],[20,178,20,182],[20,183,20,187],[20,188,20,192],[20,193,20,197],[20,198,20,202],[20,143,20,147],[20,148,20,152],[20,153,20,157],[20,158,20,162],[20,163,20,167],[20,168,20,172],[20,36,20,38],[20,39,20,46],[20,47,20,89],[20,90,20,132],[20,133,20,137],[20,138,20,142],[20,3,20,5],[20,6,20,13],[20,14,20,16],[20,17,20,24],[20,25,20,27],[20,28,20,35],[19,3,19,5],[19,6,19,13],[19,14,19,16],[19,17,19,24],[19,25,19,27],[19,28,19,35],[19,173,19,177],[19,178,19,182],[19,183,19,187],[19,143,19,147],[19,148,19,152],[19,153,19,157],[19,158,19,162],[19,163,19,167],[19,168,19,172],[19,36,19,38],[19,39,19,46],[19,47,19,89],[19,90,19,132],[19,133,19,137],[19,138,19,142],[19,188,19,192],[19,193,19,197],[19,198,19,202],[17,3,17,6],[17,7,17,13],[17,14,17,17],[17,18,17,24],[17,25,17,28],[17,29,17,35],[17,36,17,39],[18,193,18,197],[18,198,18,202],[18,143,18,147],[18,148,18,152],[18,153,18,157],[18,158,18,162],[18,163,18,167],[18,168,18,172],[18,133,18,137],[18,138,18,142],[17,193,17,202],[18,3,18,5],[18,6,18,13],[18,14,18,16],[18,17,18,24],[18,25,18,27],[18,28,18,35],[17,40,17,46],[17,47,17,89],[17,90,17,132],[17,133,17,142],[17,143,17,152],[17,153,17,162],[18,36,18,38],[18,39,18,46],[18,47,18,89],[18,90,18,132],[17,163,17,172],[17,173,17,182],[17,183,17,192],[18,173,18,177],[18,178,18,182],[18,183,18,187],[18,188,18,192],[15,166,15,201],[13,3,13,118],[13,123,15,123],[13,124,14,159],[13,160,15,165],[13,166,14,201],[16,3,16,46],[16,47,16,118],[16,123,16,202],[13,202,15,202],[14,3,14,15],[14,16,14,62],[14,63,14,80],[14,81,14,118],[15,3,15,15],[15,16,15,62],[15,63,15,80],[15,81,15,118],[15,124,15,159],[11,123,11,202],[12,3,12,11],[12,12,12,15],[12,16,12,58],[12,63,12,71],[12,72,12,75],[12,76,12,118],[12,123,12,202],[11,3,11,11],[11,12,11,15],[11,16,11,58],[11,63,11,71],[11,72,11,75],[11,76,11,118],[9,195,9,201],[10,3,10,11],[10,12,10,15],[10,16,10,51],[10,52,10,58],[10,63,10,71],[10,72,10,75],[10,76,10,111],[10,112,10,118],[10,124,10,136],[9,124,9,129],[9,130,9,136],[9,137,9,161],[9,162,10,163],[9,164,9,188],[9,189,9,194],[10,137,10,161],[10,164,10,188],[10,189,10,201],[7,63,7,71],[7,72,7,75],[7,76,7,111],[8,76,8,111],[8,112,8,118],[9,3,9,11],[9,12,9,15],[9,16,9,51],[9,52,9,58],[9,63,9,71],[9,72,9,75],[9,76,9,111],[9,112,9,118],[4,142,4,145],[5,3,5,122],[5,123,5,202],[6,3,6,51],[6,52,6,58],[6,59,12,62],[6,63,6,111],[6,112,6,118],[6,119,16,122],[6,124,6,201],[7,3,7,11],[7,112,7,118],[7,124,8,161],[7,162,8,163],[7,164,8,201],[8,3,8,11],[8,12,8,15],[8,16,8,51],[8,52,8,58],[8,63,8,71],[8,72,8,75],[7,12,7,15],[7,16,7,51],[7,52,7,58],[0,0,32,2],[0,3,0,202],[0,204,32,206],[1,3,2,202],[3,3,4,17],[3,18,4,20],[3,21,4,37],[3,38,4,40],[3,41,4,67],[3,68,4,70],[3,164,4,165],[3,166,4,179],[3,180,4,180],[3,181,4,190],[3,191,4,192],[3,193,4,202],[3,71,4,85],[3,86,4,113],[3,114,3,123],[3,124,4,140],[3,141,3,146],[3,147,4,163],[4,114,4,118],[4,119,4,122]]}
[]
[null,null,null,"Spielberichts-Formular",null,null,null,null,null,null,null,null,null,null,null,null,null,null,null,null,null,null,null,null,null,null,null,null,null,null,null,null,null,null,null,null,null,null,null,null,null,null,null,null,null,null,null,null,null,null,null,null,null,null,null,null,null,null,null,null,null,null,null,null,null,null,null,null,null,null,null,null,null,null,null,null,null,null,null,null,null,null,null,null,null,null,null,null,null,null,null,null,null,null,null,null,null,null,null,null,null,null,null,null,null,null,null,null,null,null,null,null,null,null,null,null,null,null,null,null,null,null,null,null,null,null,null,null,null,null,null,null,null,null,null,null,null,null,null,null,null,null,null,null,null,null,null,null,null,null,null,null,null,null,null,null,null,null,null,null,null,null,null,null,null,null,null,null,null,null,null,null,null,null,null,null,null,null,null,null,null,null,null,null,null,null,null,null,null,null,null,null,null,null,null,null,null,null,null,null,null,null,null,{"$f":"IF(GL29=GQ29,\"\",IF(GL29>GQ29,DU8,FI8))","v":""}]
[null,null,null,null,null,null,null,null,null,null,null,null,null,null,null,null,null,null,null,null,null,null,null,null,null,null,null,null,null,null,null,null,null,null,null,null,null,null,null,null,null,null,null,null,null,null,null,null,null,null,null,null,null,null,null,null,null,null,null,null,null,null,null,null,null,null,null,null,null,null,null,null,null,null,null,null,null,null,null,null,null,null,null,null,null,null,null,null,null,null,null,null,null,null,null,null,null,null,null,null,null,null,null,null,null,null,null,null,null,null,null,null,null,null,null,null,null,null,null,null,null,null,null,null,null,null,null,null,null,null,null,null,null,null,null,null,null,null,null,null,null,null,null,null,null,null,null,null,null,null,null,null,null,null,null,null,null,null,null,null,null,null,null,null,null,null,null,null,null,null,null,null,null,null,null,null,null,null,null,null,null,null,null,null,null,null,null,null,null,null,null,null,null,null,null,null,null,null,null,null,null,null,null,{"$f":"IF(GL29=\"\",\"\",IF(GL29=GQ29,GV8))","v":""}]
[null,null,null,{"$f":"'4g4 Q'!D4","v":"HERREN"},null,null,null,null,null,null,null,null,null,null,null,null,null,null,"-",null,null,{"$f":"'4g4 Q'!V4","v":"Verbands"},null,null,null,null,null,null,null,null,null,null,null,null,null,null,null,null,"-",null,null,{"$f":"'4g4 Q'!AP4","v":"Mannschaftsspiel"},null,null,null,null,null,null,null,null,null,null,null,null,null,null,null,null,null,null,null,null,null,null,null,null,null,null,null,null,null,"Spielklasse :",null,null,null,null,null,null,null,null,null,null,null,null,null,null,{"$f":"'4g4 Q'!CI4","v":"4. Kreisliga Mitte"},null,null,null,null,null,null,null,null,null,null,null,null,null,null,null,null,null,null,null,null,null,null,null,null,null,null,null,null,null,null,null,null,null,null,null,null,null,"Vorrunde",null,null,null,null,null,null,null,null,null,null,null,null,null,null,null,null,null,null,null,null,null,null,"Rückrunde",null,null,null,null,null,null,null,null,null,null,null,null,null,null,null,null,null,null,"SAISON",null,null,null,null,null,null,null,null,null,null,null,null,null,null,{"$f":"'4g4 Q'!FZ4","v":2016},null,null,null,null,null,null,null,null,null,"/",null,{"$f":"FZ4+1","v":2017}]
[]
[null,null,null,null,null,null,null,null,null,null,null,null,null,null,null,null,null,null,null,null,null,null,null,null,null,null,null,null,null,null,null,null,null,null,null,null,null,null,null,null,null,null,null,null,null,null,null,null,null,null,null,null,null,null,null,null,null,null,null,null,null,null,null,null,null,null,null,null,null,null,null,null,null,null,null,null,null,null,null,null,null,null,null,null,null,null,null,null,null,null,null,null,null,null,null,null,null,null,null,null,null,null,null,null,null,null,null,null,null,null,null,null,null,null,null,null,null,null,null,null,null,null,null,null,null,null,null,null,null,null,null,null,null,null,null,null,null,null,null,null,null,null,null,null,null,null,null,null,null,null,null,null,null,null,null,null,null,null,null,null,null,null,null,null,null,null,null,null,null,null,null,null,null,null,null,null,null,null,null,null,null,null,null,null,null,null,null,null,null,null,null,null,null,null,null,null,null,null,null,null,null,null,null,{"$f":"IF(GL29<>GQ29,GV2,GV3)","v":""}]
[null,null,null,"Mannschaftsaufstellung   -   Heimverein",null,null,null,null,null,null,null,null,null,null,null,null,null,null,null,null,null,null,null,null,null,null,null,null,null,null,null,null,null,null,null,null,null,null,null,null,null,null,null,null,null,null,null,null,null,null,null,null,"Pos.",null,null,null,null,null,null,null,null,null,null,"Mannschaftsaufstellung   -   Gastverein",null,null,null,null,null,null,null,null,null,null,null,null,null,null,null,null,null,null,null,null,null,null,null,null,null,null,null,null,null,null,null,null,null,null,null,null,null,null,null,null,null,null,null,null,null,null,null,null,"Pos.",null,null,null,null,null,null,null,null,null,null,null,"Spielpaarung",null,null,null,null,null,null,null,null,null,null,null,null,null,null,null,null,null,null,null,null,null,null,null,null,null,null,null,null,null,null,null,null,null,null,null,null,null,null,null,null,null,null,null,null,null,null,null,null,null,null,null,null,null,null,null,null,null,null,null,null,null,null,null,null,null,null,null,null,null,null,null,null,null,null,null,null,null,null,"Sieger"]
[null,null,null,"Einzel",null,null,null,null,null,null,null,null,"A1",null,null,null,null,null,null,null,null,null,null,null,null,null,null,null,null,null,null,null,null,null,null,null,null,null,null,null,null,null,null,null,null,null,null,null,null,null,null,null,null,null,null,null,null,null,null,null,null,null,null,"Einzel",null,null,null,null,null,null,null,null,"B1",null,null,null,null,null,null,null,null,null,null,null,null,null,null,null,null,null,null,null,null,null,null,null,null,null,null,null,null,null,null,null,null,null,null,null,null,null,null,null,null,null,null,null,null,null,null,null,null,null,null,null,null,null,null,null,null,null,null,null,null,null,null,null,null,null,null,null,null,null,null,null,null,null,null,null,null,null,null,null,null,null,null,null,null,null,null,null,null,null,":",null,null,null,null,null,null,null,null,null,null,null,null,null,null,null,null,null,null,null,null,null,null,null,null,null,null,null,null,null,null,null,null,null,null,null,null,null,null,null,null,"Unentschieden"]
[null,null,null,"Einzel",null,null,null,null,null,null,null,null,"A2",null,null,null,null,null,null,null,null,null,null,null,null,null,null,null,null,null,null,null,null,null,null,null,null,null,null,null,null,null,null,null,null,null,null,null,null,null,null,null,null,null,null,null,null,null,null,null,null,null,null,"Einzel",null,null,null,null,null,null,null,null,"B2"]
[null,null,null,"Einzel",null,null,null,null,null,null,null,null,"A3",null,null,null,null,null,null,null,null,null,null,null,null,null,null,null,null,null,null,null,null,null,null,null,null,null,null,null,null,null,null,null,null,null,null,null,null,null,null,null,null,null,null,null,null,null,null,null,null,null,null,"Einzel",null,null,null,null,null,null,null,null,"B3",null,null,null,null,null,null,null,null,null,null,null,null,null,null,null,null,null,null,null,null,null,null,null,null,null,null,null,null,null,null,null,null,null,null,null,null,null,null,null,null,null,null,null,null,null,null,null,null,null,null,null,{"$f":"'4g4 Q'!DU10","v":508},null,null,null,null,null,{"$f":"'4g4 Q'!EA10","v":0},null,null,null,null,null,null,"Heimverein",null,null,null,null,null,null,null,null,null,null,null,null,null,null,null,null,null,null,null,null,null,null,null,null,null,null,"Gastverein",null,null,null,null,null,null,null,null,null,null,null,null,null,null,null,null,null,null,null,null,null,null,null,null,508]
[null,null,null,"Einzel",null,null,null,null,null,null,null,null,"A4",null,null,null,null,null,null,null,null,null,null,null,null,null,null,null,null,null,null,null,null,null,null,null,null,null,null,null,null,null,null,null,null,null,null,null,null,null,null,null,null,null,null,null,null,null,null,null,null,null,null,null,null,null,null,null,null,null,null,null,null,null,null,null,null,null,null,null,null,null,null,null,null,null,null,null,null,null,null,null,null,null,null,null,null,null,null,null,null,null,null,null,null,null,null,null,null,null,null,null,null,null,null,null,null,null,null,null,null,null,null,null,"Vereins-Nr.",null,null,null,null,null,null,null,null,null,null,null,null,"( Mannschaft A )",null,null,null,null,null,null,null,null,null,null,null,null,null,null,null,null,null,null,null,null,null,null,null,null,null,null,"( Mannschaft B )",null,null,null,null,null,null,null,null,null,null,null,null,null,null,null,null,null,null,null,null,null,null,null,null,"Vereins-Nr.",null,null,null,null,null,null,null,null,null,null,null,null,null,{"$f":"DU8","v":0}]
[null,null,null,"Doppel",null,null,null,null,null,null,null,null,"A1",null,null,null,null,null,null,null,null,null,null,null,null,null,null,null,null,null,null,null,null,null,null,null,null,null,null,null,null,null,null,null,null,null,null,null,null,null,null,null,null,null,null,null,null,null,null,null,null,null,null,"Doppel",null,null,null,null,null,null,null,null,"B1",null,null,null,null,null,null,null,null,null,null,null,null,null,null,null,null,null,null,null,null,null,null,null,null,null,null,null,null,null,null,null,null,null,null,null,null,null,null,null,null,null,null,null,null,null,null,null,null,null,null,null,null,null,null,null,null,null,null,null,null,null,null,null,null,null,null,null,null,null,null,null,null,null,null,null,null,null,null,null,null,null,null,null,null,null,null,null,null,null,null,null,null,null,null,null,null,null,null,null,null,null,null,null,null,null,null,null,null,null,null,null,null,null,null,null,null,null,null,null,null,null,null,null,null,null,null,null,null,null,null,{"$f":"SUM(ED19:EH28)","v":0}]
[null,null,null,null,null,null,null,null,null,null,null,null,null,null,null,null,null,null,null,null,null,null,null,null,null,null,null,null,null,null,null,null,null,null,null,null,null,null,null,null,null,null,null,null,null,null,null,null,null,null,null,null,null,null,null,null,null,null,null,null,null,null,null,null,null,null,null,null,null,null,null,null,null,null,null,null,null,null,null,null,null,null,null,null,null,null,null,null,null,null,null,null,null,null,null,null,null,null,null,null,null,null,null,null,null,null,null,null,null,null,null,null,null,null,null,null,null,null,null,null,null,null,null,"Unterschriften Mannschaftsführer",null,null,null,null,null,null,null,null,null,null,null,null,null,null,null,null,null,null,null,null,null,null,null,null,null,null,null,null,null,null,null,null,null,null,null,null,null,null,null,null,null,null,null,null,null,null,null,null,null,null,null,null,null,null,null,null,null,null,null,null,null,null,null,null,null,null,null,null,null,null,null,null,null,null,null,null,null,null,null,{"$f":"SUM(EN19:ER28)","v":0}]
[null,null,null,"In den Mannschaftsaufstellungen sind die nicht zu benutzenden Eintragungsfelder grau markiert",null,null,null,null,null,null,null,null,null,null,null,null,null,null,null,null,null,null,null,null,null,null,null,null,null,null,null,null,null,null,null,null,null,null,null,null,null,null,null,null,null,null,null,null,null,null,null,null,null,null,null,null,null,null,null,null,null,null,null,null,null,null,null,null,null,null,null,null,null,null,null,null,null,null,null,null,null,null,null,null,null,null,null,null,null,null,null,null,null,null,null,null,null,null,null,null,null,null,null,null,null,null,null,null,null,null,null,null,null,null,null,null,null,null,null,null,null,null,null,null,null,null,null,null,null,null,null,null,null,null,null,null,null,null,null,null,null,null,null,null,null,null,null,null,null,null,null,null,null,null,null,null,null,null,null,null,null,null,null,null,null,null,null,null,null,null,null,null,null,null,null,null,null,null,null,null,null,null,null,null,null,null,null,null,null,null,null,null,null,null,null,null,null,null,null,null,null,null,null,{"$f":"SUM(EX19:FB28)","v":0}]
[null,null,null,"Staffelleiter :",null,null,null,null,null,null,null,null,null,null,null,null,{"$f":"'4g4 Q'!Q15","v":"Matthias Höger - Erlenweg 8 - 86697 Unterhausen"},null,null,null,null,null,null,null,null,null,null,null,null,null,null,null,null,null,null,null,null,null,null,null,null,null,null,null,null,null,null,null,null,null,null,null,null,null,null,null,null,null,null,null,null,null,null,{"$f":"'4g4 Q'!BL15","v":"0176-46577799"},null,null,null,null,null,null,null,null,null,null,null,null,null,null,null,null,null,{"$f":"'4g4 Q'!CD15","v":"matthias.hoeger@ttkreis-bayreuth.de"},null,null,null,null,null,null,null,null,null,null,null,null,null,null,null,null,null,null,null,null,null,null,null,null,null,null,null,null,null,null,null,null,null,null,null,null,null,null,null,null,null,null,null,null,null,null,null,null,null,null,null,null,null,null,null,null,null,null,null,null,null,null,null,null,null,null,null,null,null,null,null,null,null,null,null,null,null,null,null,null,null,null,null,null,null,null,null,null,null,null,null,null,null,null,null,null,null,null,null,null,null,null,null,null,null,null,null,null,null,null,null,null,null,null,null,null,null,null,null,null,null,{"$f":"SUM(FH19:FL28)","v":0}]
[null,null,null,"Mannschaftsf. :",null,null,null,null,null,null,null,null,null,null,null,null,{"$f":"'4g4 Q'!Q16","v":"Name - Adresse - Heimmannschaftsführer"},null,null,null,null,null,null,null,null,null,null,null,null,null,null,null,null,null,null,null,null,null,null,null,null,null,null,null,null,null,null,null,null,null,null,null,null,null,null,null,null,null,null,null,null,null,null,{"$f":"'4g4 Q'!BL16","v":"0000-1111111"},null,null,null,null,null,null,null,null,null,null,null,null,null,null,null,null,null,{"$f":"'4g4 Q'!CD16","v":"emai@mfheim.de"},null,null,null,null,null,null,null,null,null,null,null,null,null,null,null,null,null,null,null,null,null,null,null,null,null,null,null,null,null,null,null,null,null,null,null,null,null,null,null,null,null,null,"Heimverein",null,null,null,null,null,null,null,null,null,null,null,null,null,null,null,null,null,null,null,null,null,null,null,null,null,null,null,null,null,null,null,null,null,null,null,null,null,null,null,null,null,"Gastverein",null,null,null,null,null,null,null,null,null,null,null,null,null,null,null,null,null,null,null,null,null,null,null,null,null,null,null,null,null,null,null,null,null,null,null,null,{"$f":"SUM(FR19:FV28)","v":0}]
[null,null,null,"Bitte zutreffendes Spielsystem ankreuzen",null,null,null,null,null,null,null,null,null,null,null,null,null,null,null,null,null,null,null,null,null,null,null,null,null,null,null,null,null,null,null,null,null,null,null,null,null,null,null,null,null,null,null,null,null,null,null,null,null,null,null,null,null,null,null,null,null,null,null,null,null,null,null,null,null,null,null,null,null,null,null,null,null,null,null,null,null,null,null,null,null,null,null,null,null,null,null,null,null,null,null,null,null,null,null,null,null,null,null,null,null,null,null,null,null,null,null,null,null,null,null,null,null,null,null,null,null,null,null,{"$f":"'4g4 Q'!DT17","v":"creadet by Gerhard Nidetzky"},null,null,null,null,null,null,null,null,null,null,null,null,null,null,null,null,null,null,null,null,null,null,null,null,null,null,null,null,null,null,null,null,null,null,null,null,null,null,null,null,null,null,null,null,null,null,null,null,null,null,null,null,null,null,null,null,null,null,null,null,null,null,null,null,null,null,null,null,null,null,null,null,null,null,null,null,null,null,null,{"$f":"SUM(GV12:GV16)","v":0}]
[null,null,null,null,null,null,null,"4 g 4",null,null,null,null,null,null,"X",null,null,null,"4 g 3",null,null,null,null,null,null,null,null,null,null,"3 g 4",null,null,null,null,null,null,null,null,null,null,"3 g 3",null,null,null,null,null,null,"Heimverein ( Mannschaft A )",null,null,null,null,null,null,null,null,null,null,null,null,null,null,null,null,null,null,null,null,null,null,null,null,null,null,null,null,null,null,null,null,null,null,null,null,null,null,null,null,null,null,"Gastverein ( Mannschaft B )",null,null,null,null,null,null,null,null,null,null,null,null,null,null,null,null,null,null,null,null,null,null,null,null,null,null,null,null,null,null,null,null,null,null,null,null,null,null,null,null,null,null,"1. Satz",null,null,null,null,null,null,null,null,null,"2. Satz",null,null,null,null,null,null,null,null,null,"3. Satz",null,null,null,null,null,null,null,null,null,"4. Satz",null,null,null,null,null,null,null,null,null,"5. Satz",null,null,null,null,null,null,null,null,null,"SÄTZE",null,null,null,null,null,null,null,null,null,"SPIELE"]
[null,null,null,"D",null,null,"A1-B1",null,null,null,null,null,null,null,"D",null,null,"A1-B1",null,null,null,null,null,null,null,"D",null,null,"A1-B1",null,null,null,null,null,null,null,"D",null,null,"A1-B1",null,null,null,null,null,null,null,{"$f":"Q12","v":0},null,null,null,null,null,null,null,null,null,null,null,null,null,null,null,null,null,null,null,null,null,null,null,null,null,null,null,null,null,null,null,null,null,null,null,null,null,null,null,null,null,null,{"$f":"BY12","v":0},null,null,null,null,null,null,null,null,null,null,null,null,null,null,null,null,null,null,null,null,null,null,null,null,null,null,null,null,null,null,null,null,null,null,null,null,null,null,null,null,null,null,null,null,null,null,null,null,null,null,null,null,null,null,null,null,null,null,null,null,null,null,null,null,null,null,null,null,null,null,null,null,null,null,null,null,null,null,null,null,null,null,null,null,null,null,null,null,null,null,null,null,{"$f":"IF(ED19=\"\",\"\",IF(ED19>EI19,1,0)+IF(EN19>ES19,1,0)+IF(EX19>FC19,1,0)+IF(FH19>FM19,1,0)+IF(FR19>FW19,1,0))","v":""},null,null,null,null,{"$f":"IF(ED19=\"\",\"\",IF(ED19<EI19,1,0)+IF(EN19<ES19,1,0)+IF(EX19<FC19,1,0)+IF(FH19<FM19,1,0)+IF(FR19<FW19,1,0))","v":""},null,null,null,null,{"$f":"IF(GB19=\"\",\"\",IF(GB19>GG19,1,0))","v":""},null,null,null,null,{"$f":"IF(GB19=\"\",\"\",IF(GB19<GG19,1,0))","v":""},null,null,null,null,{"$f":"FI8","v":0}]
[null,null,null,"D",null,null,"A2-B2",null,null,null,null,null,null,null,"E",null,null,"A3-B3",null,null,null,null,null,null,null,"E",null,null,"A3-B3",null,null,null,null,null,null,null,"E",null,null,"A1-B2",null,null,null,null,null,null,null,{"$f":"Q10","v":0},null,null,null,null,null,null,null,null,null,null,null,null,null,null,null,null,null,null,null,null,null,null,null,null,null,null,null,null,null,null,null,null,null,null,null,null,null,null,null,null,null,null,{"$f":"BY10","v":0},null,null,null,null,null,null,null,null,null,null,null,null,null,null,null,null,null,null,null,null,null,null,null,null,null,null,null,null,null,null,null,null,null,null,null,null,null,null,null,null,null,null,null,null,null,null,null,null,null,null,null,null,null,null,null,null,null,null,null,null,null,null,null,null,null,null,null,null,null,null,null,null,null,null,null,null,null,null,null,null,null,null,null,null,null,null,null,null,null,null,null,null,{"$f":"IF(ED20=\"\",\"\",IF(ED20>EI20,1,0)+IF(EN20>ES20,1,0)+IF(EX20>FC20,1,0)+IF(FH20>FM20,1,0)+IF(FR20>FW20,1,0))","v":""},null,null,null,null,{"$f":"IF(ED20=\"\",\"\",IF(ED20<EI20,1,0)+IF(EN20<ES20,1,0)+IF(EX20<FC20,1,0)+IF(FH20<FM20,1,0)+IF(FR20<FW20,1,0))","v":""},null,null,null,null,{"$f":"IF(GB20=\"\",\"\",IF(GB20>GG20,1,0))","v":""},null,null,null,null,{"$f":"IF(GB20=\"\",\"\",IF(GB20<GG20,1,0))","v":""},null,null,null,null,{"$f":"SUM(EI19:EM28)","v":0}]
[null,null,null,"E",null,null,"A1-B1",null,null,null,null,null,null,null,"E",null,null,"A1-B2",null,null,null,null,null,null,null,"E",null,null,"A2-B1",null,null,null,null,null,null,null,"E",null,null,"A2-B1",null,null,null,null,null,null,null,{"$f":"Q8","v":0},null,null,null,null,null,null,null,null,null,null,null,null,null,null,null,null,null,null,null,null,null,null,null,null,null,null,null,null,null,null,null,null,null,null,null,null,null,null,null,null,null,null,{"$f":"BY9","v":0},null,null,null,null,null,null,null,null,null,null,null,null,null,null,null,null,null,null,null,null,null,null,null,null,null,null,null,null,null,null,null,null,null,null,null,null,null,null,null,null,null,null,null,null,null,null,null,null,null,null,null,null,null,null,null,null,null,null,null,null,null,null,null,null,null,null,null,null,null,null,null,null,null,null,null,null,null,null,null,null,null,null,null,null,null,null,null,null,null,null,null,null,"",null,null,null,null,"",null,null,null,null,"",null,null,null,null,"",null,null,null,null,{"$f":"SUM(ES19:EW28)","v":0}]
[null,null,null,"E",null,null,"A2-B2",null,null,null,null,null,null,null,"E",null,null,"A2-B1",null,null,null,null,null,null,null,"E",null,null,"A1-B2",null,null,null,null,null,null,null,"E",null,null,"A3-B2",null,null,null,null,null,null,null,{"$f":"Q9","v":0},null,null,null,null,null,null,null,null,null,null,null,null,null,null,null,null,null,null,null,null,null,null,null,null,null,null,null,null,null,null,null,null,null,null,null,null,null,null,null,null,null,null,{"$f":"BY8","v":0},null,null,null,null,null,null,null,null,null,null,null,null,null,null,null,null,null,null,null,null,null,null,null,null,null,null,null,null,null,null,null,null,null,null,null,null,null,null,null,null,null,null,null,null,null,null,null,null,null,null,null,null,null,null,null,null,null,null,null,null,null,null,null,null,null,null,null,null,null,null,null,null,null,null,null,null,null,null,null,null,null,null,null,null,null,null,null,null,null,null,null,null,"",null,null,null,null,"",null,null,null,null,"",null,null,null,null,"",null,null,null,null,{"$f":"SUM(FC19:FG28)","v":0}]
[null,null,null,"E",null,null,"A3-B3",null,null,null,null,null,null,null,"E",null,null,"A4-B2",null,null,null,null,null,null,null,"E",null,null,"A2-B4",null,null,null,null,null,null,null,"E",null,null,"A2-B3",null,null,null,null,null,null,null,{"$f":"Q11","v":0},null,null,null,null,null,null,null,null,null,null,null,null,null,null,null,null,null,null,null,null,null,null,null,null,null,null,null,null,null,null,null,null,null,null,null,null,null,null,null,null,null,null,{"$f":"BY9","v":0},null,null,null,null,null,null,null,null,null,null,null,null,null,null,null,null,null,null,null,null,null,null,null,null,null,null,null,null,null,null,null,null,null,null,null,null,null,null,null,null,null,null,null,null,null,null,null,null,null,null,null,null,null,null,null,null,null,null,null,null,null,null,null,null,null,null,null,null,null,null,null,null,null,null,null,null,null,null,null,null,null,null,null,null,null,null,null,null,null,null,null,null,"",null,null,null,null,"",null,null,null,null,"",null,null,null,null,"",null,null,null,null,{"$f":"SUM(FM19:FQ28)","v":0}]
[null,null,null,"E",null,null,"A4-B4",null,null,null,null,null,null,null,"E",null,null,"A1-B1",null,null,null,null,null,null,null,"E",null,null,"A1-B1",null,null,null,null,null,null,null,"E",null,null,"A1-B1",null,null,null,null,null,null,null,{"$f":"Q8","v":0},null,null,null,null,null,null,null,null,null,null,null,null,null,null,null,null,null,null,null,null,null,null,null,null,null,null,null,null,null,null,null,null,null,null,null,null,null,null,null,null,null,null,{"$f":"BY8","v":0},null,null,null,null,null,null,null,null,null,null,null,null,null,null,null,null,null,null,null,null,null,null,null,null,null,null,null,null,null,null,null,null,null,null,null,null,null,null,null,null,null,null,null,null,null,null,null,null,null,null,null,null,null,null,null,null,null,null,null,null,null,null,null,null,null,null,null,null,null,null,null,null,null,null,null,null,null,null,null,null,null,null,null,null,null,null,null,null,null,null,null,null,"",null,null,null,null,"",null,null,null,null,"",null,null,null,null,"",null,null,null,null,{"$f":"SUM(FW19:GA28)","v":0}]
[null,null,null,"E",null,null,"A1-B2",null,null,null,null,null,null,null,"E",null,null,"A4-B3",null,null,null,null,null,null,null,"E",null,null,"A3-B4",null,null,null,null,null,null,null,"E",null,null,"A3-B3",null,null,null,null,null,null,null,{"$f":"Q11","v":0},null,null,null,null,null,null,null,null,null,null,null,null,null,null,null,null,null,null,null,null,null,null,null,null,null,null,null,null,null,null,null,null,null,null,null,null,null,null,null,null,null,null,{"$f":"BY10","v":0},null,null,null,null,null,null,null,null,null,null,null,null,null,null,null,null,null,null,null,null,null,null,null,null,null,null,null,null,null,null,null,null,null,null,null,null,null,null,null,null,null,null,null,null,null,null,null,null,null,null,null,null,null,null,null,null,null,null,null,null,null,null,null,null,null,null,null,null,null,null,null,null,null,null,null,null,null,null,null,null,null,null,null,null,null,null,null,null,null,null,null,null,"",null,null,null,null,"",null,null,null,null,"",null,null,null,null,"",null,null,null,null,{"$f":"SUM(GV20:GV24)","v":0}]
[null,null,null,"E",null,null,"A2-B1",null,null,null,null,null,null,null,"E",null,null,"A2-B2",null,null,null,null,null,null,null,"E",null,null,"A2-B2",null,null,null,null,null,null,null,"E",null,null,"A2-B2",null,null,null,null,null,null,null,{"$f":"Q9","v":0},null,null,null,null,null,null,null,null,null,null,null,null,null,null,null,null,null,null,null,null,null,null,null,null,null,null,null,null,null,null,null,null,null,null,null,null,null,null,null,null,null,null,{"$f":"BY9","v":0},null,null,null,null,null,null,null,null,null,null,null,null,null,null,null,null,null,null,null,null,null,null,null,null,null,null,null,null,null,null,null,null,null,null,null,null,null,null,null,null,null,null,null,null,null,null,null,null,null,null,null,null,null,null,null,null,null,null,null,null,null,null,null,null,null,null,null,null,null,null,null,null,null,null,null,null,null,null,null,null,null,null,null,null,null,null,null,null,null,null,null,null,"",null,null,null,null,"",null,null,null,null,"",null,null,null,null,""]
[null,null,null,"E",null,null,"A3-B4",null,null,null,null,null,null,null,"E",null,null,"A1-B3",null,null,null,null,null,null,null,"E",null,null,"A3-B1",null,null,null,null,null,null,null,"E",null,null,"A3-B1",null,null,null,null,null,null,null,{"$f":"Q8","v":0},null,null,null,null,null,null,null,null,null,null,null,null,null,null,null,null,null,null,null,null,null,null,null,null,null,null,null,null,null,null,null,null,null,null,null,null,null,null,null,null,null,null,{"$f":"BY10","v":0},null,null,null,null,null,null,null,null,null,null,null,null,null,null,null,null,null,null,null,null,null,null,null,null,null,null,null,null,null,null,null,null,null,null,null,null,null,null,null,null,null,null,null,null,null,null,null,null,null,null,null,null,null,null,null,null,null,null,null,null,null,null,null,null,null,null,null,null,null,null,null,null,null,null,null,null,null,null,null,null,null,null,null,null,null,null,null,null,null,null,null,null,"",null,null,null,null,"",null,null,null,null,"",null,null,null,null,""]
[null,null,null,"E",null,null,"A4-B3",null,null,null,null,null,null,null,"E",null,null,"A3-B1",null,null,null,null,null,null,null,"E",null,null,"A1-B3",null,null,null,null,null,null,null,"E",null,null,"A1-B3",null,null,null,null,null,null,null,{"$f":"Q10","v":0},null,null,null,null,null,null,null,null,null,null,null,null,null,null,null,null,null,null,null,null,null,null,null,null,null,null,null,null,null,null,null,null,null,null,null,null,null,null,null,null,null,null,{"$f":"BY8","v":0},null,null,null,null,null,null,null,null,null,null,null,null,null,null,null,null,null,null,null,null,null,null,null,null,null,null,null,null,null,null,null,null,null,null,null,null,null,null,null,null,null,null,null,null,null,null,null,null,null,null,null,null,null,null,null,null,null,null,null,null,null,null,null,null,null,null,null,null,null,null,null,null,null,null,null,null,null,null,null,null,null,null,null,null,null,null,null,null,null,null,null,null,"",null,null,null,null,"",null,null,null,null,"",null,null,null,null,""]
[null,null,null,"Spielort :",null,null,null,null,null,null,null,null,null,null,{"$f":"'4g4 Q'!O29","v":"daheim"},null,null,null,null,null,null,null,null,null,null,null,null,null,null,null,null,null,null,null,null,null,null,null,null,null,null,"Spielbeginn :",null,null,null,null,null,null,null,null,null,null,null,null,null,null,{"$f":"'4g4 Q'!BE29","v":"00:00:00"},null,null,null,null,null,null,null,null,null,null,"Uhr",null,null,null,null,null,null,null,null,null,null,null,null,null,null,null,null,null,null,null,null,null,null,null,null,null,null,null,null,null,null,null,null,null,null,null,null,null,null,null,null,null,null,null,null,null,null,null,null,null,null,null,null,null,null,null,null,null,null,null,null,null,null,null,null,null,null,null,null,null,null,null,null,null,null,null,null,null,null,null,null,null,null,null,null,null,null,null,null,null,null,null,null,null,null,"Heim",null,null,null,null,null,null,"Gast",null,null,null,null,null,null,null,null,null,null,null,null,null,{"$f":"IF(GB19=\"\",\"\",SUM(GB19:GF28))","v":""},null,null,null,null,{"$f":"IF(GG19=\"\",\"\",SUM(GG19:GK28))","v":""},null,null,null,null,{"$f":"IF(GL19=\"\",\"\",SUM(GL19:GP28))","v":""},null,null,null,null,{"$f":"IF(GQ19=\"\",\"\",SUM(GQ19:GU28))","v":""}]
[null,null,null,null,null,null,null,null,null,null,null,null,null,null,null,null,null,null,null,null,null,null,null,null,null,null,null,null,null,null,null,null,null,null,null,null,null,null,null,null,null,null,null,null,null,null,null,null,null,null,null,null,null,null,null,null,null,null,null,null,null,null,null,null,null,null,null,null,null,null,null,null,null,null,null,null,null,null,null,null,null," kein Protest",null,null,null,null,null,null,null,null,null,null,null,null,null,null,null,null,null,null,null,null,null,null,null,null,null,null,null,null,null,{"$f":"IF(EY31=FF31,\"\",IF(EY31>FF31,GV7,GV9))","v":""},null,null,null,null,null,null,null,null,null,null,null,null,null,null,null,null,null,null,null,null,null,null,null,null,null,null,null,null,null,null,null,null,null,null,null,null,null,null,null,null,null,null,"Bälle",null,null,null,null,null,null,null,{"$f":"GV17","v":0},null,null,null,null,null,":",{"$f":"GV25","v":0}]
[null,null,null,"Datum :",null,null,null,null,null,null,null,null,null,null,{"$f":"TODAY()","v":"2016-06-08"},null,null,null,null,null,null,null,null,null,null,null,null,null,null,null,null,null,null,null,null,null,null,null,null,null,null,"Spielende :",null,null,null,null,null,null,null,null,null,null,null,null,null,null,null,null,null,null,null,null,null,null,null,null,null,"Uhr",null,null,null,null,null,null,null,null,null,null,null,null,null,null,null,null,null,null,null,null,null,null,null,null,null,null,null,null,null,null,null,null,null,null,null,null,null,null,null,null,null,null,null,{"$f":"GV6","v":""},null,null,null,null,null,null,null,null,null,null,null,null,null,null,null,null,null,null,null,null,null,null,null,null,null,null,null,null,null,null,null,null,null,null,null,null,null,null,null,null,null,null,{"$f":"IF(GL29>GQ29,GL29,GQ29)","v":""},null,null,null,null,":",null,{"$f":"IF(GL29<GQ29,GL29,GQ29)","v":""},null,null,null,null,null,"Spiele",null,null,null,null,null,null,null,null,"und",null,null,null,null,null,{"$f":"IF(GL29>=GQ29,GB29,GG29)","v":""},null,null,null,null,":",null,{"$f":"IF(GL29<=GQ29,GB29,GG29)","v":""},null,null,null,null,null,"Sätze"]
[null,null,null,null,null,null,null,null,null,null,null,null,null,null,null,null,null,null,null,null,null,null,null,null,null,null,null,null,null,null,null,null,null,null,null,null,null,null,null,null,null,null,null,null,null,null,null,null,null,null,null,null,null,null,null,null,null,null,null,null,null,null,null,null,null,null,null,null,null,null,null,null,null,null,null,null,null,null,null,null,null," Protest - siehe Anlage"]

{"sheet":"3g4 Q","index":3,"n_rows":32,"n_cols":204,"rows_kept":32,"cut":false,"hidden":false,"merged":[[32,3,32,202],[30,175,31,175],[30,176,31,180],[30,181,31,181],[30,182,31,186],[30,187,31,188],[30,189,31,193],[30,67,31,72],[30,77,30,110],[30,111,31,151],[30,154,31,158],[30,159,31,160],[30,161,31,165],[28,73,31,76],[28,3,29,13],[28,14,29,37],[28,38,31,40],[28,41,29,55],[28,56,29,66],[28,67,29,72],[28,198,29,202],[29,77,29,80],[29,81,29,110],[29,111,29,151],[29,152,31,153],[29,154,29,161],[28,77,28,110],[28,111,28,151],[28,152,28,161],[28,162,28,167],[28,169,28,174],[29,162,29,167],[29,169,29,174],[30,166,31,166],[30,167,31,174],[30,194,31,194],[30,195,31,202],[31,77,31,80],[31,81,31,110],[30,3,31,13],[30,14,31,37],[30,41,31,55],[30,56,31,66],[27,173,27,177],[27,178,27,182],[27,183,27,187],[27,188,27,192],[27,193,27,197],[27,3,27,5],[27,6,27,13],[27,14,27,16],[27,17,27,24],[27,25,27,27],[27,28,27,35],[28,175,29,182],[28,183,29,187],[28,188,29,192],[28,193,29,197],[27,198,27,202],[27,143,27,147],[27,148,27,152],[27,153,27,157],[27,158,27,162],[27,163,27,167],[27,168,27,172],[27,36,27,38],[27,39,27,46],[27,47,27,89],[27,90,27,132],[27,133,27,137],[27,138,27,142],[26,173,26,177],[26,178,26,182],[26,183,26,187],[26,188,26,192],[26,193,26,197],[26,198,26,202],[26,143,26,147],[26,148,26,152],[26,153,26,157],[26,158,26,162],[26,163,26,167],[26,168,26,172],[26,36,26,38],[26,39,26,46],[26,47,26,89],[26,90,26,132],[26,133,26,137],[26,138,26,142],[26,3,26,5],[26,6,26,13],[26,14,26,16],[26,17,26,24],[26,25,26,27],[26,28,26,35],[25,173,25,177],[25,178,25,182],[25,183,25,187],[25,188,25,192],[25,193,25,197],[25,198,25,202],[25,143,25,147],[25,148,25,152],[25,153,25,157],[25,158,25,162],[25,163,25,167],[25,168,25,172],[25,36,25,38],[25,39,25,46],[25,47,25,89],[25,90,25,132],[25,133,25,137],[25,138,25,142],[25,3,25,5],[25,6,25,13],[25,14,25,16],[25,17,25,24],[25,25,25,27],[25,28,25,35],[24,173,24,177],[24,178,24,182],[24,183,24,187],[24,188,24,192],[24,193,24,197],[24,198,24,202],[24,143,24,147],[24,148,24,152],[24,153,24,157],[24,158,24,162],[24,163,24,167],[24,168,24,172],[24,36,24,38],[24,39,24,46],[24,47,24,89],[24,90,24,132],[24,133,24,137],[24,138,24,142],[24,3,24,5],[24,6,24,13],[24,14,24,16],[24,17,24,24],[24,25,24,27],[24,28,24,35],[23,173,23,177],[23,178,23,182],[23,183,23,187],[23,188,23,192],[23,193,23,197],[23,198,23,202],[23,143,23,147],[23,148,23,152],[23,153,23,157],[23,158,23,162],[23,163,23,167],[23,168,23,172],[23,36,23,38],[23,39,23,46],[23,47,23,89],[23,90,23,132],[23,133,23,137],[23,138,23,142],[23,3,23,5],[23,6,23,13],[23,14,23,16],[23,17,23,24],[23,25,23,27],[23,28,23,35],[22,173,22,177],[22,178,22,182],[22,183,22,187],[22,188,22,192],[22,193,22,197],[22,198,22,202],[22,143,22,147],[22,148,22,152],[22,153,22,157],[22,158,22,162],[22,163,22,167],[22,168,22,172],[22,36,22,38],[22,39,22,46],[22,47,22,89],[22,90,22,132],[22,133,22,137],[22,138,22,142],[22,3,22,5],[22,6,22,13],[22,14,22,16],[22,17,22,24],[22,25,22,27],[22,28,22,35],[21,173,21,177],[21,178,21,182],[21,183,21,187],[21,188,21,192],[21,193,21,197],[21,198,21,202],[21,143,21,147],[21,148,21,152],[21,153,21,157],[21,158,21,162],[21,163,21,167],[21,168,21,172],[21,36,21,38],[21,39,21,46],[21,47,21,89],[21,90,21,132],[21,133,21,137],[21,138,21,142],[21,3,21,5],[21,6,21,13],[21,14,21,16],[21,17,21,24],[21,25,21,27],[21,28,21,35],[20,173,20,177],[20,178,20,182],[20,183,20,187],[20,188,20,192],[20,193,20,197],[20,198,20,202],[20,143,20,147],[20,148,20,152],[20,153,20,157],[20,158,20,162],[20,163,20,167],[20,168,20,172],[20,36,20,38],[20,39,20,46],[20,47,20,89],[20,90,20,132],[20,133,20,137],[20,138,20,142],[20,3,20,5],[20,6,20,13],[20,14,20,16],[20,17,20,24],[20,25,20,27],[20,28,20,35],[19,3,19,5],[19,6,19,13],[19,14,19,16],[19,17,19,24],[19,25,19,27],[19,28,19,35],[19,173,19,177],[19,178,19,182],[19,183,19,187],[19,143,19,147],[19,148,19,152],[19,153,19,157],[19,158,19,162],[19,163,19,167],[19,168,19,172],[19,36,19,38],[19,39,19,46],[19,47,19,89],[19,90,19,132],[19,133,19,137],[19,138,19,142],[19,188,19,192],[19,193,19,197],[19,198,19,202],[17,3,17,6],[17,7,17,13],[17,14,17,17],[17,18,17,24],[17,25,17,28],[17,29,17,35],[17,36,17,39],[18,193,18,197],[18,198,18,202],[18,143,18,147],[18,148,18,152],[18,153,18,157],[18,158,18,162],[18,163,18,167],[18,168,18,172],[18,133,18,137],[18,138,18,142],[17,193,17,202],[18,3,18,5],[18,6,18,13],[18,14,18,16],[18,17,18,24],[18,25,18,27],[18,28,18,35],[17,40,17,46],[17,47,17,89],[17,90,17,132],[17,133,17,142],[17,143,17,152],[17,153,17,162],[18,36,18,38],[18,39,18,46],[18,47,18,89],[18,90,18,132],[17,163,17,172],[17,173,17,182],[17,183,17,192],[18,173,18,177],[18,178,18,182],[18,183,18,187],[18,188,18,192],[15,166,15,201],[13,3,13,118],[13,123,15,123],[13,124,14,159],[13,160,15,165],[13,166,14,201],[16,3,16,46],[16,47,16,118],[16,123,16,202],[13,202,15,202],[14,3,14,15],[14,16,14,62],[14,63,14,80],[14,81,14,118],[15,3,15,15],[15,16,15,62],[15,63,15,80],[15,81,15,118],[15,124,15,159],[11,123,11,202],[12,3,12,11],[12,12,12,15],[12,16,12,58],[12,63,12,71],[12,72,12,75],[12,76,12,118],[12,123,12,202],[11,3,11,11],[11,12,11,15],[11,16,11,58],[11,63,11,71],[11,72,11,75],[11,76,11,118],[9,195,9,201],[10,3,10,11],[10,12,10,15],[10,16,10,51],[10,52,10,58],[10,63,10,71],[10,72,10,75],[10,76,10,111],[10,112,10,118],[10,124,10,136],[9,124,9,129],[9,130,9,136],[9,137,9,161],[9,162,10,163],[9,164,9,188],[9,189,9,194],[10,137,10,161],[10,164,10,188],[10,189,10,201],[7,63,7,71],[7,72,7,75],[7,76,7,111],[8,76,8,111],[8,112,8,118],[9,3,9,11],[9,12,9,15],[9,16,9,51],[9,52,9,58],[9,63,9,71],[9,72,9,75],[9,76,9,111],[9,112,9,118],[4,142,4,145],[5,3,5,122],[5,123,5,202],[6,3,6,51],[6,52,6,58],[6,59,12,62],[6,63,6,111],[6,112,6,118],[6,119,16,122],[6,124,6,201],[7,3,7,11],[7,112,7,118],[7,124,8,161],[7,162,8,163],[7,164,8,201],[8,3,8,11],[8,12,8,15],[8,16,8,51],[8,52,8,58],[8,63,8,71],[8,72,8,75],[7,12,7,15],[7,16,7,51],[7,52,7,58],[0,0,32,2],[0,3,0,202],[0,204,32,206],[1,3,2,202],[3,3,4,17],[3,18,4,20],[3,21,4,37],[3,38,4,40],[3,41,4,67],[3,68,4,70],[3,164,4,165],[3,166,4,179],[3,180,4,180],[3,181,4,190],[3,191,4,192],[3,193,4,202],[3,71,4,85],[3,86,4,113],[3,114,3,123],[3,124,4,140],[3,141,3,146],[3,147,4,163],[4,114,4,118],[4,119,4,122]]}
[]
[null,null,null,"Spielberichts-Formular",null,null,null,null,null,null,null,null,null,null,null,null,null,null,null,null,null,null,null,null,null,null,null,null,null,null,null,null,null,null,null,null,null,null,null,null,null,null,null,null,null,null,null,null,null,null,null,null,null,null,null,null,null,null,null,null,null,null,null,null,null,null,null,null,null,null,null,null,null,null,null,null,null,null,null,null,null,null,null,null,null,null,null,null,null,null,null,null,null,null,null,null,null,null,null,null,null,null,null,null,null,null,null,null,null,null,null,null,null,null,null,null,null,null,null,null,null,null,null,null,null,null,null,null,null,null,null,null,null,null,null,null,null,null,null,null,null,null,null,null,null,null,null,null,null,null,null,null,null,null,null,null,null,null,null,null,null,null,null,null,null,null,null,null,null,null,null,null,null,null,null,null,null,null,null,null,null,null,null,null,null,null,null,null,null,null,null,null,null,null,null,null,null,null,null,null,null,null,null,{"$f":"IF(GL29=GQ29,\"\",IF(GL29>GQ29,DU8,FI8))","v":""}]
[null,null,null,null,null,null,null,null,null,null,null,null,null,null,null,null,null,null,null,null,null,null,null,null,null,null,null,null,null,null,null,null,null,null,null,null,null,null,null,null,null,null,null,null,null,null,null,null,null,null,null,null,null,null,null,null,null,null,null,null,null,null,null,null,null,null,null,null,null,null,null,null,null,null,null,null,null,null,null,null,null,null,null,null,null,null,null,null,null,null,null,null,null,null,null,null,null,null,null,null,null,null,null,null,null,null,null,null,null,null,null,null,null,null,null,null,null,null,null,null,null,null,null,null,null,null,null,null,null,null,null,null,null,null,null,null,null,null,null,null,null,null,null,null,null,null,null,null,null,null,null,null,null,null,null,null,null,null,null,null,null,null,null,null,null,null,null,null,null,null,null,null,null,null,null,null,null,null,null,null,null,null,null,null,null,null,null,null,null,null,null,null,null,null,null,null,null,null,null,null,null,null,null,{"$f":"IF(GL29=\"\",\"\",IF(GL29=GQ29,GV8))","v":""}]
[null,null,null,{"$f":"'4g4 Q'!D4","v":"HERREN"},null,null,null,null,null,null,null,null,null,null,null,null,null,null,"-",null,null,{"$f":"'4g4 Q'!V4","v":"Verbands"},null,null,null,null,null,null,null,null,null,null,null,null,null,null,null,null,"-",null,null,{"$f":"'4g4 Q'!AP4","v":"Mannschaftsspiel"},null,null,null,null,null,null,null,null,null,null,null,null,null,null,null,null,null,null,null,null,null,null,null,null,null,null,null,null,null,"Spielklasse :",null,null,null,null,null,null,null,null,null,null,null,null,null,null,{"$f":"'4g4 Q'!CI4","v":"4. Kreisliga Mitte"},null,null,null,null,null,null,null,null,null,null,null,null,null,null,null,null,null,null,null,null,null,null,null,null,null,null,null,null,null,null,null,null,null,null,null,null,null,"Vorrunde",null,null,null,null,null,null,null,null,null,null,null,null,null,null,null,null,null,null,null,null,null,null,"Rückrunde",null,null,null,null,null,null,null,null,null,null,null,null,null,null,null,null,null,null,"SAISON",null,null,null,null,null,null,null,null,null,null,null,null,null,null,{"$f":"'4g4 Q'!FZ4","v":2016},null,null,null,null,null,null,null,null,null,"/",null,{"$f":"FZ4+1","v":2017}]
[]
[null,null,null,null,null,null,null,null,null,null,null,null,null,null,null,null,null,null,null,null,null,null,null,null,null,null,null,null,null,null,null,null,null,null,null,null,null,null,null,null,null,null,null,null,null,null,null,null,null,null,null,null,null,null,null,null,null,null,null,null,null,null,null,null,null,null,null,null,null,null,null,null,null,null,null,null,null,null,null,null,null,null,null,null,null,null,null,null,null,null,null,null,null,null,null,null,null,null,null,null,null,null,null,null,null,null,null,null,null,null,null,null,null,null,null,null,null,null,null,null,null,null,null,null,null,null,null,null,null,null,null,null,null,null,null,null,null,null,null,null,null,null,null,null,null,null,null,null,null,null,null,null,null,null,null,null,null,null,null,null,null,null,null,null,null,null,null,null,null,null,null,null,null,null,null,null,null,null,null,null,null,null,null,null,null,null,null,null,null,null,null,null,null,null,null,null,null,null,null,null,null,null,null,{"$f":"IF(GL29<>GQ29,GV2,GV3)","v":""}]
[null,null,null,"Mannschaftsaufstellung   -   Heimverein",null,null,null,null,null,null,null,null,null,null,null,null,null,null,null,null,null,null,null,null,null,null,null,null,null,null,null,null,null,null,null,null,null,null,null,null,null,null,null,null,null,null,null,null,null,null,null,null,"Pos.",null,null,null,null,null,null,null,null,null,null,"Mannschaftsaufstellung   -   Gastverein",null,null,null,null,null,null,null,null,null,null,null,null,null,null,null,null,null,null,null,null,null,null,null,null,null,null,null,null,null,null,null,null,null,null,null,null,null,null,null,null,null,null,null,null,null,null,null,null,"Pos.",null,null,null,null,null,null,null,null,null,null,null,"Spielpaarung",null,null,null,null,null,null,null,null,null,null,null,null,null,null,null,null,null,null,null,null,null,null,null,null,null,null,null,null,null,null,null,null,null,null,null,null,null,null,null,null,null,null,null,null,null,null,null,null,null,null,null,null,null,null,null,null,null,null,null,null,null,null,null,null,null,null,null,null,null,null,null,null,null,null,null,null,null,null,"Sieger"]
[null,null,null,"Einzel",null,null,null,null,null,null,null,null,"A1",null,null,null,null,null,null,null,null,null,null,null,null,null,null,null,null,null,null,null,null,null,null,null,null,null,null,null,null,null,null,null,null,null,null,null,null,null,null,null,null,null,null,null,null,null,null,null,null,null,null,"Einzel",null,null,null,null,null,null,null,null,"B1",null,null,null,null,null,null,null,null,null,null,null,null,null,null,null,null,null,null,null,null,null,null,null,null,null,null,null,null,null,null,null,null,null,null,null,null,null,null,null,null,null,null,null,null,null,null,null,null,null,null,null,null,null,null,null,null,null,null,null,null,null,null,null,null,null,null,null,null,null,null,null,null,null,null,null,null,null,null,null,null,null,null,null,null,null,null,null,null,null,":",null,null,null,null,null,null,null,null,null,null,null,null,null,null,null,null,null,null,null,null,null,null,null,null,null,null,null,null,null,null,null,null,null,null,null,null,null,null,null,null,"Unentschieden"]
[null,null,null,"Einzel",null,null,null,null,null,null,null,null,"A2",null,null,null,null,null,null,null,null,null,null,null,null,null,null,null,null,null,null,null,null,null,null,null,null,null,null,null,null,null,null,null,null,null,null,null,null,null,null,null,null,null,null,null,null,null,null,null,null,null,null,"Einzel",null,null,null,null,null,null,null,null,"B2"]
[null,null,null,"Einzel",null,null,null,null,null,null,null,null,"A3",null,null,null,null,null,null,null,null,null,null,null,null,null,null,null,null,null,null,null,null,null,null,null,null,null,null,null,null,null,null,null,null,null,null,null,null,null,null,null,null,null,null,null,null,null,null,null,null,null,null,"Einzel",null,null,null,null,null,null,null,null,"B3",null,null,null,null,null,null,null,null,null,null,null,null,null,null,null,null,null,null,null,null,null,null,null,null,null,null,null,null,null,null,null,null,null,null,null,null,null,null,null,null,null,null,null,null,null,null,null,null,null,null,null,{"$f":"'4g4 Q'!DU10","v":508},null,null,null,null,null,{"$f":"'4g4 Q'!EA10","v":0},null,null,null,null,null,null,"Heimverein",null,null,null,null,null,null,null,null,null,null,null,null,null,null,null,null,null,null,null,null,null,null,null,null,null,null,"Gastverein",null,null,null,null,null,null,null,null,null,null,null,null,null,null,null,null,null,null,null,null,null,null,null,null,508]
[null,null,null,null,null,null,null,null,null,null,null,null,null,null,null,null,null,null,null,null,null,null,null,null,null,null,null,null,null,null,null,null,null,null,null,null,null,null,null,null,null,null,null,null,null,null,null,null,null,null,null,null,null,null,null,null,null,null,null,null,null,null,null,"Einzel",null,null,null,null,null,null,null,null,"B4",null,null,null,null,null,null,null,null,null,null,null,null,null,null,null,null,null,null,null,null,null,null,null,null,null,null,null,null,null,null,null,null,null,null,null,null,null,null,null,null,null,null,null,null,null,null,null,null,null,null,null,"Vereins-Nr.",null,null,null,null,null,null,null,null,null,null,null,null,"( Mannschaft A )",null,null,null,null,null,null,null,null,null,null,null,null,null,null,null,null,null,null,null,null,null,null,null,null,null,null,"( Mannschaft B )",null,null,null,null,null,null,null,null,null,null,null,null,null,null,null,null,null,null,null,null,null,null,null,null,"Vereins-Nr.",null,null,null,null,null,null,null,null,null,null,null,null,null,{"$f":"DU8","v":0}]
[null,null,null,"Doppel",null,null,null,null,null,null,null,null,"A1",null,null,null,null,null,null,null,null,null,null,null,null,null,null,null,null,null,null,null,null,null,null,null,null,null,null,null,null,null,null,null,null,null,null,null,null,null,null,null,null,null,null,null,null,null,null,null,null,null,null,"Doppel",null,null,null,null,null,null,null,null,"B1",null,null,null,null,null,null,null,null,null,null,null,null,null,null,null,null,null,null,null,null,null,null,null,null,null,null,null,null,null,null,null,null,null,null,null,null,null,null,null,null,null,null,null,null,null,null,null,null,null,null,null,null,null,null,null,null,null,null,null,null,null,null,null,null,null,null,null,null,null,null,null,null,null,null,null,null,null,null,null,null,null,null,null,null,null,null,null,null,null,null,null,null,null,null,null,null,null,null,null,null,null,null,null,null,null,null,null,null,null,null,null,null,null,null,null,null,null,null,null,null,null,null,null,null,null,null,null,null,null,null,{"$f":"SUM(ED19:EH28)","v":0}]
[null,null,null,null,null,null,null,null,null,null,null,null,null,null,null,null,null,null,null,null,null,null,null,null,null,null,null,null,null,null,null,null,null,null,null,null,null,null,null,null,null,null,null,null,null,null,null,null,null,null,null,null,null,null,null,null,null,null,null,null,null,null,null,null,null,null,null,null,null,null,null,null,null,null,null,null,null,null,null,null,null,null,null,null,null,null,null,null,null,null,null,null,null,null,null,null,null,null,null,null,null,null,null,null,null,null,null,null,null,null,null,null,null,null,null,null,null,null,null,null,null,null,null,"Unterschriften Mannschaftsführer",null,null,null,null,null,null,null,null,null,null,null,null,null,null,null,null,null,null,null,null,null,null,null,null,null,null,null,null,null,null,null,null,null,null,null,null,null,null,null,null,null,null,null,null,null,null,null,null,null,null,null,null,null,null,null,null,null,null,null,null,null,null,null,null,null,null,null,null,null,null,null,null,null,null,null,null,null,null,null,{"$f":"SUM(EN19:ER28)","v":0}]
[null,null,null,"In den Mannschaftsaufstellungen sind die nicht zu benutzenden Eintragungsfelder grau markiert",null,null,null,null,null,null,null,null,null,null,null,null,null,null,null,null,null,null,null,null,null,null,null,null,null,null,null,null,null,null,null,null,null,null,null,null,null,null,null,null,null,null,null,null,null,null,null,null,null,null,null,null,null,null,null,null,null,null,null,null,null,null,null,null,null,null,null,null,null,null,null,null,null,null,null,null,null,null,null,null,null,null,null,null,null,null,null,null,null,null,null,null,null,null,null,null,null,null,null,null,null,null,null,null,null,null,null,null,null,null,null,null,null,null,null,null,null,null,null,null,null,null,null,null,null,null,null,null,null,null,null,null,null,null,null,null,null,null,null,null,null,null,null,null,null,null,null,null,null,null,null,null,null,null,null,null,null,null,null,null,null,null,null,null,null,null,null,null,null,null,null,null,null,null,null,null,null,null,null,null,null,null,null,null,null,null,null,null,null,null,null,null,null,null,null,null,null,null,null,{"$f":"SUM(EX19:FB28)","v":0}]
[null,null,null,"Staffelleiter :",null,null,null,null,null,null,null,null,null,null,null,null,{"$f":"'4g4 Q'!Q15","v":"Matthias Höger - Erlenweg 8 - 86697 Unterhausen"},null,null,null,null,null,null,null,null,null,null,null,null,null,null,null,null,null,null,null,null,null,null,null,null,null,null,null,null,null,null,null,null,null,null,null,null,null,null,null,null,null,null,null,null,null,null,{"$f":"'4g4 Q'!BL15","v":"0176-46577799"},null,null,null,null,null,null,null,null,null,null,null,null,null,null,null,null,null,{"$f":"'4g4 Q'!CD15","v":"matthias.hoeger@ttkreis-bayreuth.de"},null,null,null,null,null,null,null,null,null,null,null,null,null,null,null,null,null,null,null,null,null,null,null,null,null,null,null,null,null,null,null,null,null,null,null,null,null,null,null,null,null,null,null,null,null,null,null,null,null,null,null,null,null,null,null,null,null,null,null,null,null,null,null,null,null,null,null,null,null,null,null,null,null,null,null,null,null,null,null,null,null,null,null,null,null,null,null,null,null,null,null,null,null,null,null,null,null,null,null,null,null,null,null,null,null,null,null,null,null,null,null,null,null,null,null,null,null,null,null,null,null,{"$f":"SUM(FH19:FL28)","v":0}]
[null,null,null,"Mannschaftsf. :",null,null,null,null,null,null,null,null,null,null,null,null,{"$f":"'4g4 Q'!Q16","v":"Name - Adresse - Heimmannschaftsführer"},null,null,null,null,null,null,null,null,null,null,null,null,null,null,null,null,null,null,null,null,null,null,null,null,null,null,null,null,null,null,null,null,null,null,null,null,null,null,null,null,null,null,null,null,null,null,{"$f":"'4g4 Q'!BL16","v":"0000-1111111"},null,null,null,null,null,null,null,null,null,null,null,null,null,null,null,null,null,{"$f":"'4g4 Q'!CD16","v":"emai@mfheim.de"},null,null,null,null,null,null,null,null,null,null,null,null,null,null,null,null,null,null,null,null,null,null,null,null,null,null,null,null,null,null,null,null,null,null,null,null,null,null,null,null,null,null,"Heimverein",null,null,null,null,null,null,null,null,null,null,null,null,null,null,null,null,null,null,null,null,null,null,null,null,null,null,null,null,null,null,null,null,null,null,null,null,null,null,null,null,null,"Gastverein",null,null,null,null,null,null,null,null,null,null,null,null,null,null,null,null,null,null,null,null,null,null,null,null,null,null,null,null,null,null,null,null,null,null,null,null,{"$f":"SUM(FR19:FV28)","v":0}]
[null,null,null,"Bitte zutreffendes Spielsystem ankreuzen",null,null,null,null,null,null,null,null,null,null,null,null,null,null,null,null,null,null,null,null,null,null,null,null,null,null,null,null,null,null,null,null,null,null,null,null,null,null,null,null,null,null,null,null,null,null,null,null,null,null,null,null,null,null,null,null,null,null,null,null,null,null,null,null,null,null,null,null,null,null,null,null,null,null,null,null,null,null,null,null,null,null,null,null,null,null,null,null,null,null,null,null,null,null,null,null,null,null,null,null,null,null,null,null,null,null,null,null,null,null,null,null,null,null,null,null,null,null,null,{"$f":"'4g4 Q'!DT17","v":"creadet by Gerhard Nidetzky"},null,null,null,null,null,null,null,null,null,null,null,null,null,null,null,null,null,null,null,null,null,null,null,null,null,null,null,null,null,null,null,null,null,null,null,null,null,null,null,null,null,null,null,null,null,null,null,null,null,null,null,null,null,null,null,null,null,null,null,null,null,null,null,null,null,null,null,null,null,null,null,null,null,null,null,null,null,null,null,{"$f":"SUM(GV12:GV16)","v":0}]
[null,null,null,null,null,null,null,"4 g 4",null,null,null,null,null,null,null,null,null,null,"4 g 3",null,null,null,null,null,null,"X",null,null,null,"3 g 4",null,null,null,null,null,null,null,null,null,null,"3 g 3",null,null,null,null,null,null,"Heimverein ( Mannschaft A )",null,null,null,null,null,null,null,null,null,null,null,null,null,null,null,null,null,null,null,null,null,null,null,null,null,null,null,null,null,null,null,null,null,null,null,null,null,null,null,null,null,null,"Gastverein ( Mannschaft B )",null,null,null,null,null,null,null,null,null,null,null,null,null,null,null,null,null,null,null,null,null,null,null,null,null,null,null,null,null,null,null,null,null,null,null,null,null,null,null,null,null,null,"1. Satz",null,null,null,null,null,null,null,null,null,"2. Satz",null,null,null,null,null,null,null,null,null,"3. Satz",null,null,null,null,null,null,null,null,null,"4. Satz",null,null,null,null,null,null,null,null,null,"5. Satz",null,null,null,null,null,null,null,null,null,"SÄTZE",null,null,null,null,null,null,null,null,null,"SPIELE"]
[null,null,null,"D",null,null,"A1-B1",null,null,null,null,null,null,null,"D",null,null,"A1-B1",null,null,null,null,null,null,null,"D",null,null,"A1-B1",null,null,null,null,null,null,null,"D",null,null,"A1-B1",null,null,null,null,null,null,null,{"$f":"Q12","v":0},null,null,null,null,null,null,null,null,null,null,null,null,null,null,null,null,null,null,null,null,null,null,null,null,null,null,null,null,null,null,null,null,null,null,null,null,null,null,null,null,null,null,{"$f":"BY12","v":0},null,null,null,null,null,null,null,null,null,null,null,null,null,null,null,null,null,null,null,null,null,null,null,null,null,null,null,null,null,null,null,null,null,null,null,null,null,null,null,null,null,null,null,null,null,null,null,null,null,null,null,null,null,null,null,null,null,null,null,null,null,null,null,null,null,null,null,null,null,null,null,null,null,null,null,null,null,null,null,null,null,null,null,null,null,null,null,null,null,null,null,null,{"$f":"IF(ED19=\"\",\"\",IF(ED19>EI19,1,0)+IF(EN19>ES19,1,0)+IF(EX19>FC19,1,0)+IF(FH19>FM19,1,0)+IF(FR19>FW19,1,0))","v":""},null,null,null,null,{"$f":"IF(ED19=\"\",\"\",IF(ED19<EI19,1,0)+IF(EN19<ES19,1,0)+IF(EX19<FC19,1,0)+IF(FH19<FM19,1,0)+IF(FR19<FW19,1,0))","v":""},null,null,null,null,{"$f":"IF(GB19=\"\",\"\",IF(GB19>GG19,1,0))","v":""},null,null,null,null,{"$f":"IF(GB19=\"\",\"\",IF(GB19<GG19,1,0))","v":""},null,null,null,null,{"$f":"FI8","v":0}]
[null,null,null,"D",null,null,"A2-B2",null,null,null,null,null,null,null,"E",null,null,"A3-B3",null,null,null,null,null,null,null,"E",null,null,"A3-B3",null,null,null,null,null,null,null,"E",null,null,"A1-B2",null,null,null,null,null,null,null,{"$f":"Q10","v":0},null,null,null,null,null,null,null,null,null,null,null,null,null,null,null,null,null,null,null,null,null,null,null,null,null,null,null,null,null,null,null,null,null,null,null,null,null,null,null,null,null,null,{"$f":"BY10","v":0},null,null,null,null,null,null,null,null,null,null,null,null,null,null,null,null,null,null,null,null,null,null,null,null,null,null,null,null,null,null,null,null,null,null,null,null,null,null,null,null,null,null,null,null,null,null,null,null,null,null,null,null,null,null,null,null,null,null,null,null,null,null,null,null,null,null,null,null,null,null,null,null,null,null,null,null,null,null,null,null,null,null,null,null,null,null,null,null,null,null,null,null,{"$f":"IF(ED20=\"\",\"\",IF(ED20>EI20,1,0)+IF(EN20>ES20,1,0)+IF(EX20>FC20,1,0)+IF(FH20>FM20,1,0)+IF(FR20>FW20,1,0))","v":""},null,null,null,null,{"$f":"IF(ED20=\"\",\"\",IF(ED20<EI20,1,0)+IF(EN20<ES20,1,0)+IF(EX20<FC20,1,0)+IF(FH20<FM20,1,0)+IF(FR20<FW20,1,0))","v":""},null,null,null,null,{"$f":"IF(GB20=\"\",\"\",IF(GB20>GG20,1,0))","v":""},null,null,null,null,{"$f":"IF(GB20=\"\",\"\",IF(GB20<GG20,1,0))","v":""},null,null,null,null,{"$f":"SUM(EI19:EM28)","v":0}]
[null,null,null,"E",null,null,"A1-B1",null,null,null,null,null,null,null,"E",null,null,"A1-B2",null,null,null,null,null,null,null,"E",null,null,"A2-B1",null,null,null,null,null,null,null,"E",null,null,"A2-B1",null,null,null,null,null,null,null,{"$f":"Q9","v":0},null,null,null,null,null,null,null,null,null,null,null,null,null,null,null,null,null,null,null,null,null,null,null,null,null,null,null,null,null,null,null,null,null,null,null,null,null,null,null,null,null,null,{"$f":"BY8","v":0},null,null,null,null,null,null,null,null,null,null,null,null,null,null,null,null,null,null,null,null,null,null,null,null,null,null,null,null,null,null,null,null,null,null,null,null,null,null,null,null,null,null,null,null,null,null,null,null,null,null,null,null,null,null,null,null,null,null,null,null,null,null,null,null,null,null,null,null,null,null,null,null,null,null,null,null,null,null,null,null,null,null,null,null,null,null,null,null,null,null,null,null,"",null,null,null,null,"",null,null,null,null,"",null,null,null,null,"",null,null,null,null,{"$f":"SUM(ES19:EW28)","v":0}]
[null,null,null,"E",null,null,"A2-B2",null,null,null,null,null,null,null,"E",null,null,"A2-B1",null,null,null,null,null,null,null,"E",null,null,"A1-B2",null,null,null,null,null,null,null,"E",null,null,"A3-B2",null,null,null,null,null,null,null,{"$f":"Q8","v":0},null,null,null,null,null,null,null,null,null,null,null,null,null,null,null,null,null,null,null,null,null,null,null,null,null,null,null,null,null,null,null,null,null,null,null,null,null,null,null,null,null,null,{"$f":"BY9","v":0},null,null,null,null,null,null,null,null,null,null,null,null,null,null,null,null,null,null,null,null,null,null,null,null,null,null,null,null,null,null,null,null,null,null,null,null,null,null,null,null,null,null,null,null,null,null,null,null,null,null,null,null,null,null,null,null,null,null,null,null,null,null,null,null,null,null,null,null,null,null,null,null,null,null,null,null,null,null,null,null,null,null,null,null,null,null,null,null,null,null,null,null,"",null,null,null,null,"",null,null,null,null,"",null,null,null,null,"",null,null,null,null,{"$f":"SUM(FC19:FG28)","v":0}]
[null,null,null,"E",null,null,"A3-B3",null,null,null,null,null,null,null,"E",null,null,"A4-B2",null,null,null,null,null,null,null,"E",null,null,"A2-B4",null,null,null,null,null,null,null,"E",null,null,"A2-B3",null,null,null,null,null,null,null,{"$f":"Q9","v":0},null,null,null,null,null,null,null,null,null,null,null,null,null,null,null,null,null,null,null,null,null,null,null,null,null,null,null,null,null,null,null,null,null,null,null,null,null,null,null,null,null,null,{"$f":"BY11","v":0},null,null,null,null,null,null,null,null,null,null,null,null,null,null,null,null,null,null,null,null,null,null,null,null,null,null,null,null,null,null,null,null,null,null,null,null,null,null,null,null,null,null,null,null,null,null,null,null,null,null,null,null,null,null,null,null,null,null,null,null,null,null,null,null,null,null,null,null,null,null,null,null,null,null,null,null,null,null,null,null,null,null,null,null,null,null,null,null,null,null,null,null,"",null,null,null,null,"",null,null,null,null,"",null,null,null,null,"",null,null,null,null,{"$f":"SUM(FM19:FQ28)","v":0}]
[null,null,null,"E",null,null,"A4-B4",null,null,null,null,null,null,null,"E",null,null,"A1-B1",null,null,null,null,null,null,null,"E",null,null,"A1-B1",null,null,null,null,null,null,null,"E",null,null,"A1-B1",null,null,null,null,null,null,null,{"$f":"Q8","v":0},null,null,null,null,null,null,null,null,null,null,null,null,null,null,null,null,null,null,null,null,null,null,null,null,null,null,null,null,null,null,null,null,null,null,null,null,null,null,null,null,null,null,{"$f":"BY8","v":0},null,null,null,null,null,null,null,null,null,null,null,null,null,null,null,null,null,null,null,null,null,null,null,null,null,null,null,null,null,null,null,null,null,null,null,null,null,null,null,null,null,null,null,null,null,null,null,null,null,null,null,null,null,null,null,null,null,null,null,null,null,null,null,null,null,null,null,null,null,null,null,null,null,null,null,null,null,null,null,null,null,null,null,null,null,null,null,null,null,null,null,null,"",null,null,null,null,"",null,null,null,null,"",null,null,null,null,"",null,null,null,null,{"$f":"SUM(FW19:GA28)","v":0}]
[null,null,null,"E",null,null,"A1-B2",null,null,null,null,null,null,null,"E",null,null,"A4-B3",null,null,null,null,null,null,null,"E",null,null,"A3-B4",null,null,null,null,null,null,null,"E",null,null,"A3-B3",null,null,null,null,null,null,null,{"$f":"Q10","v":0},null,null,null,null,null,null,null,null,null,null,null,null,null,null,null,null,null,null,null,null,null,null,null,null,null,null,null,null,null,null,null,null,null,null,null,null,null,null,null,null,null,null,{"$f":"BY11","v":0},null,null,null,null,null,null,null,null,null,null,null,null,null,null,null,null,null,null,null,null,null,null,null,null,null,null,null,null,null,null,null,null,null,null,null,null,null,null,null,null,null,null,null,null,null,null,null,null,null,null,null,null,null,null,null,null,null,null,null,null,null,null,null,null,null,null,null,null,null,null,null,null,null,null,null,null,null,null,null,null,null,null,null,null,null,null,null,null,null,null,null,null,"",null,null,null,null,"",null,null,null,null,"",null,null,null,null,"",null,null,null,null,{"$f":"SUM(GV20:GV24)","v":0}]
[null,null,null,"E",null,null,"A2-B1",null,null,null,null,null,null,null,"E",null,null,"A2-B2",null,null,null,null,null,null,null,"E",null,null,"A2-B2",null,null,null,null,null,null,null,"E",null,null,"A2-B2",null,null,null,null,null,null,null,{"$f":"Q9","v":0},null,null,null,null,null,null,null,null,null,null,null,null,null,null,null,null,null,null,null,null,null,null,null,null,null,null,null,null,null,null,null,null,null,null,null,null,null,null,null,null,null,null,{"$f":"BY9","v":0},null,null,null,null,null,null,null,null,null,null,null,null,null,null,null,null,null,null,null,null,null,null,null,null,null,null,null,null,null,null,null,null,null,null,null,null,null,null,null,null,null,null,null,null,null,null,null,null,null,null,null,null,null,null,null,null,null,null,null,null,null,null,null,null,null,null,null,null,null,null,null,null,null,null,null,null,null,null,null,null,null,null,null,null,null,null,null,null,null,null,null,null,"",null,null,null,null,"",null,null,null,null,"",null,null,null,null,""]
[null,null,null,"E",null,null,"A3-B4",null,null,null,null,null,null,null,"E",null,null,"A1-B3",null,null,null,null,null,null,null,"E",null,null,"A3-B1",null,null,null,null,null,null,null,"E",null,null,"A3-B1",null,null,null,null,null,null,null,{"$f":"Q10","v":0},null,null,null,null,null,null,null,null,null,null,null,null,null,null,null,null,null,null,null,null,null,null,null,null,null,null,null,null,null,null,null,null,null,null,null,null,null,null,null,null,null,null,{"$f":"BY8","v":0},null,null,null,null,null,null,null,null,null,null,null,null,null,null,null,null,null,null,null,null,null,null,null,null,null,null,null,null,null,null,null,null,null,null,null,null,null,null,null,null,null,null,null,null,null,null,null,null,null,null,null,null,null,null,null,null,null,null,null,null,null,null,null,null,null,null,null,null,null,null,null,null,null,null,null,null,null,null,null,null,null,null,null,null,null,null,null,null,null,null,null,null,"",null,null,null,null,"",null,null,null,null,"",null,null,null,null,""]
[null,null,null,"E",null,null,"A4-B3",null,null,null,null,null,null,null,"E",null,null,"A3-B1",null,null,null,null,null,null,null,"E",null,null,"A1-B3",null,null,null,null,null,null,null,"E",null,null,"A1-B3",null,null,null,null,null,null,null,{"$f":"Q8","v":0},null,null,null,null,null,null,null,null,null,null,null,null,null,null,null,null,null,null,null,null,null,null,null,null,null,null,null,null,null,null,null,null,null,null,null,null,null,null,null,null,null,null,{"$f":"BY10","v":0},null,null,null,null,null,null,null,null,null,null,null,null,null,null,null,null,null,null,null,null,null,null,null,null,null,null,null,null,null,null,null,null,null,null,null,null,null,null,null,null,null,null,null,null,null,null,null,null,null,null,null,null,null,null,null,null,null,null,null,null,null,null,null,null,null,null,null,null,null,null,null,null,null,null,null,null,null,null,null,null,null,null,null,null,null,null,null,null,null,null,null,null,"",null,null,null,null,"",null,null,null,null,"",null,null,null,null,""]
[null,null,null,"Spielort :",null,null,null,null,null,null,null,null,null,null,{"$f":"'4g4 Q'!O29","v":"daheim"},null,null,null,null,null,null,null,null,null,null,null,null,null,null,null,null,null,null,null,null,null,null,null,null,null,null,"Spielbeginn :",null,null,null,null,null,null,null,null,null,null,null,null,null,null,{"$f":"'4g4 Q'!BE29","v":"00:00:00"},null,null,null,null,null,null,null,null,null,null,"Uhr",null,null,null,null,null,null,null,null,null,null,null,null,null,null,null,null,null,null,null,null,null,null,null,null,null,null,null,null,null,null,null,null,null,null,null,null,null,null,null,null,null,null,null,null,null,null,null,null,null,null,null,null,null,null,null,null,null,null,null,null,null,null,null,null,null,null,null,null,null,null,null,null,null,null,null,null,null,null,null,null,null,null,null,null,null,null,null,null,null,null,null,null,null,null,"Heim",null,null,null,null,null,null,"Gast",null,null,null,null,null,null,null,null,null,null,null,null,null,{"$f":"IF(GB19=\"\",\"\",SUM(GB19:GF28))","v":""},null,null,null,null,{"$f":"IF(GG19=\"\",\"\",SUM(GG19:GK28))","v":""},null,null,null,null,{"$f":"IF(GL19=\"\",\"\",SUM(GL19:GP28))","v":""},null,null,null,null,{"$f":"IF(GQ19=\"\",\"\",SUM(GQ19:GU28))","v":""}]
[null,null,null,null,null,null,null,null,null,null,null,null,null,null,null,null,null,null,null,null,null,null,null,null,null,null,null,null,null,null,null,null,null,null,null,null,null,null,null,null,null,null,null,null,null,null,null,null,null,null,null,null,null,null,null,null,null,null,null,null,null,null,null,null,null,null,null,null,null,null,null,null,null,null,null,null,null,null,null,null,null," kein Protest",null,null,null,null,null,null,null,null,null,null,null,null,null,null,null,null,null,null,null,null,null,null,null,null,null,null,null,null,null,{"$f":"IF(EY31=FF31,\"\",IF(EY31>FF31,GV7,GV9))","v":""},null,null,null,null,null,null,null,null,null,null,null,null,null,null,null,null,null,null,null,null,null,null,null,null,null,null,null,null,null,null,null,null,null,null,null,null,null,null,null,null,null,null,"Bälle",null,null,null,null,null,null,null,{"$f":"GV17","v":0},null,null,null,null,null,":",{"$f":"GV25","v":0}]
[null,null,null,"Datum :",null,null,null,null,null,null,null,null,null,null,{"$f":"TODAY()","v":"2016-06-08"},null,null,null,null,null,null,null,null,null,null,null,null,null,null,null,null,null,null,null,null,null,null,null,null,null,null,"Spielende :",null,null,null,null,null,null,null,null,null,null,null,null,null,null,null,null,null,null,null,null,null,null,null,null,null,"Uhr",null,null,null,null,null,null,null,null,null,null,null,null,null,null,null,null,null,null,null,null,null,null,null,null,null,null,null,null,null,null,null,null,null,null,null,null,null,null,null,null,null,null,null,{"$f":"GV6","v":""},null,null,null,null,null,null,null,null,null,null,null,null,null,null,null,null,null,null,null,null,null,null,null,null,null,null,null,null,null,null,null,null,null,null,null,null,null,null,null,null,null,null,{"$f":"IF(GL29>GQ29,GL29,GQ29)","v":""},null,null,null,null,":",null,{"$f":"IF(GL29<GQ29,GL29,GQ29)","v":""},null,null,null,null,null,"Spiele",null,null,null,null,null,null,null,null,"und",null,null,null,null,null,{"$f":"IF(GL29>=GQ29,GB29,GG29)","v":""},null,null,null,null,":",null,{"$f":"IF(GL29<=GQ29,GB29,GG29)","v":""},null,null,null,null,null,"Sätze"]
[null,null,null,null,null,null,null,null,null,null,null,null,null,null,null,null,null,null,null,null,null,null,null,null,null,null,null,null,null,null,null,null,null,null,null,null,null,null,null,null,null,null,null,null,null,null,null,null,null,null,null,null,null,null,null,null,null,null,null,null,null,null,null,null,null,null,null,null,null,null,null,null,null,null,null,null,null,null,null,null,null," Protest - siehe Anlage"]

{"sheet":"3g3 Q","index":4,"n_rows":32,"n_cols":204,"rows_kept":32,"cut":false,"hidden":false,"merged":[[32,3,32,202],[30,175,31,175],[30,176,31,180],[30,181,31,181],[30,182,31,186],[30,187,31,188],[30,189,31,193],[30,67,31,72],[30,77,30,110],[30,111,31,151],[30,154,31,158],[30,159,31,160],[30,161,31,165],[28,73,31,76],[28,3,29,13],[28,14,29,37],[28,38,31,40],[28,41,29,55],[28,56,29,66],[28,67,29,72],[28,198,29,202],[29,77,29,80],[29,81,29,110],[29,111,29,151],[29,152,31,153],[29,154,29,161],[28,77,28,110],[28,111,28,151],[28,152,28,161],[28,162,28,167],[28,169,28,174],[29,162,29,167],[29,169,29,174],[30,166,31,166],[30,167,31,174],[30,194,31,194],[30,195,31,202],[31,77,31,80],[31,81,31,110],[30,3,31,13],[30,14,31,37],[30,41,31,55],[30,56,31,66],[27,173,27,177],[27,178,27,182],[27,183,27,187],[27,188,27,192],[27,193,27,197],[27,3,27,5],[27,6,27,13],[27,14,27,16],[27,17,27,24],[27,25,27,27],[27,28,27,35],[28,175,29,182],[28,183,29,187],[28,188,29,192],[28,193,29,197],[27,198,27,202],[27,143,27,147],[27,148,27,152],[27,153,27,157],[27,158,27,162],[27,163,27,167],[27,168,27,172],[27,36,27,38],[27,39,27,46],[27,47,27,89],[27,90,27,132],[27,133,27,137],[27,138,27,142],[26,173,26,177],[26,178,26,182],[26,183,26,187],[26,188,26,192],[26,193,26,197],[26,198,26,202],[26,143,26,147],[26,148,26,152],[26,153,26,157],[26,158,26,162],[26,163,26,167],[26,168,26,172],[26,36,26,38],[26,39,26,46],[26,47,26,89],[26,90,26,132],[26,133,26,137],[26,138,26,142],[26,3,26,5],[26,6,26,13],[26,14,26,16],[26,17,26,24],[26,25,26,27],[26,28,26,35],[25,173,25,177],[25,178,25,182],[25,183,25,187],[25,188,25,192],[25,193,25,197],[25,198,25,202],[25,143,25,147],[25,148,25,152],[25,153,25,157],[25,158,25,162],[25,163,25,167],[25,168,25,172],[25,36,25,38],[25,39,25,46],[25,47,25,89],[25,90,25,132],[25,133,25,137],[25,138,25,142],[25,3,25,5],[25,6,25,13],[25,14,25,16],[25,17,25,24],[25,25,25,27],[25,28,25,35],[24,173,24,177],[24,178,24,182],[24,183,24,187],[24,188,24,192],[24,193,24,197],[24,198,24,202],[24,143,24,147],[24,148,24,152],[24,153,24,157],[24,158,24,162],[24,163,24,167],[24,168,24,172],[24,36,24,38],[24,39,24,46],[24,47,24,89],[24,90,24,132],[24,133,24,137],[24,138,24,142],[24,3,24,5],[24,6,24,13],[24,14,24,16],[24,17,24,24],[24,25,24,27],[24,28,24,35],[23,173,23,177],[23,178,23,182],[23,183,23,187],[23,188,23,192],[23,193,23,197],[23,198,23,202],[23,143,23,147],[23,148,23,152],[23,153,23,157],[23,158,23,162],[23,163,23,167],[23,168,23,172],[23,36,23,38],[23,39,23,46],[23,47,23,89],[23,90,23,132],[23,133,23,137],[23,138,23,142],[23,3,23,5],[23,6,23,13],[23,14,23,16],[23,17,23,24],[23,25,23,27],[23,28,23,35],[22,173,22,177],[22,178,22,182],[22,183,22,187],[22,188,22,192],[22,193,22,197],[22,198,22,202],[22,143,22,147],[22,148,22,152],[22,153,22,157],[22,158,22,162],[22,163,22,167],[22,168,22,172],[22,36,22,38],[22,39,22,46],[22,47,22,89],[22,90,22,132],[22,133,22,137],[22,138,22,142],[22,3,22,5],[22,6,22,13],[22,14,22,16],[22,17,22,24],[22,25,22,27],[22,28,22,35],[21,173,21,177],[21,178,21,182],[21,183,21,187],[21,188,21,192],[21,193,21,197],[21,198,21,202],[21,143,21,147],[21,148,21,152],[21,153,21,157],[21,158,21,162],[21,163,21,167],[21,168,21,172],[21,36,21,38],[21,39,21,46],[21,47,21,89],[21,90,21,132],[21,133,21,137],[21,138,21,142],[21,3,21,5],[21,6,21,13],[21,14,21,16],[21,17,21,24],[21,25,21,27],[21,28,21,35],[20,173,20,177],[20,178,20,182],[20,183,20,187],[20,188,20,192],[20,193,20,197],[20,198,20,202],[20,143,20,147],[20,148,20,152],[20,153,20,157],[20,158,20,162],[20,163,20,167],[20,168,20,172],[20,36,20,38],[20,39,20,46],[20,47,20,89],[20,90,20,132],[20,133,20,137],[20,138,20,142],[20,3,20,5],[20,6,20,13],[20,14,20,16],[20,17,20,24],[20,25,20,27],[20,28,20,35],[19,3,19,5],[19,6,19,13],[19,14,19,16],[19,17,19,24],[19,25,19,27],[19,28,19,35],[19,173,19,177],[19,178,19,182],[19,183,19,187],[19,143,19,147],[19,148,19,152],[19,153,19,157],[19,158,19,162],[19,163,19,167],[19,168,19,172],[19,36,19,38],[19,39,19,46],[19,47,19,89],[19,90,19,132],[19,133,19,137],[19,138,19,142],[19,188,19,192],[19,193,19,197],[19,198,19,202],[17,3,17,6],[17,7,17,13],[17,14,17,17],[17,18,17,24],[17,25,17,28],[17,29,17,35],[17,36,17,39],[18,193,18,197],[18,198,18,202],[18,143,18,147],[18,148,18,152],[18,153,18,157],[18,158,18,162],[18,163,18,167],[18,168,18,172],[18,133,18,137],[18,138,18,142],[17,193,17,202],[18,3,18,5],[18,6,18,13],[18,14,18,16],[18,17,18,24],[18,25,18,27],[18,28,18,35],[17,40,17,46],[17,47,17,89],[17,90,17,132],[17,133,17,142],[17,143,17,152],[17,153,17,162],[18,36,18,38],[18,39,18,46],[18,47,18,89],[18,90,18,132],[17,163,17,172],[17,173,17,182],[17,183,17,192],[18,173,18,177],[18,178,18,182],[18,183,18,187],[18,188,18,192],[15,166,15,201],[13,3,13,118],[13,123,15,123],[13,124,14,159],[13,160,15,165],[13,166,14,201],[16,3,16,46],[16,47,16,118],[16,123,16,202],[13,202,15,202],[14,3,14,15],[14,16,14,62],[14,63,14,80],[14,81,14,118],[15,3,15,15],[15,16,15,62],[15,63,15,80],[15,81,15,118],[15,124,15,159],[11,123,11,202],[12,3,12,11],[12,12,12,15],[12,16,12,58],[12,63,12,71],[12,72,12,75],[12,76,12,118],[12,123,12,202],[11,3,11,11],[11,12,11,15],[11,16,11,58],[11,63,11,71],[11,72,11,75],[11,76,11,118],[9,195,9,201],[10,3,10,11],[10,12,10,15],[10,16,10,51],[10,52,10,58],[10,63,10,71],[10,72,10,75],[10,76,10,111],[10,112,10,118],[10,124,10,136],[9,124,9,129],[9,130,9,136],[9,137,9,161],[9,162,10,163],[9,164,9,188],[9,189,9,194],[10,137,10,161],[10,164,10,188],[10,189,10,201],[7,63,7,71],[7,72,7,75],[7,76,7,111],[8,76,8,111],[8,112,8,118],[9,3,9,11],[9,12,9,15],[9,16,9,51],[9,52,9,58],[9,63,9,71],[9,72,9,75],[9,76,9,111],[9,112,9,118],[4,142,4,145],[5,3,5,122],[5,123,5,202],[6,3,6,51],[6,52,6,58],[6,59,12,62],[6,63,6,111],[6,112,6,118],[6,119,16,122],[6,124,6,201],[7,3,7,11],[7,112,7,118],[7,124,8,161],[7,162,8,163],[7,164,8,201],[8,3,8,11],[8,12,8,15],[8,16,8,51],[8,52,8,58],[8,63,8,71],[8,72,8,75],[7,12,7,15],[7,16,7,51],[7,52,7,58],[0,0,32,2],[0,3,0,202],[0,204,32,206],[1,3,2,202],[3,3,4,17],[3,18,4,20],[3,21,4,37],[3,38,4,40],[3,41,4,67],[3,68,4,70],[3,164,4,165],[3,166,4,179],[3,180,4,180],[3,181,4,190],[3,191,4,192],[3,193,4,202],[3,71,4,85],[3,86,4,113],[3,114,3,123],[3,124,4,140],[3,141,3,146],[3,147,4,163],[4,114,4,118],[4,119,4,122]]}
[]
[null,null,null,"Spielberichts-Formular",null,null,null,null,null,null,null,null,null,null,null,null,null,null,null,null,null,null,null,null,null,null,null,null,null,null,null,null,null,null,null,null,null,null,null,null,null,null,null,null,null,null,null,null,null,null,null,null,null,null,null,null,null,null,null,null,null,null,null,null,null,null,null,null,null,null,null,null,null,null,null,null,null,null,null,null,null,null,null,null,null,null,null,null,null,null,null,null,null,null,null,null,null,null,null,null,null,null,null,null,null,null,null,null,null,null,null,null,null,null,null,null,null,null,null,null,null,null,null,null,null,null,null,null,null,null,null,null,null,null,null,null,null,null,null,null,null,null,null,null,null,null,null,null,null,null,null,null,null,null,null,null,null,null,null,null,null,null,null,null,null,null,null,null,null,null,null,null,null,null,null,null,null,null,null,null,null,null,null,null,null,null,null,null,null,null,null,null,null,null,null,null,null,null,null,null,null,null,null,{"$f":"IF(GL29=GQ29,\"\",IF(GL29>GQ29,DU8,FI8))","v":""}]
[null,null,null,null,null,null,null,null,null,null,null,null,null,null,null,null,null,null,null,null,null,null,null,null,null,null,null,null,null,null,null,null,null,null,null,null,null,null,null,null,null,null,null,null,null,null,null,null,null,null,null,null,null,null,null,null,null,null,null,null,null,null,null,null,null,null,null,null,null,null,null,null,null,null,null,null,null,null,null,null,null,null,null,null,null,null,null,null,null,null,null,null,null,null,null,null,null,null,null,null,null,null,null,null,null,null,null,null,null,null,null,null,null,null,null,null,null,null,null,null,null,null,null,null,null,null,null,null,null,null,null,null,null,null,null,null,null,null,null,null,null,null,null,null,null,null,null,null,null,null,null,null,null,null,null,null,null,null,null,null,null,null,null,null,null,null,null,null,null,null,null,null,null,null,null,null,null,null,null,null,null,null,null,null,null,null,null,null,null,null,null,null,null,null,null,null,null,null,null,null,null,null,null,{"$f":"IF(GL29=\"\",\"\",IF(GL29=GQ29,GV8))","v":""}]
[null,null,null,{"$f":"'4g4 Q'!D4","v":"HERREN"},null,null,null,null,null,null,null,null,null,null,null,null,null,null,"-",null,null,{"$f":"'4g4 Q'!V4","v":"Verbands"},null,null,null,null,null,null,null,null,null,null,null,null,null,null,null,null,"-",null,null,{"$f":"'4g4 Q'!AP4","v":"Mannschaftsspiel"},null,null,null,null,null,null,null,null,null,null,null,null,null,null,null,null,null,null,null,null,null,null,null,null,null,null,null,null,null,"Spielklasse :",null,null,null,null,null,null,null,null,null,null,null,null,null,null,{"$f":"'4g4 Q'!CI4","v":"4. Kreisliga Mitte"},null,null,null,null,null,null,null,null,null,null,null,null,null,null,null,null,null,null,null,null,null,null,null,null,null,null,null,null,null,null,null,null,null,null,null,null,null,"Vorrunde",null,null,null,null,null,null,null,null,null,null,null,null,null,null,null,null,null,null,null,null,null,null,"Rückrunde",null,null,null,null,null,null,null,null,null,null,null,null,null,null,null,null,null,null,"SAISON",null,null,null,null,null,null,null,null,null,null,null,null,null,null,{"$f":"'4g4 Q'!FZ4","v":2016},null,null,null,null,null,null,null,null,null,"/",null,{"$f":"FZ4+1","v":2017}]
[]
[null,null,null,null,null,null,null,null,null,null,null,null,null,null,null,null,null,null,null,null,null,null,null,null,null,null,null,null,null,null,null,null,null,null,null,null,null,null,null,null,null,null,null,null,null,null,null,null,null,null,null,null,null,null,null,null,null,null,null,null,null,null,null,null,null,null,null,null,null,null,null,null,null,null,null,null,null,null,null,null,null,null,null,null,null,null,null,null,null,null,null,null,null,null,null,null,null,null,null,null,null,null,null,null,null,null,null,null,null,null,null,null,null,null,null,null,null,null,null,null,null,null,null,null,null,null,null,null,null,null,null,null,null,null,null,null,null,null,null,null,null,null,null,null,null,null,null,null,null,null,null,null,null,null,null,null,null,null,null,null,null,null,null,null,null,null,null,null,null,null,null,null,null,null,null,null,null,null,null,null,null,null,null,null,null,null,null,null,null,null,null,null,null,null,null,null,null,null,null,null,null,null,null,{"$f":"IF(GL29<>GQ29,GV2,GV3)","v":""}]
[null,null,null,"Mannschaftsaufstellung   -   Heimverein",null,null,null,null,null,null,null,null,null,null,null,null,null,null,null,null,null,null,null,null,null,null,null,null,null,null,null,null,null,null,null,null,null,null,null,null,null,null,null,null,null,null,null,null,null,null,null,null,"Pos.",null,null,null,null,null,null,null,null,null,null,"Mannschaftsaufstellung   -   Gastverein",null,null,null,null,null,null,null,null,null,null,null,null,null,null,null,null,null,null,null,null,null,null,null,null,null,null,null,null,null,null,null,null,null,null,null,null,null,null,null,null,null,null,null,null,null,null,null,null,"Pos.",null,null,null,null,null,null,null,null,null,null,null,"Spielpaarung",null,null,null,null,null,null,null,null,null,null,null,null,null,null,null,null,null,null,null,null,null,null,null,null,null,null,null,null,null,null,null,null,null,null,null,null,null,null,null,null,null,null,null,null,null,null,null,null,null,null,null,null,null,null,null,null,null,null,null,null,null,null,null,null,null,null,null,null,null,null,null,null,null,null,null,null,null,null,"Sieger"]
[null,null,null,"Einzel",null,null,null,null,null,null,null,null,"A1",null,null,null,null,null,null,null,null,null,null,null,null,null,null,null,null,null,null,null,null,null,null,null,null,null,null,null,null,null,null,null,null,null,null,null,null,null,null,null,null,null,null,null,null,null,null,null,null,null,null,"Einzel",null,null,null,null,null,null,null,null,"B1",null,null,null,null,null,null,null,null,null,null,null,null,null,null,null,null,null,null,null,null,null,null,null,null,null,null,null,null,null,null,null,null,null,null,null,null,null,null,null,null,null,null,null,null,null,null,null,null,null,null,null,null,null,null,null,null,null,null,null,null,null,null,null,null,null,null,null,null,null,null,null,null,null,null,null,null,null,null,null,null,null,null,null,null,null,null,null,null,null,":",null,null,null,null,null,null,null,null,null,null,null,null,null,null,null,null,null,null,null,null,null,null,null,null,null,null,null,null,null,null,null,null,null,null,null,null,null,null,null,null,"Unentschieden"]
[null,null,null,"Einzel",null,null,null,null,null,null,null,null,"A2",null,null,null,null,null,null,null,null,null,null,null,null,null,null,null,null,null,null,null,null,null,null,null,null,null,null,null,null,null,null,null,null,null,null,null,null,null,null,null,null,null,null,null,null,null,null,null,null,null,null,"Einzel",null,null,null,null,null,null,null,null,"B2"]
[null,null,null,"Einzel",null,null,null,null,null,null,null,null,"A3",null,null,null,null,null,null,null,null,null,null,null,null,null,null,null,null,null,null,null,null,null,null,null,null,null,null,null,null,null,null,null,null,null,null,null,null,null,null,null,null,null,null,null,null,null,null,null,null,null,null,"Einzel",null,null,null,null,null,null,null,null,"B3",null,null,null,null,null,null,null,null,null,null,null,null,null,null,null,null,null,null,null,null,null,null,null,null,null,null,null,null,null,null,null,null,null,null,null,null,null,null,null,null,null,null,null,null,null,null,null,null,null,null,null,{"$f":"'4g4 Q'!DU10","v":508},null,null,null,null,null,{"$f":"'4g4 Q'!EA10","v":0},null,null,null,null,null,null,"Heimverein",null,null,null,null,null,null,null,null,null,null,null,null,null,null,null,null,null,null,null,null,null,null,null,null,null,null,"Gastverein",null,null,null,null,null,null,null,null,null,null,null,null,null,null,null,null,null,null,null,null,null,null,null,null,508]
[null,null,null,null,null,null,null,null,null,null,null,null,null,null,null,null,null,null,null,null,null,null,null,null,null,null,null,null,null,null,null,null,null,null,null,null,null,null,null,null,null,null,null,null,null,null,null,null,null,null,null,null,null,null,null,null,null,null,null,null,null,null,null,null,null,null,null,null,null,null,null,null,null,null,null,null,null,null,null,null,null,null,null,null,null,null,null,null,null,null,null,null,null,null,null,null,null,null,null,null,null,null,null,null,null,null,null,null,null,null,null,null,null,null,null,null,null,null,null,null,null,null,null,null,"Vereins-Nr.",null,null,null,null,null,null,null,null,null,null,null,null,"( Mannschaft A )",null,null,null,null,null,null,null,null,null,null,null,null,null,null,null,null,null,null,null,null,null,null,null,null,null,null,"( Mannschaft B )",null,null,null,null,null,null,null,null,null,null,null,null,null,null,null,null,null,null,null,null,null,null,null,null,"Vereins-Nr.",null,null,null,null,null,null,null,null,null,null,null,null,null,{"$f":"DU8","v":0}]
[null,null,null,"Doppel",null,null,null,null,null,null,null,null,"A1",null,null,null,null,null,null,null,null,null,null,null,null,null,null,null,null,null,null,null,null,null,null,null,null,null,null,null,null,null,null,null,null,null,null,null,null,null,null,null,null,null,null,null,null,null,null,null,null,null,null,"Doppel",null,null,null,null,null,null,null,null,"B1",null,null,null,null,null,null,null,null,null,null,null,null,null,null,null,null,null,null,null,null,null,null,null,null,null,null,null,null,null,null,null,null,null,null,null,null,null,null,null,null,null,null,null,null,null,null,null,null,null,null,null,null,null,null,null,null,null,null,null,null,null,null,null,null,null,null,null,null,null,null,null,null,null,null,null,null,null,null,null,null,null,null,null,null,null,null,null,null,null,null,null,null,null,null,null,null,null,null,null,null,null,null,null,null,null,null,null,null,null,null,null,null,null,null,null,null,null,null,null,null,null,null,null,null,null,null,null,null,null,null,{"$f":"SUM(ED19:EH28)","v":0}]
[null,null,null,null,null,null,null,null,null,null,null,null,null,null,null,null,null,null,null,null,null,null,null,null,null,null,null,null,null,null,null,null,null,null,null,null,null,null,null,null,null,null,null,null,null,null,null,null,null,null,null,null,null,null,null,null,null,null,null,null,null,null,null,null,null,null,null,null,null,null,null,null,null,null,null,null,null,null,null,null,null,null,null,null,null,null,null,null,null,null,null,null,null,null,null,null,null,null,null,null,null,null,null,null,null,null,null,null,null,null,null,null,null,null,null,null,null,null,null,null,null,null,null,"Unterschriften Mannschaftsführer",null,null,null,null,null,null,null,null,null,null,null,null,null,null,null,null,null,null,null,null,null,null,null,null,null,null,null,null,null,null,null,null,null,null,null,null,null,null,null,null,null,null,null,null,null,null,null,null,null,null,null,null,null,null,null,null,null,null,null,null,null,null,null,null,null,null,null,null,null,null,null,null,null,null,null,null,null,null,null,{"$f":"SUM(EN19:ER28)","v":0}]
[null,null,null,"In den Mannschaftsaufstellungen sind die nicht zu benutzenden Eintragungsfelder grau markiert",null,null,null,null,null,null,null,null,null,null,null,null,null,null,null,null,null,null,null,null,null,null,null,null,null,null,null,null,null,null,null,null,null,null,null,null,null,null,null,null,null,null,null,null,null,null,null,null,null,null,null,null,null,null,null,null,null,null,null,null,null,null,null,null,null,null,null,null,null,null,null,null,null,null,null,null,null,null,null,null,null,null,null,null,null,null,null,null,null,null,null,null,null,null,null,null,null,null,null,null,null,null,null,null,null,null,null,null,null,null,null,null,null,null,null,null,null,null,null,null,null,null,null,null,null,null,null,null,null,null,null,null,null,null,null,null,null,null,null,null,null,null,null,null,null,null,null,null,null,null,null,null,null,null,null,null,null,null,null,null,null,null,null,null,null,null,null,null,null,null,null,null,null,null,null,null,null,null,null,null,null,null,null,null,null,null,null,null,null,null,null,null,null,null,null,null,null,null,null,{"$f":"SUM(EX19:FB28)","v":0}]
[null,null,null,"Staffelleiter :",null,null,null,null,null,null,null,null,null,null,null,null,{"$f":"'4g4 Q'!Q15","v":"Matthias Höger - Erlenweg 8 - 86697 Unterhausen"},null,null,null,null,null,null,null,null,null,null,null,null,null,null,null,null,null,null,null,null,null,null,null,null,null,null,null,null,null,null,null,null,null,null,null,null,null,null,null,null,null,null,null,null,null,null,{"$f":"'4g4 Q'!BL15","v":"0176-46577799"},null,null,null,null,null,null,null,null,null,null,null,null,null,null,null,null,null,{"$f":"'4g4 Q'!CD15","v":"matthias.hoeger@ttkreis-bayreuth.de"},null,null,null,null,null,null,null,null,null,null,null,null,null,null,null,null,null,null,null,null,null,null,null,null,null,null,null,null,null,null,null,null,null,null,null,null,null,null,null,null,null,null,null,null,null,null,null,null,null,null,null,null,null,null,null,null,null,null,null,null,null,null,null,null,null,null,null,null,null,null,null,null,null,null,null,null,null,null,null,null,null,null,null,null,null,null,null,null,null,null,null,null,null,null,null,null,null,null,null,null,null,null,null,null,null,null,null,null,null,null,null,null,null,null,null,null,null,null,null,null,null,{"$f":"SUM(FH19:FL28)","v":0}]
[null,null,null,"Mannschaftsf. :",null,null,null,null,null,null,null,null,null,null,null,null,"Name - Adresse - Heimmannschaftsführer",null,null,null,null,null,null,null,null,null,null,null,null,null,null,null,null,null,null,null,null,null,null,null,null,null,null,null,null,null,null,null,null,null,null,null,null,null,null,null,null,null,null,null,null,null,null,{"$f":"'4g4 Q'!BL16","v":"0000-1111111"},null,null,null,null,null,null,null,null,null,null,null,null,null,null,null,null,null,"emai@mfheim.de",null,null,null,null,null,null,null,null,null,null,null,null,null,null,null,null,null,null,null,null,null,null,null,null,null,null,null,null,null,null,null,null,null,null,null,null,null,null,null,null,null,null,"Heimverein",null,null,null,null,null,null,null,null,null,null,null,null,null,null,null,null,null,null,null,null,null,null,null,null,null,null,null,null,null,null,null,null,null,null,null,null,null,null,null,null,null,"Gastverein",null,null,null,null,null,null,null,null,null,null,null,null,null,null,null,null,null,null,null,null,null,null,null,null,null,null,null,null,null,null,null,null,null,null,null,null,{"$f":"SUM(FR19:FV28)","v":0}]
[null,null,null,"Bitte zutreffendes Spielsystem ankreuzen",null,null,null,null,null,null,null,null,null,null,null,null,null,null,null,null,null,null,null,null,null,null,null,null,null,null,null,null,null,null,null,null,null,null,null,null,null,null,null,null,null,null,null,null,null,null,null,null,null,null,null,null,null,null,null,null,null,null,null,null,null,null,null,null,null,null,null,null,null,null,null,null,null,null,null,null,null,null,null,null,null,null,null,null,null,null,null,null,null,null,null,null,null,null,null,null,null,null,null,null,null,null,null,null,null,null,null,null,null,null,null,null,null,null,null,null,null,null,null,{"$f":"'4g4 Q'!DT17","v":"creadet by Gerhard Nidetzky"},null,null,null,null,null,null,null,null,null,null,null,null,null,null,null,null,null,null,null,null,null,null,null,null,null,null,null,null,null,null,null,null,null,null,null,null,null,null,null,null,null,null,null,null,null,null,null,null,null,null,null,null,null,null,null,null,null,null,null,null,null,null,null,null,null,null,null,null,null,null,null,null,null,null,null,null,null,null,null,{"$f":"SUM(GV12:GV16)","v":0}]
[null,null,null,null,null,null,null,"4 g 4",null,null,null,null,null,null,null,null,null,null,"4 g 3",null,null,null,null,null,null,null,null,null,null,"3 g 4",null,null,null,null,null,null,"X",null,null,null,"3 g 3",null,null,null,null,null,null,"Heimverein ( Mannschaft A )",null,null,null,null,null,null,null,null,null,null,null,null,null,null,null,null,null,null,null,null,null,null,null,null,null,null,null,null,null,null,null,null,null,null,null,null,null,null,null,null,null,null,"Gastverein ( Mannschaft B )",null,null,null,null,null,null,null,null,null,null,null,null,null,null,null,null,null,null,null,null,null,null,null,null,null,null,null,null,null,null,null,null,null,null,null,null,null,null,null,null,null,null,"1. Satz",null,null,null,null,null,null,null,null,null,"2. Satz",null,null,null,null,null,null,null,null,null,"3. Satz",null,null,null,null,null,null,null,null,null,"4. Satz",null,null,null,null,null,null,null,null,null,"5. Satz",null,null,null,null,null,null,null,null,null,"SÄTZE",null,null,null,null,null,null,null,null,null,"SPIELE"]
[null,null,null,"D",null,null,"A1-B1",null,null,null,null,null,null,null,"D",null,null,"A1-B1",null,null,null,null,null,null,null,"D",null,null,"A1-B1",null,null,null,null,null,null,null,"D",null,null,"A1-B1",null,null,null,null,null,null,null,{"$f":"Q12","v":0},null,null,null,null,null,null,null,null,null,null,null,null,null,null,null,null,null,null,null,null,null,null,null,null,null,null,null,null,null,null,null,null,null,null,null,null,null,null,null,null,null,null,{"$f":"BY12","v":0},null,null,null,null,null,null,null,null,null,null,null,null,null,null,null,null,null,null,null,null,null,null,null,null,null,null,null,null,null,null,null,null,null,null,null,null,null,null,null,null,null,null,null,null,null,null,null,null,null,null,null,null,null,null,null,null,null,null,null,null,null,null,null,null,null,null,null,null,null,null,null,null,null,null,null,null,null,null,null,null,null,null,null,null,null,null,null,null,null,null,null,null,{"$f":"IF(ED19=\"\",\"\",IF(ED19>EI19,1,0)+IF(EN19>ES19,1,0)+IF(EX19>FC19,1,0)+IF(FH19>FM19,1,0)+IF(FR19>FW19,1,0))","v":""},null,null,null,null,{"$f":"IF(ED19=\"\",\"\",IF(ED19<EI19,1,0)+IF(EN19<ES19,1,0)+IF(EX19<FC19,1,0)+IF(FH19<FM19,1,0)+IF(FR19<FW19,1,0))","v":""},null,null,null,null,{"$f":"IF(GB19=\"\",\"\",IF(GB19>GG19,1,0))","v":""},null,null,null,null,{"$f":"IF(GB19=\"\",\"\",IF(GB19<GG19,1,0))","v":""},null,null,null,null,{"$f":"FI8","v":0}]
[null,null,null,"D",null,null,"A2-B2",null,null,null,null,null,null,null,"E",null,null,"A3-B3",null,null,null,null,null,null,null,"E",null,null,"A3-B3",null,null,null,null,null,null,null,"E",null,null,"A1-B2",null,null,null,null,null,null,null,{"$f":"Q8","v":0},null,null,null,null,null,null,null,null,null,null,null,null,null,null,null,null,null,null,null,null,null,null,null,null,null,null,null,null,null,null,null,null,null,null,null,null,null,null,null,null,null,null,{"$f":"BY9","v":0},null,null,null,null,null,null,null,null,null,null,null,null,null,null,null,null,null,null,null,null,null,null,null,null,null,null,null,null,null,null,null,null,null,null,null,null,null,null,null,null,null,null,null,null,null,null,null,null,null,null,null,null,null,null,null,null,null,null,null,null,null,null,null,null,null,null,null,null,null,null,null,null,null,null,null,null,null,null,null,null,null,null,null,null,null,null,null,null,null,null,null,null,{"$f":"IF(ED20=\"\",\"\",IF(ED20>EI20,1,0)+IF(EN20>ES20,1,0)+IF(EX20>FC20,1,0)+IF(FH20>FM20,1,0)+IF(FR20>FW20,1,0))","v":""},null,null,null,null,{"$f":"IF(ED20=\"\",\"\",IF(ED20<EI20,1,0)+IF(EN20<ES20,1,0)+IF(EX20<FC20,1,0)+IF(FH20<FM20,1,0)+IF(FR20<FW20,1,0))","v":""},null,null,null,null,{"$f":"IF(GB20=\"\",\"\",IF(GB20>GG20,1,0))","v":""},null,null,null,null,{"$f":"IF(GB20=\"\",\"\",IF(GB20<GG20,1,0))","v":""},null,null,null,null,{"$f":"SUM(EI19:EM28)","v":0}]
[null,null,null,"E",null,null,"A1-B1",null,null,null,null,null,null,null,"E",null,null,"A1-B2",null,null,null,null,null,null,null,"E",null,null,"A2-B1",null,null,null,null,null,null,null,"E",null,null,"A2-B1",null,null,null,null,null,null,null,{"$f":"Q9","v":0},null,null,null,null,null,null,null,null,null,null,null,null,null,null,null,null,null,null,null,null,null,null,null,null,null,null,null,null,null,null,null,null,null,null,null,null,null,null,null,null,null,null,{"$f":"BY8","v":0},null,null,null,null,null,null,null,null,null,null,null,null,null,null,null,null,null,null,null,null,null,null,null,null,null,null,null,null,null,null,null,null,null,null,null,null,null,null,null,null,null,null,null,null,null,null,null,null,null,null,null,null,null,null,null,null,null,null,null,null,null,null,null,null,null,null,null,null,null,null,null,null,null,null,null,null,null,null,null,null,null,null,null,null,null,null,null,null,null,null,null,null,"",null,null,null,null,"",null,null,null,null,"",null,null,null,null,"",null,null,null,null,{"$f":"SUM(ES19:EW28)","v":0}]
[null,null,null,"E",null,null,"A2-B2",null,null,null,null,null,null,null,"E",null,null,"A2-B1",null,null,null,null,null,null,null,"E",null,null,"A1-B2",null,null,null,null,null,null,null,"E",null,null,"A3-B2",null,null,null,null,null,null,null,{"$f":"Q10","v":0},null,null,null,null,null,null,null,null,null,null,null,null,null,null,null,null,null,null,null,null,null,null,null,null,null,null,null,null,null,null,null,null,null,null,null,null,null,null,null,null,null,null,{"$f":"BY9","v":0},null,null,null,null,null,null,null,null,null,null,null,null,null,null,null,null,null,null,null,null,null,null,null,null,null,null,null,null,null,null,null,null,null,null,null,null,null,null,null,null,null,null,null,null,null,null,null,null,null,null,null,null,null,null,null,null,null,null,null,null,null,null,null,null,null,null,null,null,null,null,null,null,null,null,null,null,null,null,null,null,null,null,null,null,null,null,null,null,null,null,null,null,"",null,null,null,null,"",null,null,null,null,"",null,null,null,null,"",null,null,null,null,{"$f":"SUM(FC19:FG28)","v":0}]
[null,null,null,"E",null,null,"A3-B3",null,null,null,null,null,null,null,"E",null,null,"A4-B2",null,null,null,null,null,null,null,"E",null,null,"A2-B4",null,null,null,null,null,null,null,"E",null,null,"A2-B3",null,null,null,null,null,null,null,{"$f":"Q9","v":0},null,null,null,null,null,null,null,null,null,null,null,null,null,null,null,null,null,null,null,null,null,null,null,null,null,null,null,null,null,null,null,null,null,null,null,null,null,null,null,null,null,null,{"$f":"BY10","v":0},null,null,null,null,null,null,null,null,null,null,null,null,null,null,null,null,null,null,null,null,null,null,null,null,null,null,null,null,null,null,null,null,null,null,null,null,null,null,null,null,null,null,null,null,null,null,null,null,null,null,null,null,null,null,null,null,null,null,null,null,null,null,null,null,null,null,null,null,null,null,null,null,null,null,null,null,null,null,null,null,null,null,null,null,null,null,null,null,null,null,null,null,"",null,null,null,null,"",null,null,null,null,"",null,null,null,null,"",null,null,null,null,{"$f":"SUM(FM19:FQ28)","v":0}]
[null,null,null,"E",null,null,"A4-B4",null,null,null,null,null,null,null,"E",null,null,"A1-B1",null,null,null,null,null,null,null,"E",null,null,"A1-B1",null,null,null,null,null,null,null,"E",null,null,"A1-B1",null,null,null,null,null,null,null,{"$f":"Q8","v":0},null,null,null,null,null,null,null,null,null,null,null,null,null,null,null,null,null,null,null,null,null,null,null,null,null,null,null,null,null,null,null,null,null,null,null,null,null,null,null,null,null,null,{"$f":"BY8","v":0},null,null,null,null,null,null,null,null,null,null,null,null,null,null,null,null,null,null,null,null,null,null,null,null,null,null,null,null,null,null,null,null,null,null,null,null,null,null,null,null,null,null,null,null,null,null,null,null,null,null,null,null,null,null,null,null,null,null,null,null,null,null,null,null,null,null,null,null,null,null,null,null,null,null,null,null,null,null,null,null,null,null,null,null,null,null,null,null,null,null,null,null,"",null,null,null,null,"",null,null,null,null,"",null,null,null,null,"",null,null,null,null,{"$f":"SUM(FW19:GA28)","v":0}]
[null,null,null,"E",null,null,"A1-B2",null,null,null,null,null,null,null,"E",null,null,"A4-B3",null,null,null,null,null,null,null,"E",null,null,"A3-B4",null,null,null,null,null,null,null,"E",null,null,"A3-B3",null,null,null,null,null,null,null,{"$f":"Q10","v":0},null,null,null,null,null,null,null,null,null,null,null,null,null,null,null,null,null,null,null,null,null,null,null,null,null,null,null,null,null,null,null,null,null,null,null,null,null,null,null,null,null,null,{"$f":"BY10","v":0},null,null,null,null,null,null,null,null,null,null,null,null,null,null,null,null,null,null,null,null,null,null,null,null,null,null,null,null,null,null,null,null,null,null,null,null,null,null,null,null,null,null,null,null,null,null,null,null,null,null,null,null,null,null,null,null,null,null,null,null,null,null,null,null,null,null,null,null,null,null,null,null,null,null,null,null,null,null,null,null,null,null,null,null,null,null,null,null,null,null,null,null,"",null,null,null,null,"",null,null,null,null,"",null,null,null,null,"",null,null,null,null,{"$f":"SUM(GV20:GV24)","v":0}]
[null,null,null,"E",null,null,"A2-B1",null,null,null,null,null,null,null,"E",null,null,"A2-B2",null,null,null,null,null,null,null,"E",null,null,"A2-B2",null,null,null,null,null,null,null,"E",null,null,"A2-B2",null,null,null,null,null,null,null,{"$f":"Q9","v":0},null,null,null,null,null,null,null,null,null,null,null,null,null,null,null,null,null,null,null,null,null,null,null,null,null,null,null,null,null,null,null,null,null,null,null,null,null,null,null,null,null,null,{"$f":"BY9","v":0},null,null,null,null,null,null,null,null,null,null,null,null,null,null,null,null,null,null,null,null,null,null,null,null,null,null,null,null,null,null,null,null,null,null,null,null,null,null,null,null,null,null,null,null,null,null,null,null,null,null,null,null,null,null,null,null,null,null,null,null,null,null,null,null,null,null,null,null,null,null,null,null,null,null,null,null,null,null,null,null,null,null,null,null,null,null,null,null,null,null,null,null,"",null,null,null,null,"",null,null,null,null,"",null,null,null,null,""]
[null,null,null,"E",null,null,"A3-B4",null,null,null,null,null,null,null,"E",null,null,"A1-B3",null,null,null,null,null,null,null,"E",null,null,"A3-B1",null,null,null,null,null,null,null,"E",null,null,"A3-B1",null,null,null,null,null,null,null,{"$f":"Q10","v":0},null,null,null,null,null,null,null,null,null,null,null,null,null,null,null,null,null,null,null,null,null,null,null,null,null,null,null,null,null,null,null,null,null,null,null,null,null,null,null,null,null,null,{"$f":"BY8","v":0},null,null,null,null,null,null,null,null,null,null,null,null,null,null,null,null,null,null,null,null,null,null,null,null,null,null,null,null,null,null,null,null,null,null,null,null,null,null,null,null,null,null,null,null,null,null,null,null,null,null,null,null,null,null,null,null,null,null,null,null,null,null,null,null,null,null,null,null,null,null,null,null,null,null,null,null,null,null,null,null,null,null,null,null,null,null,null,null,null,null,null,null,"",null,null,null,null,"",null,null,null,null,"",null,null,null,null,""]
[null,null,null,"E",null,null,"A4-B3",null,null,null,null,null,null,null,"E",null,null,"A3-B1",null,null,null,null,null,null,null,"E",null,null,"A1-B3",null,null,null,null,null,null,null,"E",null,null,"A1-B3",null,null,null,null,null,null,null,{"$f":"Q8","v":0},null,null,null,null,null,null,null,null,null,null,null,null,null,null,null,null,null,null,null,null,null,null,null,null,null,null,null,null,null,null,null,null,null,null,null,null,null,null,null,null,null,null,{"$f":"BY10","v":0},null,null,null,null,null,null,null,null,null,null,null,null,null,null,null,null,null,null,null,null,null,null,null,null,null,null,null,null,null,null,null,null,null,null,null,null,null,null,null,null,null,null,null,null,null,null,null,null,null,null,null,null,null,null,null,null,null,null,null,null,null,null,null,null,null,null,null,null,null,null,null,null,null,null,null,null,null,null,null,null,null,null,null,null,null,null,null,null,null,null,null,null,"",null,null,null,null,"",null,null,null,null,"",null,null,null,null,""]
[null,null,null,"Spielort :",null,null,null,null,null,null,null,null,null,null,{"$f":"'4g4 Q'!O29","v":"daheim"},null,null,null,null,null,null,null,null,null,null,null,null,null,null,null,null,null,null,null,null,null,null,null,null,null,null,"Spielbeginn :",null,null,null,null,null,null,null,null,null,null,null,null,null,null,{"$f":"'4g4 Q'!BE29","v":"00:00:00"},null,null,null,null,null,null,null,null,null,null,"Uhr",null,null,null,null,null,null,null,null,null,null,null,null,null,null,null,null,null,null,null,null,null,null,null,null,null,null,null,null,null,null,null,null,null,null,null,null,null,null,null,null,null,null,null,null,null,null,null,null,null,null,null,null,null,null,null,null,null,null,null,null,null,null,null,null,null,null,null,null,null,null,null,null,null,null,null,null,null,null,null,null,null,null,null,null,null,null,null,null,null,null,null,null,null,null,"Heim",null,null,null,null,null,null,"Gast",null,null,null,null,null,null,null,null,null,null,null,null,null,{"$f":"IF(GB19=\"\",\"\",SUM(GB19:GF28))","v":""},null,null,null,null,{"$f":"IF(GG19=\"\",\"\",SUM(GG19:GK28))","v":""},null,null,null,null,{"$f":"IF(GL19=\"\",\"\",SUM(GL19:GP28))","v":""},null,null,null,null,{"$f":"IF(GQ19=\"\",\"\",SUM(GQ19:GU28))","v":""}]
[null,null,null,null,null,null,null,null,null,null,null,null,null,null,null,null,null,null,null,null,null,null,null,null,null,null,null,null,null,null,null,null,null,null,null,null,null,null,null,null,null,null,null,null,null,null,null,null,null,null,null,null,null,null,null,null,null,null,null,null,null,null,null,null,null,null,null,null,null,null,null,null,null,null,null,null,null,null,null,null,null," kein Protest",null,null,null,null,null,null,null,null,null,null,null,null,null,null,null,null,null,null,null,null,null,null,null,null,null,null,null,null,null,{"$f":"IF(EY31=FF31,\"\",IF(EY31>FF31,GV7,GV9))","v":""},null,null,null,null,null,null,null,null,null,null,null,null,null,null,null,null,null,null,null,null,null,null,null,null,null,null,null,null,null,null,null,null,null,null,null,null,null,null,null,null,null,null,"Bälle",null,null,null,null,null,null,null,{"$f":"GV17","v":0},null,null,null,null,null,":",{"$f":"GV25","v":0}]
[null,null,null,"Datum :",null,null,null,null,null,null,null,null,null,null,{"$f":"TODAY()","v":"2016-06-08"},null,null,null,null,null,null,null,null,null,null,null,null,null,null,null,null,null,null,null,null,null,null,null,null,null,null,"Spielende :",null,null,null,null,null,null,null,null,null,null,null,null,null,null,null,null,null,null,null,null,null,null,null,null,null,"Uhr",null,null,null,null,null,null,null,null,null,null,null,null,null,null,null,null,null,null,null,null,null,null,null,null,null,null,null,null,null,null,null,null,null,null,null,null,null,null,null,null,null,null,null,{"$f":"GV6","v":""},null,null,null,null,null,null,null,null,null,null,null,null,null,null,null,null,null,null,null,null,null,null,null,null,null,null,null,null,null,null,null,null,null,null,null,null,null,null,null,null,null,null,{"$f":"IF(GL29>GQ29,GL29,GQ29)","v":""},null,null,null,null,":",null,{"$f":"IF(GL29<GQ29,GL29,GQ29)","v":""},null,null,null,null,null,"Spiele",null,null,null,null,null,null,null,null,"und",null,null,null,null,null,{"$f":"IF(GL29>=GQ29,GB29,GG29)","v":""},null,null,null,null,":",null,{"$f":"IF(GL29<=GQ29,GB29,GG29)","v":""},null,null,null,null,null,"Sätze"]
[null,null,null,null,null,null,null,null,null,null,null,null,null,null,null,null,null,null,null,null,null,null,null,null,null,null,null,null,null,null,null,null,null,null,null,null,null,null,null,null,null,null,null,null,null,null,null,null,null,null,null,null,null,null,null,null,null,null,null,null,null,null,null,null,null,null,null,null,null,null,null,null,null,null,null,null,null,null,null,null,null," Protest - siehe Anlage"]

{"sheet":"Vereins-Nr.","index":5,"n_rows":32,"n_cols":3,"rows_kept":32,"cut":false,"hidden":false,"merged":[]}
[]
[null,"Verein","Ver.-Nr."]
[null," SC  Altenplos",508001]
[null," 1. FC  Bayreuth",508007]
[null," SC  Raiffeisen  Bayreuth",508008]
[null," TSV  Bindlach",508009]
[null," TSV  Bischofsgrün",508038]
[null," TTC  Creußen",508010]
[null," TSV  Donndorf  Eckersdorf",508028]
[null," SV  1921  Heinersreuth",508036]
[null," ASV  Hollfeld",508011]
[null," TSV  Kirchenlaibach",508012]
[null," ATS  Kulmbach",508013]
[null," Post  SV  Kulmbach",508014]
[null," SSV  Kirchenpingarten",508045]
[null," SV  Lanzendorf",508029]
[null," TTC  Mainleus",508015]
[null," TV  Marktleugast",508016]
[null," TSV  Mistelbach",508034]
[null," SV  Mistelgau",508017]
[null," ASV  Nemmersdorf",508032]
[null," SV  Neunkirchen  a. Main",508033]
[null," TSV  Obernsees",508018]
[null," SV  Glückauf  Pegnitz",508019]
[null," TSC  Pottenstein",508021]
[null," TTC  Rugendorf",508022]
[null," TSV  Stadtsteinach",508023]
[null," TSV  Thurnau",508024]
[null," TTC  Trebgast / Neuenmarkt",508042]
[null," SV  Weidenberg",508025]
[null," TTC  Willmersreuth",508026]
[null," SpVgg  Wonsees",508044]